Organisation Code,Organisation Label,Effective Date,Organisational Unit,Service Division Label,Category Internal Name,Purpose,Detailed Expenditure Code,Payment Date,TransactionNumber,Irrecoverable VAT Amount,Amount,Capital Or Revenue,Benificiary Name,Procurement Card
Http://opendatacommunities.org/id/metropolitan-district-council/leeds,Leeds City Council,31/05/2015,Central & Corporate,Commercial Services Trading Services,Supplies and Services,Operational Materials,205,15-May-2015,1505-00001,0.00,44.00,R,A & A Electrical Distributors Ltd,No
Http://opendatacommunities.org/id/metropolitan-district-council/leeds,Leeds City Council,31/05/2015,Environment & Housing,Environmental Health,Capital,Construction,3,25-May-2015,1505-00002,0.00,10000.00,C,A & C Galley,No
Http://opendatacommunities.org/id/metropolitan-district-council/leeds,Leeds City Council,31/05/2015,Central & Corporate,Commercial Services Trading Services,Supplies and Services,Operational Materials,205,05-May-2015,1505-00003,0.00,26.31,R,A Andrews & Sons (Marbles & Tiles),No
Http://opendatacommunities.org/id/metropolitan-district-council/leeds,Leeds City Council,31/05/2015,City Development,Libraries  Arts & Heritage,Supplies and Services,Other Hired And Contracted Services,265,20-May-2015,1505-00004,0.00,120.00,R,REDACTED PERSONAL DATA,No
Http://opendatacommunities.org/id/metropolitan-district-council/leeds,Leeds City Council,31/05/2015,City Development,Employment & Skills,Supplies and Services,Training Allowances,257,22-May-2015,1505-00005,0.00,248.19,R,REDACTED PERSONAL DATA,No
Http://opendatacommunities.org/id/metropolitan-district-council/leeds,Leeds City Council,31/05/2015,City Development,Employment & Skills,Supplies and Services,Training Allowances,257,29-May-2015,1505-00006,0.00,248.19,R,REDACTED PERSONAL DATA,No
Http://opendatacommunities.org/id/metropolitan-district-council/leeds,Leeds City Council,31/05/2015,City Development,Employment & Skills,Supplies and Services,Training Allowances,257,01-May-2015,1505-00007,0.00,248.19,R,REDACTED PERSONAL DATA,No
Http://opendatacommunities.org/id/metropolitan-district-council/leeds,Leeds City Council,31/05/2015,City Development,Employment & Skills,Supplies and Services,Training Allowances,257,08-May-2015,1505-00008,0.00,248.19,R,REDACTED PERSONAL DATA,No
Http://opendatacommunities.org/id/metropolitan-district-council/leeds,Leeds City Council,31/05/2015,City Development,Employment & Skills,Supplies and Services,Training Allowances,257,15-May-2015,1505-00009,0.00,248.19,R,REDACTED PERSONAL DATA,No
Http://opendatacommunities.org/id/metropolitan-district-council/leeds,Leeds City Council,31/05/2015,City Development,Recreation,Supplies and Services,Other Hired And Contracted Services,265,29-May-2015,1505-00010,0.00,235.00,R,A Bush (Engineering Services) Ltd,No
Http://opendatacommunities.org/id/metropolitan-district-council/leeds,Leeds City Council,31/05/2015,Childrens Services,Learning Skills & Universal,Third Party Payments,Services Rendered By Other Organisations,511,28-May-2015,1505-00011,0.00,15.43,R,A Clarkson,No
Http://opendatacommunities.org/id/metropolitan-district-council/leeds,Leeds City Council,31/05/2015,Childrens Services,Learning Skills & Universal,Third Party Payments,Services Rendered By Other Organisations,511,28-May-2015,1505-00012,0.00,103.35,R,A Clarkson,No
Http://opendatacommunities.org/id/metropolitan-district-council/leeds,Leeds City Council,31/05/2015,Childrens Services,Safeguarding Targeted & Specialist,Third Party Payments,Placement Support,550,14-May-2015,1505-00013,0.00,500.00,R,REDACTED PERSONAL DATA,No
Http://opendatacommunities.org/id/metropolitan-district-council/leeds,Leeds City Council,31/05/2015,Adult Social Care,Roseville Enterprises,Transport,Repair & Maintenance of  Plant,342,14-May-2015,1505-00014,0.00,422.50,R,A D G Engineering Ltd,No
Http://opendatacommunities.org/id/metropolitan-district-council/leeds,Leeds City Council,31/05/2015,Environment & Housing,Parks & Countryside,Supplies and Services,Bought In Professional Services,277,25-May-2015,1505-00015,0.00,3946.13,R,REDACTED COMMERCIAL CONFIDENTIALITY,No
Http://opendatacommunities.org/id/metropolitan-district-council/leeds,Leeds City Council,31/05/2015,Central & Corporate,Public Private Partnership Unit,Supplies and Services,Office Furniture & Equipment,201,29-May-2015,1505-00016,0.00,273.00,R,A D Smith,No
Http://opendatacommunities.org/id/metropolitan-district-council/leeds,Leeds City Council,31/05/2015,Childrens Services,Safeguarding Targeted & Specialist,Supplies and Services,Insurance Claims,248,13-May-2015,1505-00017,0.00,300.00,R,REDACTED PERSONAL DATA,No
Http://opendatacommunities.org/id/metropolitan-district-council/leeds,Leeds City Council,31/05/2015,Childrens Services,Learning Skills & Universal,Third Party Payments,Services Rendered By Voluntary Sector,505,28-May-2015,1505-00018,0.00,850.83,R,A E Speight,No
Http://opendatacommunities.org/id/metropolitan-district-council/leeds,Leeds City Council,31/05/2015,Childrens Services,Learning Skills & Universal,Third Party Payments,Services Rendered By Voluntary Sector,505,28-May-2015,1505-00019,0.00,1219.53,R,A E Speight,No
Http://opendatacommunities.org/id/metropolitan-district-council/leeds,Leeds City Council,31/05/2015,Central & Corporate,Commercial Services Trading Services,Supplies and Services,Operational Materials,205,14-May-2015,1505-00020,0.00,250.00,R,REDACTED PERSONAL DATA,No
Http://opendatacommunities.org/id/metropolitan-district-council/leeds,Leeds City Council,31/05/2015,City Development,Libraries  Arts & Heritage,Supplies and Services,Other Hired And Contracted Services,265,22-May-2015,1505-00021,0.00,170.00,R,REDACTED COMMERCIAL CONFIDENTIALITY,No
Http://opendatacommunities.org/id/metropolitan-district-council/leeds,Leeds City Council,31/05/2015,Central & Corporate,Commercial Services Trading Services,Supplies and Services,Operational Materials,205,28-May-2015,1505-00022,0.00,430.00,R,A J H  Pump Supply & Repair Ltd,No
Http://opendatacommunities.org/id/metropolitan-district-council/leeds,Leeds City Council,31/05/2015,Central & Corporate,Commercial Services Trading Services,Supplies and Services,Operational Materials,205,28-May-2015,1505-00023,0.00,154.15,R,A J H  Pump Supply & Repair Ltd,No
Http://opendatacommunities.org/id/metropolitan-district-council/leeds,Leeds City Council,31/05/2015,Central & Corporate,Commercial Services Trading Services,Supplies and Services,Operational Materials,205,28-May-2015,1505-00024,0.00,195.00,R,A J H  Pump Supply & Repair Ltd,No
Http://opendatacommunities.org/id/metropolitan-district-council/leeds,Leeds City Council,31/05/2015,Central & Corporate,Commercial Services Trading Services,Supplies and Services,Operational Materials,205,28-May-2015,1505-00025,0.00,58.75,R,A J H  Pump Supply & Repair Ltd,No
Http://opendatacommunities.org/id/metropolitan-district-council/leeds,Leeds City Council,31/05/2015,Central & Corporate,Commercial Services Trading Services,Supplies and Services,Operational Materials,205,28-May-2015,1505-00026,0.00,355.39,R,A J H  Pump Supply & Repair Ltd,No
Http://opendatacommunities.org/id/metropolitan-district-council/leeds,Leeds City Council,31/05/2015,Central & Corporate,Commercial Services Trading Services,Supplies and Services,Operational Materials,205,28-May-2015,1505-00027,0.00,245.00,R,A J H  Pump Supply & Repair Ltd,No
Http://opendatacommunities.org/id/metropolitan-district-council/leeds,Leeds City Council,31/05/2015,Central & Corporate,Commercial Services Trading Services,Supplies and Services,Operational Materials,205,28-May-2015,1505-00028,0.00,25.01,R,A J H  Pump Supply & Repair Ltd,No
Http://opendatacommunities.org/id/metropolitan-district-council/leeds,Leeds City Council,31/05/2015,Central & Corporate,Commercial Services Trading Services,Supplies and Services,Operational Materials,205,28-May-2015,1505-00029,0.00,59.45,R,A J H  Pump Supply & Repair Ltd,No
Http://opendatacommunities.org/id/metropolitan-district-council/leeds,Leeds City Council,31/05/2015,Central & Corporate,Commercial Services Trading Services,Supplies and Services,Operational Materials,205,28-May-2015,1505-00030,0.00,141.89,R,A J H  Pump Supply & Repair Ltd,No
Http://opendatacommunities.org/id/metropolitan-district-council/leeds,Leeds City Council,31/05/2015,Central & Corporate,Commercial Services Trading Services,Supplies and Services,Operational Materials,205,28-May-2015,1505-00031,0.00,83.77,R,A J H  Pump Supply & Repair Ltd,No
Http://opendatacommunities.org/id/metropolitan-district-council/leeds,Leeds City Council,31/05/2015,Central & Corporate,Commercial Services Trading Services,Supplies and Services,Operational Materials,205,28-May-2015,1505-00032,0.00,22.41,R,A J H  Pump Supply & Repair Ltd,No
Http://opendatacommunities.org/id/metropolitan-district-council/leeds,Leeds City Council,31/05/2015,Central & Corporate,Commercial Services Trading Services,Supplies and Services,Operational Materials,205,28-May-2015,1505-00033,0.00,16.90,R,A J H  Pump Supply & Repair Ltd,No
Http://opendatacommunities.org/id/metropolitan-district-council/leeds,Leeds City Council,31/05/2015,Central & Corporate,Commercial Services Trading Services,Supplies and Services,Operational Materials,205,28-May-2015,1505-00034,0.00,73.00,R,A J H  Pump Supply & Repair Ltd,No
Http://opendatacommunities.org/id/metropolitan-district-council/leeds,Leeds City Council,31/05/2015,Central & Corporate,Commercial Services Trading Services,Supplies and Services,Operational Materials,205,28-May-2015,1505-00035,0.00,312.00,R,A J H  Pump Supply & Repair Ltd,No
Http://opendatacommunities.org/id/metropolitan-district-council/leeds,Leeds City Council,31/05/2015,Central & Corporate,Commercial Services Trading Services,Supplies and Services,Operational Materials,205,28-May-2015,1505-00036,0.00,364.00,R,A J H  Pump Supply & Repair Ltd,No
Http://opendatacommunities.org/id/metropolitan-district-council/leeds,Leeds City Council,31/05/2015,Central & Corporate,Commercial Services Trading Services,Supplies and Services,Operational Materials,205,29-May-2015,1505-00037,0.00,39.00,R,A J H  Pump Supply & Repair Ltd,No
Http://opendatacommunities.org/id/metropolitan-district-council/leeds,Leeds City Council,31/05/2015,Central & Corporate,Commercial Services Trading Services,Supplies and Services,Other Hired And Contracted Services,265,06-May-2015,1505-00038,0.00,0.00,R,A J H  Pump Supply & Repair Ltd,No
Http://opendatacommunities.org/id/metropolitan-district-council/leeds,Leeds City Council,31/05/2015,Central & Corporate,Commercial Services Trading Services,Supplies and Services,Operational Materials,205,15-May-2015,1505-00039,0.00,2950.00,R,A J H  Pump Supply & Repair Ltd,No
Http://opendatacommunities.org/id/metropolitan-district-council/leeds,Leeds City Council,31/05/2015,Central & Corporate,Commercial Services Trading Services,Supplies and Services,Operational Materials,205,15-May-2015,1505-00040,0.00,122.57,R,A J H  Pump Supply & Repair Ltd,No
Http://opendatacommunities.org/id/metropolitan-district-council/leeds,Leeds City Council,31/05/2015,Central & Corporate,Commercial Services Trading Services,Supplies and Services,Operational Materials,205,15-May-2015,1505-00041,0.00,21.90,R,A J H  Pump Supply & Repair Ltd,No
Http://opendatacommunities.org/id/metropolitan-district-council/leeds,Leeds City Council,31/05/2015,Central & Corporate,Commercial Services Trading Services,Supplies and Services,Operational Materials,205,15-May-2015,1505-00042,0.00,49.50,R,A J H  Pump Supply & Repair Ltd,No
Http://opendatacommunities.org/id/metropolitan-district-council/leeds,Leeds City Council,31/05/2015,Central & Corporate,Commercial Services Trading Services,Supplies and Services,Operational Materials,205,15-May-2015,1505-00043,0.00,33.95,R,A J H  Pump Supply & Repair Ltd,No
Http://opendatacommunities.org/id/metropolitan-district-council/leeds,Leeds City Council,31/05/2015,Central & Corporate,Commercial Services Trading Services,Supplies and Services,Operational Materials,205,15-May-2015,1505-00044,0.00,79.50,R,A J H  Pump Supply & Repair Ltd,No
Http://opendatacommunities.org/id/metropolitan-district-council/leeds,Leeds City Council,31/05/2015,Central & Corporate,Commercial Services Trading Services,Supplies and Services,Operational Materials,205,15-May-2015,1505-00045,0.00,176.25,R,A J H  Pump Supply & Repair Ltd,No
Http://opendatacommunities.org/id/metropolitan-district-council/leeds,Leeds City Council,31/05/2015,Central & Corporate,Commercial Services Trading Services,Supplies and Services,Operational Materials,205,15-May-2015,1505-00046,0.00,19.50,R,A J H  Pump Supply & Repair Ltd,No
Http://opendatacommunities.org/id/metropolitan-district-council/leeds,Leeds City Council,31/05/2015,Central & Corporate,Commercial Services Trading Services,Supplies and Services,Operational Materials,205,15-May-2015,1505-00047,0.00,145.00,R,A J H  Pump Supply & Repair Ltd,No
Http://opendatacommunities.org/id/metropolitan-district-council/leeds,Leeds City Council,31/05/2015,Central & Corporate,Commercial Services Trading Services,Supplies and Services,Operational Materials,205,28-May-2015,1505-00048,0.00,93.67,R,A J H  Pump Supply & Repair Ltd,No
Http://opendatacommunities.org/id/metropolitan-district-council/leeds,Leeds City Council,31/05/2015,Central & Corporate,Commercial Services Trading Services,Supplies and Services,Operational Materials,205,28-May-2015,1505-00049,0.00,15.95,R,A J H  Pump Supply & Repair Ltd,No
Http://opendatacommunities.org/id/metropolitan-district-council/leeds,Leeds City Council,31/05/2015,Central & Corporate,Commercial Services Trading Services,Supplies and Services,Operational Materials,205,28-May-2015,1505-00050,0.00,174.00,R,A J H  Pump Supply & Repair Ltd,No
Http://opendatacommunities.org/id/metropolitan-district-council/leeds,Leeds City Council,31/05/2015,Central & Corporate,Commercial Services Trading Services,Supplies and Services,Operational Materials,205,28-May-2015,1505-00051,0.00,285.00,R,A J H  Pump Supply & Repair Ltd,No
Http://opendatacommunities.org/id/metropolitan-district-council/leeds,Leeds City Council,31/05/2015,Central & Corporate,Commercial Services Trading Services,Supplies and Services,Operational Materials,205,28-May-2015,1505-00052,0.00,123.76,R,A J H  Pump Supply & Repair Ltd,No
Http://opendatacommunities.org/id/metropolitan-district-council/leeds,Leeds City Council,31/05/2015,Central & Corporate,Commercial Services Trading Services,Supplies and Services,Operational Materials,205,28-May-2015,1505-00053,0.00,131.00,R,A J H  Pump Supply & Repair Ltd,No
Http://opendatacommunities.org/id/metropolitan-district-council/leeds,Leeds City Council,31/05/2015,Central & Corporate,Commercial Services Trading Services,Supplies and Services,Operational Materials,205,28-May-2015,1505-00054,0.00,635.50,R,A J H  Pump Supply & Repair Ltd,No
Http://opendatacommunities.org/id/metropolitan-district-council/leeds,Leeds City Council,31/05/2015,Central & Corporate,Commercial Services Trading Services,Supplies and Services,Operational Materials,205,28-May-2015,1505-00055,0.00,148.00,R,A J H  Pump Supply & Repair Ltd,No
Http://opendatacommunities.org/id/metropolitan-district-council/leeds,Leeds City Council,31/05/2015,Central & Corporate,Commercial Services Trading Services,Supplies and Services,Operational Materials,205,28-May-2015,1505-00056,0.00,9.75,R,A J H  Pump Supply & Repair Ltd,No
Http://opendatacommunities.org/id/metropolitan-district-council/leeds,Leeds City Council,31/05/2015,Central & Corporate,Commercial Services Trading Services,Supplies and Services,Other Hired And Contracted Services,265,06-May-2015,1505-00057,0.00,150.00,R,A J H  Pump Supply & Repair Ltd,No
Http://opendatacommunities.org/id/metropolitan-district-council/leeds,Leeds City Council,31/05/2015,City Development,Libraries  Arts & Heritage,Supplies and Services,Resaleable Materials,204,05-May-2015,1505-00058,0.00,471.80,R,A J Promotions,No
Http://opendatacommunities.org/id/metropolitan-district-council/leeds,Leeds City Council,31/05/2015,City Development,Libraries  Arts & Heritage,Supplies and Services,Resaleable Materials,204,29-May-2015,1505-00059,0.00,158.80,R,A J Promotions,No
Http://opendatacommunities.org/id/metropolitan-district-council/leeds,Leeds City Council,31/05/2015,Environment & Housing,Parks & Countryside,Supplies and Services,Resaleable Materials,204,29-May-2015,1505-00060,0.00,480.00,R,A J Promotions,No
Http://opendatacommunities.org/id/metropolitan-district-council/leeds,Leeds City Council,31/05/2015,Environment & Housing,Parks & Countryside,Supplies and Services,Resaleable Materials,204,29-May-2015,1505-00061,0.00,1055.00,R,A J Promotions,No
Http://opendatacommunities.org/id/metropolitan-district-council/leeds,Leeds City Council,31/05/2015,Central & Corporate,Customer Services,Supplies and Services,Other Hired And Contracted Services,265,07-May-2015,1505-00062,0.00,223.50,R,A Mohammed,No
Http://opendatacommunities.org/id/metropolitan-district-council/leeds,Leeds City Council,31/05/2015,Central & Corporate,Customer Services,Supplies and Services,Other Hired And Contracted Services,265,07-May-2015,1505-00063,0.00,26.50,R,A Mohammed,No
Http://opendatacommunities.org/id/metropolitan-district-council/leeds,Leeds City Council,31/05/2015,Central & Corporate,Customer Services,Supplies and Services,Other Hired And Contracted Services,265,07-May-2015,1505-00064,0.00,121.25,R,A Mohammed,No
Http://opendatacommunities.org/id/metropolitan-district-council/leeds,Leeds City Council,31/05/2015,Central & Corporate,Customer Services,Supplies and Services,Other Hired And Contracted Services,265,07-May-2015,1505-00065,0.00,53.00,R,A Musalam,No
Http://opendatacommunities.org/id/metropolitan-district-council/leeds,Leeds City Council,31/05/2015,Central & Corporate,Customer Services,Supplies and Services,Other Hired And Contracted Services,265,07-May-2015,1505-00066,0.00,20.00,R,A Musalam,No
Http://opendatacommunities.org/id/metropolitan-district-council/leeds,Leeds City Council,31/05/2015,Central & Corporate,Customer Services,Supplies and Services,Other Hired And Contracted Services,265,07-May-2015,1505-00067,0.00,417.50,R,A Namaki,No
Http://opendatacommunities.org/id/metropolitan-district-council/leeds,Leeds City Council,31/05/2015,Central & Corporate,Customer Services,Supplies and Services,Other Hired And Contracted Services,265,07-May-2015,1505-00068,0.00,192.25,R,A Namaki,No
Http://opendatacommunities.org/id/metropolitan-district-council/leeds,Leeds City Council,31/05/2015,Childrens Services,Safeguarding Targeted & Specialist,Third Party Payments,Placement Support,550,21-May-2015,1505-00069,0.00,500.00,R,REDACTED PERSONAL DATA,No
Http://opendatacommunities.org/id/metropolitan-district-council/leeds,Leeds City Council,31/05/2015,City Development,Highways,Supplies and Services,Telephones,213,29-May-2015,1505-00070,0.00,5.00,R,A Q Limited,No
Http://opendatacommunities.org/id/metropolitan-district-council/leeds,Leeds City Council,31/05/2015,Adult Social Care,Services For Older People Under 65 P/Dis,Transfer Payments,Direct Payments,626,06-May-2015,1505-00071,0.00,1223.07,R,REDACTED PERSONAL DATA,No
Http://opendatacommunities.org/id/metropolitan-district-council/leeds,Leeds City Council,31/05/2015,Central & Corporate,Customer Services,Supplies and Services,Other Hired And Contracted Services,265,07-May-2015,1505-00072,0.00,94.80,R,A Sheikholeslami,No
Http://opendatacommunities.org/id/metropolitan-district-council/leeds,Leeds City Council,31/05/2015,Central & Corporate,Customer Services,Supplies and Services,Other Hired And Contracted Services,265,07-May-2015,1505-00073,0.00,12.00,R,A Sheikholeslami,No
Http://opendatacommunities.org/id/metropolitan-district-council/leeds,Leeds City Council,31/05/2015,Central & Corporate,Customer Services,Supplies and Services,Other Hired And Contracted Services,265,07-May-2015,1505-00074,0.00,121.75,R,A Sheikholeslami,No
Http://opendatacommunities.org/id/metropolitan-district-council/leeds,Leeds City Council,31/05/2015,Central & Corporate,Support And Facilities General Fund,Supplies and Services,Other Hired And Contracted Services,265,22-May-2015,1505-00075,0.00,46.25,R,A Star Couriers Ltd,No
Http://opendatacommunities.org/id/metropolitan-district-council/leeds,Leeds City Council,31/05/2015,Environment & Housing,Streetscene Environmental Services,Income,Penalties  Fines & Car Parking Charges,934,01-May-2015,1505-00076,0.00,130.00,R,REDACTED PERSONAL DATA,No
Http://opendatacommunities.org/id/metropolitan-district-council/leeds,Leeds City Council,31/05/2015,Environment & Housing,Housing Leeds Service,Capital,Other Costs,7,21-May-2015,1505-00077,0.00,260.00,C,REDACTED PERSONAL DATA,No
Http://opendatacommunities.org/id/metropolitan-district-council/leeds,Leeds City Council,31/05/2015,Childrens Services,Learning Skills & Universal,Third Party Payments,Services Rendered By Other Organisations,511,15-May-2015,1505-00078,0.00,3404.70,R,A Walding,No
Http://opendatacommunities.org/id/metropolitan-district-council/leeds,Leeds City Council,31/05/2015,Childrens Services,Learning Skills & Universal,Third Party Payments,Services Rendered By Other Organisations,511,28-May-2015,1505-00079,0.00,214.54,R,A Walding,No
Http://opendatacommunities.org/id/metropolitan-district-council/leeds,Leeds City Council,31/05/2015,Childrens Services,Learning Skills & Universal,Third Party Payments,Services Rendered By Other Organisations,511,28-May-2015,1505-00080,0.00,103.35,R,A Walding,No
Http://opendatacommunities.org/id/metropolitan-district-council/leeds,Leeds City Council,31/05/2015,Adult Social Care,Services For Older People Under 65 P/Dis,Transfer Payments,Direct Payments,626,06-May-2015,1505-00081,0.00,2382.63,R,REDACTED PERSONAL DATA,No
Http://opendatacommunities.org/id/metropolitan-district-council/leeds,Leeds City Council,31/05/2015,Environment & Housing,Parks & Countryside,Supplies and Services,Other Hired And Contracted Services,265,15-May-2015,1505-00082,0.00,250.00,R,A Wright,No
Http://opendatacommunities.org/id/metropolitan-district-council/leeds,Leeds City Council,31/05/2015,Central & Corporate,Commercial Services Trading Services,Supplies and Services,Other Hired And Contracted Services,265,15-May-2015,1505-00083,0.00,420.00,R,A1 Bridge Flue Systems,No
Http://opendatacommunities.org/id/metropolitan-district-council/leeds,Leeds City Council,31/05/2015,Adult Social Care,Services For Older People Under 65 P/Dis,Transfer Payments,Personalised Budgets,627,06-May-2015,1505-00084,0.00,822.40,R,REDACTED PERSONAL DATA,No
Http://opendatacommunities.org/id/metropolitan-district-council/leeds,Leeds City Council,31/05/2015,Adult Social Care,Services For Adults Under 65 Mental/Dis,Transfer Payments,Personalised Budgets,627,06-May-2015,1505-00085,0.00,253.24,R,REDACTED PERSONAL DATA,No
Http://opendatacommunities.org/id/metropolitan-district-council/leeds,Leeds City Council as Accountable Body,31/05/2015,Social Services Pooled Budgets,Leeds Community Equip Store Pooled Budgt,Supplies and Services,Other Equipment,203,15-May-2015,1505-00086,0.00,189.00,R,Aat (Gb) Ltd,No
Http://opendatacommunities.org/id/metropolitan-district-council/leeds,Leeds City Council as Accountable Body,31/05/2015,Social Services Pooled Budgets,Leeds Community Equip Store Pooled Budgt,Supplies and Services,Other Equipment,203,15-May-2015,1505-00087,0.00,379.00,R,Aat (Gb) Ltd,No
Http://opendatacommunities.org/id/metropolitan-district-council/leeds,Leeds City Council,31/05/2015,Central & Corporate,Financial Management,Transport,Public Transport Expenses,310,08-May-2015,1505-00088,0.00,476.00,R,Ab Cars (Garforth) Ltd,No
Http://opendatacommunities.org/id/metropolitan-district-council/leeds,Leeds City Council,31/05/2015,Central & Corporate,Financial Management,Support Services,Legal Disbursements,411,21-May-2015,1505-00089,0.00,65.01,R,Abacus Express Limited,No
Http://opendatacommunities.org/id/metropolitan-district-council/leeds,Leeds City Council,31/05/2015,Childrens Services,Safeguarding Targeted & Specialist,Support Services,Legal Disbursements,411,08-May-2015,1505-00090,0.00,26.77,R,Abacus Express Limited,No
Http://opendatacommunities.org/id/metropolitan-district-council/leeds,Leeds City Council,31/05/2015,Childrens Services,Safeguarding Targeted & Specialist,Support Services,Legal Disbursements,411,21-May-2015,1505-00091,0.00,32.09,R,Abacus Express Limited,No
Http://opendatacommunities.org/id/metropolitan-district-council/leeds,Leeds City Council,31/05/2015,Childrens Services,Safeguarding Targeted & Specialist,Support Services,Legal Disbursements,411,28-May-2015,1505-00092,0.00,14.51,R,Abacus Express Limited,No
Http://opendatacommunities.org/id/metropolitan-district-council/leeds,Leeds City Council,31/05/2015,Central & Corporate,Leeds Shared Services,Supplies and Services,Computer Software & Equipment,214,28-May-2015,1505-00093,0.00,7790.00,R,Abacus Software Ltd,No
Http://opendatacommunities.org/id/metropolitan-district-council/leeds,Leeds City Council,31/05/2015,Adult Social Care,Services For Older People - 65 And Over,Third Party Payments,Nursing Care Dementia,574,06-May-2015,1505-00094,0.00,1123.40,R,Abbendon Nursing Home,No
Http://opendatacommunities.org/id/metropolitan-district-council/leeds,Leeds City Council as Accountable Body,31/05/2015,Social Services Pooled Budgets,Jcs For People With Learning Disabilitie,Supplies and Services,Other Equipment,203,08-May-2015,1505-00095,0.00,490.00,R,Abbey Healthcare,No
Http://opendatacommunities.org/id/metropolitan-district-council/leeds,Leeds City Council,31/05/2015,City Development,Libraries  Arts & Heritage  ,Supplies and Services,Hospitality,255,28-Apr-2015,1505-00096,0.00,60.00,R,Abbey House Museum Caf,Yes
Http://opendatacommunities.org/id/metropolitan-district-council/leeds,Leeds City Council,31/05/2015,Adult Social Care,Services For Older People - 65 And Over,Third Party Payments,Residential Care Dementia,571,06-May-2015,1505-00097,0.00,1111.92,R,Abbey Lea Residential Care Home,No
Http://opendatacommunities.org/id/metropolitan-district-council/leeds,Leeds City Council as Accountable Body,31/05/2015,Social Services Pooled Budgets,Jcs For People With Learning Disabilitie,Transfer Payments,Personal Budgets,627,06-May-2015,1505-00098,0.00,379.28,R,REDACTED PERSONAL DATA,No
Http://opendatacommunities.org/id/metropolitan-district-council/leeds,Leeds City Council,31/05/2015,Childrens Services,Learning Skills & Universal,Third Party Payments,Services Rendered By Other Organisations,511,28-May-2015,1505-00099,0.00,390.88,R,Abc Daycare And Ozone Out Of School,No
Http://opendatacommunities.org/id/metropolitan-district-council/leeds,Leeds City Council,31/05/2015,Childrens Services,Learning Skills & Universal,Third Party Payments,Services Rendered By Other Organisations,511,28-May-2015,1505-00100,0.00,763.66,R,Abc Nursery At Lufc,No
Http://opendatacommunities.org/id/metropolitan-district-council/leeds,Leeds City Council,31/05/2015,Childrens Services,Learning Skills & Universal,Third Party Payments,Services Rendered By Other Organisations,511,28-May-2015,1505-00101,0.00,210.29,R,Abc@D'S Childcare Services,No
Http://opendatacommunities.org/id/metropolitan-district-council/leeds,Leeds City Council,31/05/2015,City Development,Employment & Skills,Supplies and Services,Training Allowances,257,22-May-2015,1505-00102,0.00,248.19,R,REDACTED PERSONAL DATA,No
Http://opendatacommunities.org/id/metropolitan-district-council/leeds,Leeds City Council,31/05/2015,City Development,Employment & Skills,Supplies and Services,Training Allowances,257,29-May-2015,1505-00103,0.00,248.19,R,REDACTED PERSONAL DATA,No
Http://opendatacommunities.org/id/metropolitan-district-council/leeds,Leeds City Council,31/05/2015,City Development,Employment & Skills,Supplies and Services,Training Allowances,257,01-May-2015,1505-00104,0.00,248.19,R,REDACTED PERSONAL DATA,No
Http://opendatacommunities.org/id/metropolitan-district-council/leeds,Leeds City Council,31/05/2015,City Development,Employment & Skills,Supplies and Services,Training Allowances,257,08-May-2015,1505-00105,0.00,248.19,R,REDACTED PERSONAL DATA,No
Http://opendatacommunities.org/id/metropolitan-district-council/leeds,Leeds City Council,31/05/2015,City Development,Employment & Skills,Supplies and Services,Training Allowances,257,15-May-2015,1505-00106,0.00,248.19,R,REDACTED PERSONAL DATA,No
Http://opendatacommunities.org/id/metropolitan-district-council/leeds,Leeds City Council,31/05/2015,Central & Corporate,Customer Services,Supplies and Services,Other Hired And Contracted Services,265,06-May-2015,1505-00107,0.00,221.05,R,Abdur Rahman Khan,No
Http://opendatacommunities.org/id/metropolitan-district-council/leeds,Leeds City Council,31/05/2015,Central & Corporate,Customer Services,Supplies and Services,Other Hired And Contracted Services,265,06-May-2015,1505-00108,0.00,203.70,R,Abdur Rahman Khan,No
Http://opendatacommunities.org/id/metropolitan-district-council/leeds,Leeds City Council,31/05/2015,Adult Social Care,Services For Older People - 65 And Over,Third Party Payments,Nursing Home,570,06-May-2015,1505-00109,0.00,17373.32,R,Aberford Hall,No
Http://opendatacommunities.org/id/metropolitan-district-council/leeds,Leeds City Council,31/05/2015,Adult Social Care,Services For Older People - 65 And Over,Third Party Payments,Nursing Care Dementia,574,06-May-2015,1505-00110,0.00,2347.90,R,Aberford Hall,No
Http://opendatacommunities.org/id/metropolitan-district-council/leeds,Leeds City Council,31/05/2015,Adult Social Care,Services For Older People - 65 And Over,Third Party Payments,Residential,580,06-May-2015,1505-00111,0.00,6890.00,R,Aberford Hall,No
Http://opendatacommunities.org/id/metropolitan-district-council/leeds,Leeds City Council,31/05/2015,Central & Corporate,Support And Facilities General Fund,Premises,Rents,141,25-May-2015,1505-00112,0.00,400.00,R,Aberford Village Hall,No
Http://opendatacommunities.org/id/metropolitan-district-council/leeds,Leeds City Council,31/05/2015,Central & Corporate,Commercial Services Trading Services,Supplies and Services,Operational Materials,205,08-May-2015,1505-00113,0.00,225.00,R,Abi Garage Doors Ltd,No
Http://opendatacommunities.org/id/metropolitan-district-council/leeds,Leeds City Council,31/05/2015,Central & Corporate,Commercial Services Trading Services,Supplies and Services,Operational Materials,205,08-May-2015,1505-00114,0.00,225.00,R,Abi Garage Doors Ltd,No
Http://opendatacommunities.org/id/metropolitan-district-council/leeds,Leeds City Council,31/05/2015,Central & Corporate,Commercial Services Trading Services,Supplies and Services,Operational Materials,205,13-May-2015,1505-00115,0.00,12.50,R,Abi Garage Doors Ltd,No
Http://opendatacommunities.org/id/metropolitan-district-council/leeds,Leeds City Council as Accountable Body,31/05/2015,Social Services Pooled Budgets,Jcs For People With Learning Disabilitie,Transfer Payments,Personal Budgets,627,06-May-2015,1505-00116,0.00,1269.12,R,REDACTED PERSONAL DATA,No
Http://opendatacommunities.org/id/metropolitan-district-council/leeds,Leeds City Council,31/05/2015,Central & Corporate,Executive Support,Supplies and Services,'Well Being' Large Grants Projects,230,14-May-2015,1505-00117,0.00,225.00,R,Absolute Social Media,No
Http://opendatacommunities.org/id/metropolitan-district-council/leeds,Leeds City Council,31/05/2015,City Development,Economic Development,Supplies and Services,Publication And Promotion,267,22-May-2015,1505-00118,0.00,110.00,R,Absolute Social Media,No
Http://opendatacommunities.org/id/metropolitan-district-council/leeds,Leeds City Council,31/05/2015,Childrens Services,Learning Skills & Universal,Employees,Agency Staff,8,29-May-2015,1505-00119,0.00,195.00,R,Academic Appointments Ltd,No
Http://opendatacommunities.org/id/metropolitan-district-council/leeds,Leeds City Council,31/05/2015,Childrens Services,Learning Skills & Universal,Third Party Payments,Services Rendered By Other Organisations,511,07-May-2015,1505-00120,0.00,22462.63,R,Academic Appointments Ltd,No
Http://opendatacommunities.org/id/metropolitan-district-council/leeds,Leeds City Council,31/05/2015,Adult Social Care,Services For Adults Under 65 Learn/Dis,Premises,Rents,141,22-May-2015,1505-00121,0.00,551.37,R,Accent Foundation Ltd,No
Http://opendatacommunities.org/id/metropolitan-district-council/leeds,Leeds City Council,31/05/2015,Adult Social Care,Services For Adults Under 65 Learn/Dis,Premises,Rents,141,28-May-2015,1505-00122,0.00,619.35,R,Accent Foundation Ltd,No
Http://opendatacommunities.org/id/metropolitan-district-council/leeds,Leeds City Council,31/05/2015,Environment & Housing,Community Safety,Transport,Hire Of Movable Plant & Machinery,315,29-May-2015,1505-00123,0.00,1307.14,R,Access Hire Nationwide Ltd,No
Http://opendatacommunities.org/id/metropolitan-district-council/leeds,Leeds City Council,31/05/2015,Central & Corporate,Support And Facilities General Fund  ,Supplies and Services,Operational Furniture And Equipment,203,14-Apr-2015,1505-00124,0.00,5.58,R,Access Locksmiths,Yes
Http://opendatacommunities.org/id/metropolitan-district-council/leeds,Leeds City Council,31/05/2015,Central & Corporate,Support And Facilities General Fund  ,Supplies and Services,Operational Furniture And Equipment,203,16-Apr-2015,1505-00125,0.00,9.00,R,Access Locksmiths,Yes
Http://opendatacommunities.org/id/metropolitan-district-council/leeds,Leeds City Council,31/05/2015,Central & Corporate,Support And Facilities General Fund  ,Supplies and Services,Operational Furniture And Equipment,203,21-Apr-2015,1505-00126,0.00,15.17,R,Access Locksmiths,Yes
Http://opendatacommunities.org/id/metropolitan-district-council/leeds,Leeds City Council,31/05/2015,Central & Corporate,Support And Facilities General Fund  ,Supplies and Services,Operational Furniture And Equipment,203,24-Apr-2015,1505-00127,0.00,4.79,R,Access Locksmiths,Yes
Http://opendatacommunities.org/id/metropolitan-district-council/leeds,Leeds City Council,31/05/2015,Central & Corporate,Commercial Services Trading Services,Supplies and Services,Operational Materials,205,28-May-2015,1505-00128,0.00,55.80,R,Access Locksmiths (Leeds) Limited,No
Http://opendatacommunities.org/id/metropolitan-district-council/leeds,Leeds City Council,31/05/2015,Central & Corporate,Commercial Services Trading Services,Supplies and Services,Operational Materials,205,28-May-2015,1505-00129,0.00,26.56,R,Access Locksmiths (Leeds) Limited,No
Http://opendatacommunities.org/id/metropolitan-district-council/leeds,Leeds City Council,31/05/2015,Central & Corporate,Commercial Services Trading Services,Supplies and Services,Operational Materials,205,28-May-2015,1505-00130,0.00,43.71,R,Access Locksmiths (Leeds) Limited,No
Http://opendatacommunities.org/id/metropolitan-district-council/leeds,Leeds City Council,31/05/2015,Central & Corporate,Commercial Services Trading Services,Supplies and Services,Operational Materials,205,28-May-2015,1505-00131,0.00,33.40,R,Access Locksmiths (Leeds) Limited,No
Http://opendatacommunities.org/id/metropolitan-district-council/leeds,Leeds City Council,31/05/2015,Central & Corporate,Commercial Services Trading Services,Supplies and Services,Operational Materials,205,28-May-2015,1505-00132,0.00,21.03,R,Access Locksmiths (Leeds) Limited,No
Http://opendatacommunities.org/id/metropolitan-district-council/leeds,Leeds City Council,31/05/2015,Central & Corporate,Commercial Services Trading Services,Supplies and Services,Operational Materials,205,28-May-2015,1505-00133,0.00,14.23,R,Access Locksmiths (Leeds) Limited,No
Http://opendatacommunities.org/id/metropolitan-district-council/leeds,Leeds City Council,31/05/2015,Central & Corporate,Commercial Services Trading Services,Supplies and Services,Operational Materials,205,28-May-2015,1505-00134,0.00,13.91,R,Access Locksmiths (Leeds) Limited,No
Http://opendatacommunities.org/id/metropolitan-district-council/leeds,Leeds City Council,31/05/2015,Central & Corporate,Commercial Services Trading Services,Supplies and Services,Operational Materials,205,28-May-2015,1505-00135,0.00,81.00,R,Access Locksmiths (Leeds) Limited,No
Http://opendatacommunities.org/id/metropolitan-district-council/leeds,Leeds City Council,31/05/2015,Central & Corporate,Commercial Services Trading Services,Supplies and Services,Operational Materials,205,22-May-2015,1505-00136,0.00,74.20,R,Access Locksmiths (Leeds) Limited,No
Http://opendatacommunities.org/id/metropolitan-district-council/leeds,Leeds City Council,31/05/2015,Central & Corporate,Commercial Services Trading Services,Supplies and Services,Operational Materials,205,01-May-2015,1505-00137,0.00,65.43,R,Access Locksmiths (Leeds) Limited,No
Http://opendatacommunities.org/id/metropolitan-district-council/leeds,Leeds City Council,31/05/2015,Central & Corporate,Commercial Services Trading Services,Supplies and Services,Operational Materials,205,01-May-2015,1505-00138,0.00,33.66,R,Access Locksmiths (Leeds) Limited,No
Http://opendatacommunities.org/id/metropolitan-district-council/leeds,Leeds City Council,31/05/2015,Central & Corporate,Commercial Services Trading Services,Supplies and Services,Operational Materials,205,01-May-2015,1505-00139,0.00,6.68,R,Access Locksmiths (Leeds) Limited,No
Http://opendatacommunities.org/id/metropolitan-district-council/leeds,Leeds City Council,31/05/2015,Environment & Housing,Parks & Countryside,Supplies and Services,Operational Materials,205,28-May-2015,1505-00140,0.00,298.00,R,Access Locksmiths (Leeds) Limited,No
Http://opendatacommunities.org/id/metropolitan-district-council/leeds,Leeds City Council,31/05/2015,Environment & Housing,Waste Management,Supplies and Services,Operational Furniture And Equipment,203,22-May-2015,1505-00141,0.00,168.80,R,Access Locksmiths (Leeds) Limited,No
Http://opendatacommunities.org/id/metropolitan-district-council/leeds,Leeds City Council,31/05/2015,Strategic Landlord,Housing Management,Premises,General Maintenance,104,29-May-2015,1505-00142,0.00,12.50,R,Access Locksmiths (Leeds) Limited,No
Http://opendatacommunities.org/id/metropolitan-district-council/leeds,Leeds City Council,31/05/2015,Strategic Landlord,Housing Management,Supplies and Services,Operational Furniture And Equipment,203,22-May-2015,1505-00143,0.00,25.00,R,Access Locksmiths (Leeds) Limited,No
Http://opendatacommunities.org/id/metropolitan-district-council/leeds,Leeds City Council,31/05/2015,Strategic Landlord,Housing Management,Supplies and Services,Operational Materials,205,22-May-2015,1505-00144,0.00,12.50,R,Access Locksmiths (Leeds) Limited,No
Http://opendatacommunities.org/id/metropolitan-district-council/leeds,Leeds City Council,31/05/2015,Strategic Landlord,Housing Management,Supplies and Services,Operational Materials,205,29-May-2015,1505-00145,0.00,103.70,R,Access Locksmiths (Leeds) Limited,No
Http://opendatacommunities.org/id/metropolitan-district-council/leeds,Leeds City Council,31/05/2015,Strategic Landlord,Property and Contracts,Premises,Maintenance Of Buildings,101,22-May-2015,1505-00146,0.00,282.00,R,Access Locksmiths (Leeds) Limited,No
Http://opendatacommunities.org/id/metropolitan-district-council/leeds,Leeds City Council,31/05/2015,Strategic Landlord,Property and Contracts,Premises,General Maintenance,104,01-May-2015,1505-00147,0.00,18.00,R,Access Locksmiths (Leeds) Limited,No
Http://opendatacommunities.org/id/metropolitan-district-council/leeds,Leeds City Council,31/05/2015,Strategic Landlord,Property and Contracts,Premises,General Maintenance,104,01-May-2015,1505-00148,0.00,126.51,R,Access Locksmiths (Leeds) Limited,No
Http://opendatacommunities.org/id/metropolitan-district-council/leeds,Leeds City Council,31/05/2015,Strategic Landlord,Property and Contracts,Premises,General Maintenance,104,22-May-2015,1505-00149,0.00,31.62,R,Access Locksmiths (Leeds) Limited,No
Http://opendatacommunities.org/id/metropolitan-district-council/leeds,Leeds City Council,31/05/2015,Central & Corporate,Commercial Services Trading Services,Supplies and Services,Other Hired And Contracted Services,265,29-May-2015,1505-00150,0.00,174.00,R,Access Opening Systems Limited,No
Http://opendatacommunities.org/id/metropolitan-district-council/leeds,Leeds City Council,31/05/2015,Central & Corporate,Commercial Services Trading Services,Supplies and Services,Other Hired And Contracted Services,265,29-May-2015,1505-00151,0.00,754.00,R,Access Opening Systems Limited,No
Http://opendatacommunities.org/id/metropolitan-district-council/leeds,Leeds City Council,31/05/2015,Central & Corporate,Commercial Services Trading Services,Supplies and Services,Other Hired And Contracted Services,265,29-May-2015,1505-00152,0.00,85.00,R,Access Opening Systems Limited,No
Http://opendatacommunities.org/id/metropolitan-district-council/leeds,Leeds City Council,31/05/2015,Central & Corporate,Commercial Services Trading Services,Supplies and Services,Other Hired And Contracted Services,265,29-May-2015,1505-00153,0.00,85.00,R,Access Opening Systems Limited,No
Http://opendatacommunities.org/id/metropolitan-district-council/leeds,Leeds City Council,31/05/2015,Central & Corporate,Commercial Services Trading Services,Supplies and Services,Other Hired And Contracted Services,265,29-May-2015,1505-00154,0.00,103.75,R,Access Opening Systems Limited,No
Http://opendatacommunities.org/id/metropolitan-district-council/leeds,Leeds City Council,31/05/2015,Central & Corporate,Commercial Services Trading Services,Supplies and Services,Other Hired And Contracted Services,265,29-May-2015,1505-00155,0.00,242.75,R,Access Opening Systems Limited,No
Http://opendatacommunities.org/id/metropolitan-district-council/leeds,Leeds City Council,31/05/2015,Central & Corporate,Commercial Services Trading Services,Supplies and Services,Other Hired And Contracted Services,265,20-May-2015,1505-00156,0.00,830.00,R,Access Opening Systems Limited,No
Http://opendatacommunities.org/id/metropolitan-district-council/leeds,Leeds City Council,31/05/2015,Central & Corporate,Commercial Services Trading Services,Supplies and Services,Operational Materials,205,22-May-2015,1505-00157,0.00,24.00,R,Access Opening Systems Limited,No
Http://opendatacommunities.org/id/metropolitan-district-council/leeds,Leeds City Council,31/05/2015,Central & Corporate,Commercial Services Trading Services,Supplies and Services,Operational Materials,205,22-May-2015,1505-00158,0.00,85.00,R,Access Opening Systems Limited,No
Http://opendatacommunities.org/id/metropolitan-district-council/leeds,Leeds City Council,31/05/2015,Central & Corporate,Commercial Services Trading Services,Supplies and Services,Operational Materials,205,22-May-2015,1505-00159,0.00,225.00,R,Access Opening Systems Limited,No
Http://opendatacommunities.org/id/metropolitan-district-council/leeds,Leeds City Council,31/05/2015,Central & Corporate,Commercial Services Trading Services,Supplies and Services,Operational Materials,205,20-May-2015,1505-00160,0.00,100.00,R,Access Opening Systems Limited,No
Http://opendatacommunities.org/id/metropolitan-district-council/leeds,Leeds City Council,31/05/2015,Central & Corporate,Commercial Services Trading Services,Supplies and Services,Operational Materials,205,15-May-2015,1505-00161,0.00,112.00,R,Access Opening Systems Limited,No
Http://opendatacommunities.org/id/metropolitan-district-council/leeds,Leeds City Council,31/05/2015,Central & Corporate,Commercial Services Trading Services,Supplies and Services,Operational Materials,205,15-May-2015,1505-00162,0.00,112.00,R,Access Opening Systems Limited,No
Http://opendatacommunities.org/id/metropolitan-district-council/leeds,Leeds City Council,31/05/2015,Central & Corporate,Commercial Services Trading Services,Supplies and Services,Operational Materials,205,15-May-2015,1505-00163,0.00,40.00,R,Access Opening Systems Limited,No
Http://opendatacommunities.org/id/metropolitan-district-council/leeds,Leeds City Council,31/05/2015,Central & Corporate,Commercial Services Trading Services,Supplies and Services,Operational Materials,205,13-May-2015,1505-00164,0.00,184.50,R,Access Opening Systems Limited,No
Http://opendatacommunities.org/id/metropolitan-district-council/leeds,Leeds City Council,31/05/2015,Central & Corporate,Commercial Services Trading Services,Supplies and Services,Operational Materials,205,13-May-2015,1505-00165,0.00,122.00,R,Access Opening Systems Limited,No
Http://opendatacommunities.org/id/metropolitan-district-council/leeds,Leeds City Council,31/05/2015,Central & Corporate,Commercial Services Trading Services,Supplies and Services,Operational Materials,205,13-May-2015,1505-00166,0.00,378.02,R,Access Opening Systems Limited,No
Http://opendatacommunities.org/id/metropolitan-district-council/leeds,Leeds City Council,31/05/2015,Central & Corporate,Commercial Services Trading Services,Supplies and Services,Operational Materials,205,13-May-2015,1505-00167,0.00,600.26,R,Access Opening Systems Limited,No
Http://opendatacommunities.org/id/metropolitan-district-council/leeds,Leeds City Council,31/05/2015,Central & Corporate,Commercial Services Trading Services,Supplies and Services,Operational Materials,205,13-May-2015,1505-00168,0.00,445.00,R,Access Opening Systems Limited,No
Http://opendatacommunities.org/id/metropolitan-district-council/leeds,Leeds City Council,31/05/2015,Central & Corporate,Commercial Services Trading Services,Supplies and Services,Operational Materials,205,08-May-2015,1505-00169,0.00,35.00,R,Access Opening Systems Limited,No
Http://opendatacommunities.org/id/metropolitan-district-council/leeds,Leeds City Council,31/05/2015,Central & Corporate,Commercial Services Trading Services,Supplies and Services,Operational Materials,205,05-May-2015,1505-00170,0.00,135.00,R,Access Opening Systems Limited,No
Http://opendatacommunities.org/id/metropolitan-district-council/leeds,Leeds City Council,31/05/2015,Central & Corporate,Commercial Services Trading Services,Supplies and Services,Operational Materials,205,05-May-2015,1505-00171,0.00,135.00,R,Access Opening Systems Limited,No
Http://opendatacommunities.org/id/metropolitan-district-council/leeds,Leeds City Council,31/05/2015,Childrens Services,Safeguarding Targeted & Specialist,Premises,General Maintenance,104,14-May-2015,1505-00172,0.00,95.00,R,Access Solutions Northern Ltd,No
Http://opendatacommunities.org/id/metropolitan-district-council/leeds,Leeds City Council,31/05/2015,City Development,Recreation,Supplies and Services,Other Hired And Contracted Services,265,07-May-2015,1505-00173,0.00,135.00,R,Ace Container Services Limited,No
Http://opendatacommunities.org/id/metropolitan-district-council/leeds,Leeds City Council,31/05/2015,City Development,Recreation,Transport,External Hire -Occasional,304,29-May-2015,1505-00174,0.00,128.65,R,Ace Container Services Limited,No
Http://opendatacommunities.org/id/metropolitan-district-council/leeds,Leeds City Council,31/05/2015,Central & Corporate,Commercial Services Trading Services,Supplies and Services,Advertising,211,01-May-2015,1505-00175,0.00,1259.72,R,Ace Distribution & Design,No
Http://opendatacommunities.org/id/metropolitan-district-council/leeds,Leeds City Council,31/05/2015,Childrens Services,Safeguarding Targeted & Specialist,Third Party Payments,SEN Placements,566,07-May-2015,1505-00176,0.00,15933.00,R,Ackworth School,No
Http://opendatacommunities.org/id/metropolitan-district-council/leeds,Leeds City Council,31/05/2015,Childrens Services,Safeguarding Targeted & Specialist,Third Party Payments,SEN Placements,566,07-May-2015,1505-00177,0.00,22433.00,R,Ackworth School,No
Http://opendatacommunities.org/id/metropolitan-district-council/leeds,Leeds City Council,31/05/2015,Childrens Services,Safeguarding Targeted & Specialist,Third Party Payments,SEN Placements,566,07-May-2015,1505-00178,0.00,16081.30,R,Ackworth School,No
Http://opendatacommunities.org/id/metropolitan-district-council/leeds,Leeds City Council,31/05/2015,Childrens Services,Safeguarding Targeted & Specialist,Third Party Payments,SEN Placements,566,07-May-2015,1505-00179,0.00,15933.00,R,Ackworth School,No
Http://opendatacommunities.org/id/metropolitan-district-council/leeds,Leeds City Council,31/05/2015,Childrens Services,Safeguarding Targeted & Specialist,Third Party Payments,Independent Fostering Agencies,509,01-May-2015,1505-00180,0.00,6650.84,R,Acorn Care And Education Ltd,No
Http://opendatacommunities.org/id/metropolitan-district-council/leeds,Leeds City Council,31/05/2015,Childrens Services,Safeguarding Targeted & Specialist,Third Party Payments,SEN Placements,566,08-May-2015,1505-00181,0.00,18138.67,R,Acorn Care And Education Ltd,No
Http://opendatacommunities.org/id/metropolitan-district-council/leeds,Leeds City Council,31/05/2015,Childrens Services,Safeguarding Targeted & Specialist,Third Party Payments,Independent Fostering Agencies,509,01-May-2015,1505-00182,0.00,6953.16,R,Acorn Care And Education Ltd,No
Http://opendatacommunities.org/id/metropolitan-district-council/leeds,Leeds City Council,31/05/2015,Childrens Services,Safeguarding Targeted & Specialist,Third Party Payments,Independent Fostering Agencies,509,13-May-2015,1505-00183,0.00,5014.20,R,Acorn House (Fostering Services) Ltd,No
Http://opendatacommunities.org/id/metropolitan-district-council/leeds,Leeds City Council,31/05/2015,Childrens Services,Safeguarding Targeted & Specialist,Third Party Payments,Independent Fostering Agencies,509,13-May-2015,1505-00184,0.00,3642.90,R,Acorn House (Fostering Services) Ltd,No
Http://opendatacommunities.org/id/metropolitan-district-council/leeds,Leeds City Council,31/05/2015,Adult Social Care,Other Adult Services,Third Party Payments,Residential - Drugs & Alcohol,583,06-May-2015,1505-00185,0.00,12419.00,R,Acorn Services,No
Http://opendatacommunities.org/id/metropolitan-district-council/leeds,Leeds City Council,31/05/2015,Childrens Services,Learning Skills & Universal,Third Party Payments,Services Rendered By Other Organisations,511,28-May-2015,1505-00186,0.00,284.18,R,Acorns Nursery,No
Http://opendatacommunities.org/id/metropolitan-district-council/leeds,Leeds City Council,31/05/2015,Adult Social Care,Services For Adults Under 65 Mental/Dis,Third Party Payments,Residential,580,06-May-2015,1505-00187,0.00,2565.36,R,Acre Green,No
Http://opendatacommunities.org/id/metropolitan-district-council/leeds,Leeds City Council,31/05/2015,Adult Social Care,Services For Older People - 65 And Over,Third Party Payments,Nursing Home,570,06-May-2015,1505-00188,0.00,20470.28,R,Acre Green,No
Http://opendatacommunities.org/id/metropolitan-district-council/leeds,Leeds City Council,31/05/2015,Adult Social Care,Services For Older People - 65 And Over,Third Party Payments,Residential Care Dementia,571,06-May-2015,1505-00189,0.00,1357.16,R,Acre Green,No
Http://opendatacommunities.org/id/metropolitan-district-council/leeds,Leeds City Council,31/05/2015,Adult Social Care,Services For Older People - 65 And Over,Third Party Payments,Nursing Care Dementia,574,06-May-2015,1505-00190,0.00,1295.28,R,Acre Green,No
Http://opendatacommunities.org/id/metropolitan-district-council/leeds,Leeds City Council,31/05/2015,Adult Social Care,Services For Older People - 65 And Over,Third Party Payments,Residential,580,06-May-2015,1505-00191,0.00,10785.46,R,Acre Green,No
Http://opendatacommunities.org/id/metropolitan-district-council/leeds,Leeds City Council,31/05/2015,Childrens Services,Learning Skills & Universal,Third Party Payments,Services Rendered By Other Organisations,511,28-May-2015,1505-00192,0.00,995.33,R,Acre Wood Day Nursery,No
Http://opendatacommunities.org/id/metropolitan-district-council/leeds,Leeds City Council,31/05/2015,Adult Social Care,Services For Adults Under 65 Mental/Dis,Third Party Payments,Services Provided By Other NHS Bodies,522,11-May-2015,1505-00193,0.00,26.10,R,Action First Ipeople Ltd,No
Http://opendatacommunities.org/id/metropolitan-district-council/leeds,Leeds City Council,31/05/2015,Adult Social Care,Services For Adults Under 65 Mental/Dis,Third Party Payments,Services Provided By Other NHS Bodies,522,18-May-2015,1505-00194,0.00,2195.00,R,Action First Ipeople Ltd,No
Http://opendatacommunities.org/id/metropolitan-district-council/leeds,Leeds City Council,31/05/2015,Adult Social Care,Services For Adults Under 65 Mental/Dis,Third Party Payments,Services Provided By Other NHS Bodies,522,18-May-2015,1505-00195,0.00,1500.00,R,Action First Ipeople Ltd,No
Http://opendatacommunities.org/id/metropolitan-district-council/leeds,Leeds City Council,31/05/2015,Adult Social Care,Services For Adults Under 65 Mental/Dis,Third Party Payments,Services Provided By Other NHS Bodies,522,29-May-2015,1505-00196,0.00,2100.00,R,Action First Ipeople Ltd,No
Http://opendatacommunities.org/id/metropolitan-district-council/leeds,Leeds City Council,31/05/2015,Adult Social Care,Services For Adults Under 65 Mental/Dis,Third Party Payments,Services Provided By Other NHS Bodies,522,22-May-2015,1505-00197,0.00,600.00,R,Action First Ipeople Ltd,No
Http://opendatacommunities.org/id/metropolitan-district-council/leeds,Leeds City Council,31/05/2015,Adult Social Care,Services For Adults Under 65 Mental/Dis,Third Party Payments,Services Provided By Other NHS Bodies,522,29-May-2015,1505-00198,0.00,695.00,R,Action First Ipeople Ltd,No
Http://opendatacommunities.org/id/metropolitan-district-council/leeds,Leeds City Council,31/05/2015,Childrens Services,Safeguarding Targeted & Specialist,Third Party Payments,Independent Fostering Agencies,509,22-May-2015,1505-00199,0.00,4622.40,R,Action For Children Services Ltd,No
Http://opendatacommunities.org/id/metropolitan-district-council/leeds,Leeds City Council,31/05/2015,Childrens Services,Safeguarding Targeted & Specialist,Third Party Payments,Independent Fostering Agencies,509,22-May-2015,1505-00200,0.00,497.10,R,Action For Children Services Ltd,No
Http://opendatacommunities.org/id/metropolitan-district-council/leeds,Leeds City Council,31/05/2015,Childrens Services,Learning Skills & Universal,Third Party Payments,Services Rendered By Other Organisations,511,28-May-2015,1505-00201,0.00,326.90,R,Active Kids Day Nursery,No
Http://opendatacommunities.org/id/metropolitan-district-council/leeds,Leeds City Council,31/05/2015,Environment & Housing,Parks & Countryside,Supplies and Services,Resaleable Materials,204,08-May-2015,1505-00202,0.00,226.00,R,Acushnet Europe Limited,No
Http://opendatacommunities.org/id/metropolitan-district-council/leeds,Leeds City Council as Accountable Body,31/05/2015,Social Services Pooled Budgets,Leeds Community Equip Store Pooled Budgt,Supplies and Services,Other Equipment,203,01-May-2015,1505-00203,0.00,65.00,R,Acute Sales Limited,No
Http://opendatacommunities.org/id/metropolitan-district-council/leeds,Leeds City Council,31/05/2015,Central & Corporate,Support And Facilities General Fund,Supplies and Services,Other Hired And Contracted Services,265,13-May-2015,1505-00204,0.00,930.00,R,Ad3 Envelope Printers Limited,No
Http://opendatacommunities.org/id/metropolitan-district-council/leeds,Leeds City Council,31/05/2015,Adult Social Care,Services For Older People Under 65 P/Dis,Transfer Payments,Personalised Budgets,627,06-May-2015,1505-00205,0.00,748.00,R,REDACTED PERSONAL DATA,No
Http://opendatacommunities.org/id/metropolitan-district-council/leeds,Leeds City Council as Accountable Body,31/05/2015,Social Services Pooled Budgets,Jcs For People With Learning Disabilitie,Transfer Payments,Personal Budgets,627,06-May-2015,1505-00206,0.00,1750.52,R,REDACTED PERSONAL DATA,No
Http://opendatacommunities.org/id/metropolitan-district-council/leeds,Leeds City Council,31/05/2015,Adult Social Care,Services For Older People Under 65 P/Dis,Transfer Payments,Personalised Budgets,627,06-May-2015,1505-00207,0.00,576.00,R,REDACTED PERSONAL DATA,No
Http://opendatacommunities.org/id/metropolitan-district-council/leeds,Leeds City Council,31/05/2015,Adult Social Care,Services For Adults Under 65 Mental/Dis,Transfer Payments,Direct Payments,626,06-May-2015,1505-00208,0.00,444.40,R,REDACTED PERSONAL DATA,No
Http://opendatacommunities.org/id/metropolitan-district-council/leeds,Leeds City Council as Accountable Body,31/05/2015,Social Services Pooled Budgets,Jcs For People With Learning Disabilitie,Transfer Payments,Direct Payments,626,06-May-2015,1505-00209,0.00,859.60,R,REDACTED PERSONAL DATA,No
Http://opendatacommunities.org/id/metropolitan-district-council/leeds,Leeds City Council,31/05/2015,Childrens Services,Partnership Development & Leadership,Supplies and Services,Memberships,226,15-May-2015,1505-00210,0.00,3135.00,R,Adcs,No
Http://opendatacommunities.org/id/metropolitan-district-council/leeds,Leeds City Council,31/05/2015,Central & Corporate,Leeds Shared Services,Support Services,Professional Legal Services Charges,410,15-May-2015,1505-00211,0.00,1282.50,R,Addleshaw Goddard,No
Http://opendatacommunities.org/id/metropolitan-district-council/leeds,Leeds City Council,31/05/2015,Central & Corporate,Human Resources,Employees,Occupational Health,85,29-May-2015,1505-00212,0.00,100.00,R,Addlestone & Partners,No
Http://opendatacommunities.org/id/metropolitan-district-council/leeds,Leeds City Council,31/05/2015,Environment & Housing,Parks & Countryside,Supplies and Services,Other Hired And Contracted Services,265,07-May-2015,1505-00213,0.00,7112.00,R,Addlestone & Partners,No
Http://opendatacommunities.org/id/metropolitan-district-council/leeds,Leeds City Council,31/05/2015,Central & Corporate,Support And Facilities General Fund,Premises,Rents,141,19-May-2015,1505-00214,0.00,320.00,R,Adel Methodist Church Trustees,No
Http://opendatacommunities.org/id/metropolitan-district-council/leeds,Leeds City Council,31/05/2015,Childrens Services,Learning Skills & Universal,Third Party Payments,Services Rendered By Other Organisations,511,28-May-2015,1505-00215,0.00,828.17,R,Adel Pre School,No
Http://opendatacommunities.org/id/metropolitan-district-council/leeds,Leeds City Council,31/05/2015,Childrens Services,Learning Skills & Universal,Third Party Payments,Services Rendered By Voluntary Sector,505,28-May-2015,1505-00216,0.00,206.70,R,Adel Pre School,No
Http://opendatacommunities.org/id/metropolitan-district-council/leeds,Leeds City Council,31/05/2015,Central & Corporate,Support And Facilities General Fund,Premises,Rents,141,19-May-2015,1505-00217,0.00,600.00,R,Adel War Memorial Association,No
Http://opendatacommunities.org/id/metropolitan-district-council/leeds,Leeds City Council,31/05/2015,Adult Social Care,Services For Older People Under 65 P/Dis,Transfer Payments,Personalised Budgets,627,06-May-2015,1505-00218,0.00,1866.32,R,REDACTED PERSONAL DATA,No
Http://opendatacommunities.org/id/metropolitan-district-council/leeds,Leeds City Council,31/05/2015,Adult Social Care,Services For Older People - 65 And Over,Third Party Payments,Nursing Home,570,06-May-2015,1505-00219,0.00,1023.08,R,Aden House,No
Http://opendatacommunities.org/id/metropolitan-district-council/leeds,Leeds City Council,31/05/2015,Adult Social Care,Services For Older People - 65 And Over,Third Party Payments,Residential Care Dementia,571,06-May-2015,1505-00220,0.00,1291.04,R,Aden House,No
Http://opendatacommunities.org/id/metropolitan-district-council/leeds,Leeds City Council,31/05/2015,Central & Corporate,Commercial Services Trading Services,Supplies and Services,Operational Materials,205,29-May-2015,1505-00221,0.00,95.44,R,Adi Global,No
Http://opendatacommunities.org/id/metropolitan-district-council/leeds,Leeds City Council,31/05/2015,Central & Corporate,Commercial Services Trading Services,Supplies and Services,Operational Materials,205,22-May-2015,1505-00222,0.00,57.19,R,Adi Global,No
Http://opendatacommunities.org/id/metropolitan-district-council/leeds,Leeds City Council,31/05/2015,Central & Corporate,Commercial Services Trading Services,Supplies and Services,Operational Materials,205,20-May-2015,1505-00223,0.00,-19.51,R,Adi Global,No
Http://opendatacommunities.org/id/metropolitan-district-council/leeds,Leeds City Council,31/05/2015,Central & Corporate,Commercial Services Trading Services,Supplies and Services,Operational Materials,205,20-May-2015,1505-00224,0.00,19.51,R,Adi Global,No
Http://opendatacommunities.org/id/metropolitan-district-council/leeds,Leeds City Council,31/05/2015,Central & Corporate,Support And Facilities General Fund  ,Supplies and Services,Other Hired And Contracted Services,265,09-Apr-2015,1505-00225,0.00,98.83,R,Adi-Gardiner Ltd,Yes
Http://opendatacommunities.org/id/metropolitan-district-council/leeds,Leeds City Council,31/05/2015,Central & Corporate,Support And Facilities General Fund  ,Supplies and Services,Other Hired And Contracted Services,265,13-Apr-2015,1505-00226,0.00,36.75,R,Adi-Gardiner Ltd,Yes
Http://opendatacommunities.org/id/metropolitan-district-council/leeds,Leeds City Council,31/05/2015,Central & Corporate,Support And Facilities General Fund  ,Supplies and Services,Other Hired And Contracted Services,265,20-Apr-2015,1505-00227,0.00,37.15,R,Adi-Gardiner Ltd,Yes
Http://opendatacommunities.org/id/metropolitan-district-council/leeds,Leeds City Council,31/05/2015,Central & Corporate,Commercial Services Trading Services,Supplies and Services,Other Hired And Contracted Services,265,08-May-2015,1505-00228,0.00,310.00,R,Admas Limited,No
Http://opendatacommunities.org/id/metropolitan-district-council/leeds,Leeds City Council,31/05/2015,Central & Corporate,Commercial Services Trading Services,Supplies and Services,Other Hired And Contracted Services,265,08-May-2015,1505-00229,0.00,310.00,R,Admas Limited,No
Http://opendatacommunities.org/id/metropolitan-district-council/leeds,Leeds City Council,31/05/2015,Central & Corporate,Commercial Services Trading Services,Supplies and Services,Other Hired And Contracted Services,265,08-May-2015,1505-00230,0.00,490.00,R,Admas Limited,No
Http://opendatacommunities.org/id/metropolitan-district-council/leeds,Leeds City Council,31/05/2015,Central & Corporate,Commercial Services Trading Services,Supplies and Services,Other Hired And Contracted Services,265,29-May-2015,1505-00231,0.00,180.00,R,Admas Limited,No
Http://opendatacommunities.org/id/metropolitan-district-council/leeds,Leeds City Council,31/05/2015,Central & Corporate,Support And Facilities General Fund,Supplies and Services,Other Hired And Contracted Services,265,22-May-2015,1505-00232,0.00,610.00,R,Admas Limited,No
Http://opendatacommunities.org/id/metropolitan-district-council/leeds,Leeds City Council,31/05/2015,Environment & Housing,Environmental Health,Capital,Other Costs,7,29-May-2015,1505-00233,0.00,390.00,C,Admas Limited,No
Http://opendatacommunities.org/id/metropolitan-district-council/leeds,Leeds City Council,31/05/2015,Environment & Housing,Environmental Health,Capital,Other Costs,7,22-May-2015,1505-00234,0.00,400.00,C,Admas Limited,No
Http://opendatacommunities.org/id/metropolitan-district-council/leeds,Leeds City Council,31/05/2015,Environment & Housing,Environmental Health,Capital,Other Costs,7,18-May-2015,1505-00235,0.00,680.00,C,Admas Limited,No
Http://opendatacommunities.org/id/metropolitan-district-council/leeds,Leeds City Council,31/05/2015,Environment & Housing,Environmental Health,Capital,Other Costs,7,12-May-2015,1505-00236,0.00,430.00,C,Admas Limited,No
Http://opendatacommunities.org/id/metropolitan-district-council/leeds,Leeds City Council,31/05/2015,Central & Corporate,Support And Facilities General Fund  ,Supplies and Services,Computer Software & Equipment,214,21-Apr-2015,1505-00237,0.00,18.26,R,Adobe Creative Cloud,Yes
Http://opendatacommunities.org/id/metropolitan-district-council/leeds,Leeds City Council,31/05/2015,Childrens Services,Safeguarding Targeted & Specialist,Third Party Payments,Independent Fostering Agencies,509,25-May-2015,1505-00238,0.00,5492.00,R,Adolescent And Childrens Trust,No
Http://opendatacommunities.org/id/metropolitan-district-council/leeds,Leeds City Council,31/05/2015,Childrens Services,Safeguarding Targeted & Specialist,Third Party Payments,Independent Fostering Agencies,509,07-May-2015,1505-00239,0.00,300.00,R,Adolescent And Childrens Trust,No
Http://opendatacommunities.org/id/metropolitan-district-council/leeds,Leeds City Council,31/05/2015,Childrens Services,Safeguarding Targeted & Specialist,Third Party Payments,Independent Fostering Agencies,509,07-May-2015,1505-00240,0.00,2852.00,R,Adolescent And Childrens Trust,No
Http://opendatacommunities.org/id/metropolitan-district-council/leeds,Leeds City Council,31/05/2015,Childrens Services,Safeguarding Targeted & Specialist,Third Party Payments,Independent Fostering Agencies,509,07-May-2015,1505-00241,0.00,2713.50,R,Adolescent And Childrens Trust,No
Http://opendatacommunities.org/id/metropolitan-district-council/leeds,Leeds City Council,31/05/2015,Childrens Services,Safeguarding Targeted & Specialist,Third Party Payments,Independent Fostering Agencies,509,08-May-2015,1505-00242,0.00,3100.00,R,Adolescent And Childrens Trust,No
Http://opendatacommunities.org/id/metropolitan-district-council/leeds,Leeds City Council,31/05/2015,Adult Social Care,Services For Older People Under 65 P/Dis,Transfer Payments,Personalised Budgets,627,06-May-2015,1505-00243,0.00,312.00,R,REDACTED PERSONAL DATA,No
Http://opendatacommunities.org/id/metropolitan-district-council/leeds,Leeds City Council,31/05/2015,Central & Corporate,Support And Facilities General Fund  ,Supplies and Services,Teaching Materials,202,16-Apr-2015,1505-00244,0.00,43.99,R,Adrienne Florists Ltd,Yes
Http://opendatacommunities.org/id/metropolitan-district-council/leeds,Leeds City Council,31/05/2015,Adult Social Care,Other Adult Services,Third Party Payments,Payments To Voluntary Organisations,561,01-May-2015,1505-00245,0.00,18656.25,R,Ads,No
Http://opendatacommunities.org/id/metropolitan-district-council/leeds,Leeds City Council,31/05/2015,Central & Corporate,Support And Facilities General Fund  ,Supplies and Services,Other Hired And Contracted Services,265,09-Apr-2015,1505-00246,0.00,39.00,R,Adt Cardiff Cc,Yes
Http://opendatacommunities.org/id/metropolitan-district-council/leeds,Leeds City Council,31/05/2015,Central & Corporate,Commercial Services Trading Services,Premises,Maintenance Of Buildings,101,14-May-2015,1505-00247,0.00,323.00,R,Adt Fire And Security Plc,No
Http://opendatacommunities.org/id/metropolitan-district-council/leeds,Leeds City Council,31/05/2015,Central & Corporate,Commercial Services Trading Services,Premises,Maintenance Of Buildings,101,14-May-2015,1505-00248,0.00,143.42,R,Adt Fire And Security Plc,No
Http://opendatacommunities.org/id/metropolitan-district-council/leeds,Leeds City Council,31/05/2015,Central & Corporate,Commercial Services Trading Services,Premises,Maintenance Of Buildings,101,01-May-2015,1505-00249,0.00,952.18,R,Adt Fire And Security Plc,No
Http://opendatacommunities.org/id/metropolitan-district-council/leeds,Leeds City Council,31/05/2015,Central & Corporate,Commercial Services Trading Services,Premises,Maintenance Of Buildings,101,01-May-2015,1505-00250,0.00,1234.89,R,Adt Fire And Security Plc,No
Http://opendatacommunities.org/id/metropolitan-district-council/leeds,Leeds City Council,31/05/2015,Central & Corporate,Commercial Services Trading Services,Premises,Maintenance Of Buildings,101,14-May-2015,1505-00251,0.00,637.36,R,Adt Fire And Security Plc,No
Http://opendatacommunities.org/id/metropolitan-district-council/leeds,Leeds City Council,31/05/2015,Central & Corporate,Commercial Services Trading Services,Premises,Maintenance Of Buildings,101,01-May-2015,1505-00252,0.00,705.02,R,Adt Fire And Security Plc,No
Http://opendatacommunities.org/id/metropolitan-district-council/leeds,Leeds City Council,31/05/2015,Strategic Landlord,Housing Management,Supplies and Services,Other Hired And Contracted Services,265,29-May-2015,1505-00253,0.00,39.00,R,Adt Fire And Security Plc,No
Http://opendatacommunities.org/id/metropolitan-district-council/leeds,Leeds City Council,31/05/2015,Strategic Landlord,Housing Management,Premises,Premises Security Services,162,08-May-2015,1505-00254,0.00,130.96,R,Adt Fire And Security Plc,No
Http://opendatacommunities.org/id/metropolitan-district-council/leeds,Leeds City Council,31/05/2015,Adult Social Care,Services For Adults Under 65 Mental/Dis,Third Party Payments,Nursing Home,570,06-May-2015,1505-00255,0.00,1539.12,R,Adult Supported Living Ltd,No
Http://opendatacommunities.org/id/metropolitan-district-council/leeds,Leeds City Council,31/05/2015,City Development,Libraries  Arts & Heritage,Supplies and Services,External Audit Fees,261,08-May-2015,1505-00256,0.00,85.00,R,Advance Stocks Ltd,No
Http://opendatacommunities.org/id/metropolitan-district-council/leeds,Leeds City Council,31/05/2015,City Development,Libraries  Arts & Heritage,Supplies and Services,External Audit Fees,261,29-May-2015,1505-00257,0.00,85.00,R,Advance Stocks Ltd,No
Http://opendatacommunities.org/id/metropolitan-district-council/leeds,Leeds City Council,31/05/2015,City Development,Recreation,Supplies and Services,External Audit Fees,261,08-May-2015,1505-00258,0.00,245.00,R,Advance Stocks Ltd,No
Http://opendatacommunities.org/id/metropolitan-district-council/leeds,Leeds City Council,31/05/2015,City Development,Recreation,Supplies and Services,External Audit Fees,261,29-May-2015,1505-00259,0.00,85.00,R,Advance Stocks Ltd,No
Http://opendatacommunities.org/id/metropolitan-district-council/leeds,Leeds City Council,31/05/2015,City Development,Recreation,Supplies and Services,External Audit Fees,261,29-May-2015,1505-00260,0.00,245.00,R,Advance Stocks Ltd,No
Http://opendatacommunities.org/id/metropolitan-district-council/leeds,Leeds City Council,31/05/2015,City Development,Recreation,Supplies and Services,External Audit Fees,261,08-May-2015,1505-00261,0.00,85.00,R,Advance Stocks Ltd,No
Http://opendatacommunities.org/id/metropolitan-district-council/leeds,Leeds City Council,31/05/2015,Central & Corporate,Commercial Services Trading Services,Supplies and Services,Operational Materials,205,13-May-2015,1505-00262,0.00,85.80,R,Advanced Labelling Limited,No
Http://opendatacommunities.org/id/metropolitan-district-council/leeds,Leeds City Council as Accountable Body,31/05/2015,Social Services Pooled Budgets,Jcs For People With Learning Disabilitie,Third Party Payments,Residential,580,06-May-2015,1505-00263,0.00,20211.84,R,Advitam Ltd,No
Http://opendatacommunities.org/id/metropolitan-district-council/leeds,Leeds City Council,31/05/2015,City Development,Recreation,Supplies and Services,Other Hired And Contracted Services,265,29-May-2015,1505-00264,0.00,1005.40,R,Advocate Uk Young People And Families,No
Http://opendatacommunities.org/id/metropolitan-district-council/leeds,Leeds City Council,31/05/2015,Adult Social Care,Services For Older People - 65 And Over,Third Party Payments,Payments To Voluntary Organisations,561,29-May-2015,1505-00265,0.00,84422.93,R,Advonet,No
Http://opendatacommunities.org/id/metropolitan-district-council/leeds,Leeds City Council,31/05/2015,Adult Social Care,Social Services Support Services,Employees,Training Costs,71,29-May-2015,1505-00266,0.00,480.00,R,Advonet,No
Http://opendatacommunities.org/id/metropolitan-district-council/leeds,Leeds City Council,31/05/2015,Childrens Services,Safeguarding Targeted & Specialist,Support Services,Legal Disbursements,411,14-May-2015,1505-00267,0.00,740.05,R,REDACTED PERSONAL DATA,No
Http://opendatacommunities.org/id/metropolitan-district-council/leeds,Leeds City Council,31/05/2015,Central & Corporate,Customer Services,Supplies and Services,Other Hired And Contracted Services,265,07-May-2015,1505-00268,0.00,12.00,R,Afbedel Ltd,No
Http://opendatacommunities.org/id/metropolitan-district-council/leeds,Leeds City Council,31/05/2015,Adult Social Care,Services For Adults Under 65 Mental/Dis,Third Party Payments,Home Care,568,15-May-2015,1505-00269,0.00,375.53,R,Affinity Trust,No
Http://opendatacommunities.org/id/metropolitan-district-council/leeds,Leeds City Council,31/05/2015,Adult Social Care,Services For Older People - 65 And Over,Third Party Payments,Home Care,568,15-May-2015,1505-00270,0.00,1345.60,R,Affinity Trust,No
Http://opendatacommunities.org/id/metropolitan-district-council/leeds,Leeds City Council,31/05/2015,Adult Social Care,Services For Older People Under 65 P/Dis,Third Party Payments,Home Care,568,29-May-2015,1505-00271,0.00,386.86,R,Affinity Trust,No
Http://opendatacommunities.org/id/metropolitan-district-council/leeds,Leeds City Council,31/05/2015,Adult Social Care,Services For Older People Under 65 P/Dis,Third Party Payments,Home Care,568,29-May-2015,1505-00272,0.00,134.56,R,Affinity Trust,No
Http://opendatacommunities.org/id/metropolitan-district-council/leeds,Leeds City Council,31/05/2015,Adult Social Care,Services For Older People Under 65 P/Dis,Third Party Payments,Home Care,568,29-May-2015,1505-00273,0.00,658.35,R,Affinity Trust,No
Http://opendatacommunities.org/id/metropolitan-district-council/leeds,Leeds City Council,31/05/2015,Adult Social Care,Services For Older People Under 65 P/Dis,Third Party Payments,Home Care,568,15-May-2015,1505-00274,0.00,719.10,R,Affinity Trust,No
Http://opendatacommunities.org/id/metropolitan-district-council/leeds,Leeds City Council,31/05/2015,Adult Social Care,Services For Older People Under 65 P/Dis,Third Party Payments,Home Care,568,15-May-2015,1505-00275,0.00,390.50,R,Affinity Trust,No
Http://opendatacommunities.org/id/metropolitan-district-council/leeds,Leeds City Council,31/05/2015,Adult Social Care,Services For Older People Under 65 P/Dis,Third Party Payments,Home Care,568,15-May-2015,1505-00276,0.00,799.00,R,Affinity Trust,No
Http://opendatacommunities.org/id/metropolitan-district-council/leeds,Leeds City Council,31/05/2015,Adult Social Care,Services For Older People Under 65 P/Dis,Third Party Payments,Home Care,568,15-May-2015,1505-00277,0.00,747.46,R,Affinity Trust,No
Http://opendatacommunities.org/id/metropolitan-district-council/leeds,Leeds City Council,31/05/2015,Adult Social Care,Services For Older People Under 65 P/Dis,Third Party Payments,Home Care,568,15-May-2015,1505-00278,0.00,495.00,R,Affinity Trust,No
Http://opendatacommunities.org/id/metropolitan-district-council/leeds,Leeds City Council,31/05/2015,Adult Social Care,Services For Older People Under 65 P/Dis,Third Party Payments,Home Care,568,15-May-2015,1505-00279,0.00,504.60,R,Affinity Trust,No
Http://opendatacommunities.org/id/metropolitan-district-council/leeds,Leeds City Council,31/05/2015,Adult Social Care,Services For Older People Under 65 P/Dis,Third Party Payments,Home Care,568,15-May-2015,1505-00280,0.00,335.58,R,Affinity Trust,No
Http://opendatacommunities.org/id/metropolitan-district-council/leeds,Leeds City Council,31/05/2015,Adult Social Care,Services For Older People Under 65 P/Dis,Third Party Payments,Home Care,568,15-May-2015,1505-00281,0.00,168.20,R,Affinity Trust,No
Http://opendatacommunities.org/id/metropolitan-district-council/leeds,Leeds City Council,31/05/2015,Adult Social Care,Services For Older People Under 65 P/Dis,Third Party Payments,Home Care,568,15-May-2015,1505-00282,0.00,2707.34,R,Affinity Trust,No
Http://opendatacommunities.org/id/metropolitan-district-council/leeds,Leeds City Council,31/05/2015,Adult Social Care,Services For Older People Under 65 P/Dis,Third Party Payments,Home Care,568,15-May-2015,1505-00283,0.00,271.66,R,Affinity Trust,No
Http://opendatacommunities.org/id/metropolitan-district-council/leeds,Leeds City Council,31/05/2015,Adult Social Care,Services For Older People Under 65 P/Dis,Third Party Payments,Home Care,568,15-May-2015,1505-00284,0.00,639.20,R,Affinity Trust,No
Http://opendatacommunities.org/id/metropolitan-district-council/leeds,Leeds City Council,31/05/2015,Adult Social Care,Services For Older People Under 65 P/Dis,Third Party Payments,Home Care,568,15-May-2015,1505-00285,0.00,526.68,R,Affinity Trust,No
Http://opendatacommunities.org/id/metropolitan-district-council/leeds,Leeds City Council as Accountable Body,31/05/2015,Social Services Pooled Budgets,Jcs For People With Learning Disabilitie,Third Party Payments,Home Care,568,28-May-2015,1505-00286,0.00,1278.40,R,Affinity Trust,No
Http://opendatacommunities.org/id/metropolitan-district-council/leeds,Leeds City Council as Accountable Body,31/05/2015,Social Services Pooled Budgets,Jcs For People With Learning Disabilitie,Third Party Payments,Home Care,568,26-May-2015,1505-00287,0.00,90.00,R,Affinity Trust,No
Http://opendatacommunities.org/id/metropolitan-district-council/leeds,Leeds City Council as Accountable Body,31/05/2015,Social Services Pooled Budgets,Jcs For People With Learning Disabilitie,Third Party Payments,Home Care,568,26-May-2015,1505-00288,0.00,1345.00,R,Affinity Trust,No
Http://opendatacommunities.org/id/metropolitan-district-council/leeds,Leeds City Council as Accountable Body,31/05/2015,Social Services Pooled Budgets,Jcs For People With Learning Disabilitie,Third Party Payments,Home Care,568,26-May-2015,1505-00289,0.00,1177.40,R,Affinity Trust,No
Http://opendatacommunities.org/id/metropolitan-district-council/leeds,Leeds City Council as Accountable Body,31/05/2015,Social Services Pooled Budgets,Jcs For People With Learning Disabilitie,Third Party Payments,Home Care,568,26-May-2015,1505-00290,0.00,510.80,R,Affinity Trust,No
Http://opendatacommunities.org/id/metropolitan-district-council/leeds,Leeds City Council as Accountable Body,31/05/2015,Social Services Pooled Budgets,Jcs For People With Learning Disabilitie,Third Party Payments,Home Care,568,22-May-2015,1505-00291,0.00,63.92,R,Affinity Trust,No
Http://opendatacommunities.org/id/metropolitan-district-council/leeds,Leeds City Council as Accountable Body,31/05/2015,Social Services Pooled Budgets,Jcs For People With Learning Disabilitie,Third Party Payments,Home Care,568,26-May-2015,1505-00292,0.00,639.20,R,Affinity Trust,No
Http://opendatacommunities.org/id/metropolitan-district-council/leeds,Leeds City Council as Accountable Body,31/05/2015,Social Services Pooled Budgets,Jcs For People With Learning Disabilitie,Third Party Payments,Home Care,568,28-May-2015,1505-00293,0.00,3867.16,R,Affinity Trust,No
Http://opendatacommunities.org/id/metropolitan-district-council/leeds,Leeds City Council as Accountable Body,31/05/2015,Social Services Pooled Budgets,Jcs For People With Learning Disabilitie,Third Party Payments,Home Care,568,28-May-2015,1505-00294,0.00,1414.23,R,Affinity Trust,No
Http://opendatacommunities.org/id/metropolitan-district-council/leeds,Leeds City Council as Accountable Body,31/05/2015,Social Services Pooled Budgets,Jcs For People With Learning Disabilitie,Third Party Payments,Home Care,568,28-May-2015,1505-00295,0.00,510.00,R,Affinity Trust,No
Http://opendatacommunities.org/id/metropolitan-district-council/leeds,Leeds City Council as Accountable Body,31/05/2015,Social Services Pooled Budgets,Jcs For People With Learning Disabilitie,Third Party Payments,Home Care,568,28-May-2015,1505-00296,0.00,799.00,R,Affinity Trust,No
Http://opendatacommunities.org/id/metropolitan-district-council/leeds,Leeds City Council as Accountable Body,31/05/2015,Social Services Pooled Budgets,Jcs For People With Learning Disabilitie,Third Party Payments,Home Care,568,26-May-2015,1505-00297,0.00,799.00,R,Affinity Trust,No
Http://opendatacommunities.org/id/metropolitan-district-council/leeds,Leeds City Council as Accountable Body,31/05/2015,Social Services Pooled Budgets,Jcs For People With Learning Disabilitie,Third Party Payments,Home Care,568,26-May-2015,1505-00298,0.00,1454.93,R,Affinity Trust,No
Http://opendatacommunities.org/id/metropolitan-district-council/leeds,Leeds City Council as Accountable Body,31/05/2015,Social Services Pooled Budgets,Jcs For People With Learning Disabilitie,Third Party Payments,Day Centre,564,26-May-2015,1505-00299,0.00,2346.00,R,Affinity Trust,No
Http://opendatacommunities.org/id/metropolitan-district-council/leeds,Leeds City Council as Accountable Body,31/05/2015,Social Services Pooled Budgets,Jcs For People With Learning Disabilitie,Third Party Payments,Day Centre,564,26-May-2015,1505-00300,0.00,416.64,R,Affinity Trust,No
Http://opendatacommunities.org/id/metropolitan-district-council/leeds,Leeds City Council as Accountable Body,31/05/2015,Social Services Pooled Budgets,Jcs For People With Learning Disabilitie,Third Party Payments,Home Care,568,08-May-2015,1505-00301,0.00,225.00,R,Affinity Trust,No
Http://opendatacommunities.org/id/metropolitan-district-council/leeds,Leeds City Council as Accountable Body,31/05/2015,Social Services Pooled Budgets,Jcs For People With Learning Disabilitie,Third Party Payments,Home Care,568,08-May-2015,1505-00302,0.00,63.92,R,Affinity Trust,No
Http://opendatacommunities.org/id/metropolitan-district-council/leeds,Leeds City Council as Accountable Body,31/05/2015,Social Services Pooled Budgets,Jcs For People With Learning Disabilitie,Third Party Payments,Home Care,568,28-May-2015,1505-00303,0.00,244.40,R,Affinity Trust,No
Http://opendatacommunities.org/id/metropolitan-district-council/leeds,Leeds City Council as Accountable Body,31/05/2015,Social Services Pooled Budgets,Jcs For People With Learning Disabilitie,Third Party Payments,Home Care,568,28-May-2015,1505-00304,0.00,1047.12,R,Affinity Trust,No
Http://opendatacommunities.org/id/metropolitan-district-council/leeds,Leeds City Council as Accountable Body,31/05/2015,Social Services Pooled Budgets,Jcs For People With Learning Disabilitie,Third Party Payments,Home Care,568,28-May-2015,1505-00305,0.00,900.00,R,Affinity Trust,No
Http://opendatacommunities.org/id/metropolitan-district-council/leeds,Leeds City Council as Accountable Body,31/05/2015,Social Services Pooled Budgets,Jcs For People With Learning Disabilitie,Third Party Payments,Home Care,568,26-May-2015,1505-00306,0.00,862.92,R,Affinity Trust,No
Http://opendatacommunities.org/id/metropolitan-district-council/leeds,Leeds City Council as Accountable Body,31/05/2015,Social Services Pooled Budgets,Jcs For People With Learning Disabilitie,Third Party Payments,Home Care,568,26-May-2015,1505-00307,0.00,420.50,R,Affinity Trust,No
Http://opendatacommunities.org/id/metropolitan-district-council/leeds,Leeds City Council as Accountable Body,31/05/2015,Social Services Pooled Budgets,Jcs For People With Learning Disabilitie,Third Party Payments,Home Care,568,26-May-2015,1505-00308,0.00,748.00,R,Affinity Trust,No
Http://opendatacommunities.org/id/metropolitan-district-council/leeds,Leeds City Council as Accountable Body,31/05/2015,Social Services Pooled Budgets,Jcs For People With Learning Disabilitie,Third Party Payments,Home Care,568,28-May-2015,1505-00309,0.00,1582.02,R,Affinity Trust,No
Http://opendatacommunities.org/id/metropolitan-district-council/leeds,Leeds City Council as Accountable Body,31/05/2015,Social Services Pooled Budgets,Jcs For People With Learning Disabilitie,Third Party Payments,Home Care,568,28-May-2015,1505-00310,0.00,345.80,R,Affinity Trust,No
Http://opendatacommunities.org/id/metropolitan-district-council/leeds,Leeds City Council as Accountable Body,31/05/2015,Social Services Pooled Budgets,Jcs For People With Learning Disabilitie,Third Party Payments,Home Care,568,28-May-2015,1505-00311,0.00,319.60,R,Affinity Trust,No
Http://opendatacommunities.org/id/metropolitan-district-council/leeds,Leeds City Council as Accountable Body,31/05/2015,Social Services Pooled Budgets,Jcs For People With Learning Disabilitie,Third Party Payments,Home Care,568,26-May-2015,1505-00312,0.00,1897.50,R,Affinity Trust,No
Http://opendatacommunities.org/id/metropolitan-district-council/leeds,Leeds City Council as Accountable Body,31/05/2015,Social Services Pooled Budgets,Jcs For People With Learning Disabilitie,Third Party Payments,Sheltered Accommodation,569,06-May-2015,1505-00313,0.00,101563.36,R,Affinity Trust North Divisional Office,No
Http://opendatacommunities.org/id/metropolitan-district-council/leeds,Leeds City Council as Accountable Body,31/05/2015,Social Services Pooled Budgets,Jcs For People With Learning Disabilitie,Third Party Payments,Residential,580,06-May-2015,1505-00314,0.00,4930.98,R,Affinity Trust North Divisional Office,No
Http://opendatacommunities.org/id/metropolitan-district-council/leeds,Leeds City Council,31/05/2015,Central & Corporate,Support And Facilities General Fund  ,Transport,External Hire -Occasional,304,22-Apr-2015,1505-00315,0.00,4279.85,R,Afi Uplift Ltd,Yes
Http://opendatacommunities.org/id/metropolitan-district-council/leeds,Leeds City Council,31/05/2015,Environment & Housing,Strategy & Commissioning,Third Party Payments,Supporting Ppl - Block Gross Chargeable,514,15-May-2015,1505-00316,0.00,3957.68,R,Age Uk Leeds,No
Http://opendatacommunities.org/id/metropolitan-district-council/leeds,Leeds City Council,31/05/2015,City Development,Libraries  Arts & Heritage,Supplies and Services,Bought In Professional Services,277,28-May-2015,1505-00317,0.00,800.00,R,Agere Learning,No
Http://opendatacommunities.org/id/metropolitan-district-council/leeds,Leeds City Council,31/05/2015,Central & Corporate,Support And Facilities General Fund,Premises,Rents,141,26-May-2015,1505-00318,0.00,50.00,R,REDACTED PERSONAL DATA,No
Http://opendatacommunities.org/id/metropolitan-district-council/leeds,Leeds City Council,31/05/2015,Adult Social Care,Services For Older People Under 65 P/Dis,Transfer Payments,Personalised Budgets,627,06-May-2015,1505-00319,0.00,1008.00,R,REDACTED PERSONAL DATA,No
Http://opendatacommunities.org/id/metropolitan-district-council/leeds,Leeds City Council,31/05/2015,Adult Social Care,Services For Older People Under 65 P/Dis,Third Party Payments,Residential,580,06-May-2015,1505-00320,0.00,5593.40,R,Agricola House,No
Http://opendatacommunities.org/id/metropolitan-district-council/leeds,Leeds City Council,31/05/2015,Adult Social Care,Services For Older People Under 65 P/Dis,Transfer Payments,Personalised Budgets,627,06-May-2015,1505-00321,0.00,531.20,R,REDACTED PERSONAL DATA,No
Http://opendatacommunities.org/id/metropolitan-district-council/leeds,Leeds City Council as Accountable Body,31/05/2015,Social Services Pooled Budgets,Leeds Community Equip Store Pooled Budgt,Supplies and Services,Other Equipment,203,08-May-2015,1505-00322,0.00,1038.00,R,Aidapt Bathrooms Ltd,No
Http://opendatacommunities.org/id/metropolitan-district-council/leeds,Leeds City Council as Accountable Body,31/05/2015,Social Services Pooled Budgets,Leeds Community Equip Store Pooled Budgt,Supplies and Services,Other Equipment,203,14-May-2015,1505-00323,0.00,1356.00,R,Aidapt Bathrooms Ltd,No
Http://opendatacommunities.org/id/metropolitan-district-council/leeds,Leeds City Council as Accountable Body,31/05/2015,Social Services Pooled Budgets,Leeds Community Equip Store Pooled Budgt,Supplies and Services,Other Equipment,203,14-May-2015,1505-00324,0.00,560.00,R,Aidapt Bathrooms Ltd,No
Http://opendatacommunities.org/id/metropolitan-district-council/leeds,Leeds City Council as Accountable Body,31/05/2015,Social Services Pooled Budgets,Leeds Community Equip Store Pooled Budgt,Supplies and Services,Other Equipment,203,15-May-2015,1505-00325,0.00,1291.00,R,Aidapt Bathrooms Ltd,No
Http://opendatacommunities.org/id/metropolitan-district-council/leeds,Leeds City Council as Accountable Body,31/05/2015,Social Services Pooled Budgets,Jcs For People With Learning Disabilitie,Transfer Payments,Personal Budgets,627,06-May-2015,1505-00326,0.00,2839.32,R,REDACTED PERSONAL DATA,No
Http://opendatacommunities.org/id/metropolitan-district-council/leeds,Leeds City Council,31/05/2015,Childrens Services,Safeguarding Targeted & Specialist,Third Party Payments,Placement Support,550,28-May-2015,1505-00327,0.00,307.50,R,Aidservice Ltd,No
Http://opendatacommunities.org/id/metropolitan-district-council/leeds,Leeds City Council as Accountable Body,31/05/2015,Social Services Pooled Budgets,Jcs For People With Learning Disabilitie,Supplies and Services,Other Equipment,203,15-May-2015,1505-00328,0.00,185.00,R,Aidservice Ltd,No
Http://opendatacommunities.org/id/metropolitan-district-council/leeds,Leeds City Council as Accountable Body,31/05/2015,Social Services Pooled Budgets,Jcs For People With Learning Disabilitie,Supplies and Services,Other Equipment,203,28-May-2015,1505-00329,0.00,175.30,R,Aidservice Ltd,No
Http://opendatacommunities.org/id/metropolitan-district-council/leeds,Leeds City Council as Accountable Body,31/05/2015,Social Services Pooled Budgets,Jcs For People With Learning Disabilitie,Supplies and Services,Other Equipment,203,01-May-2015,1505-00330,0.00,195.00,R,Aidservice Ltd,No
Http://opendatacommunities.org/id/metropolitan-district-council/leeds,Leeds City Council as Accountable Body,31/05/2015,Social Services Pooled Budgets,Leeds Community Equip Store Pooled Budgt,Supplies and Services,Other Equipment,203,15-May-2015,1505-00331,0.00,149.00,R,Aidservice Ltd,No
Http://opendatacommunities.org/id/metropolitan-district-council/leeds,Leeds City Council,31/05/2015,City Development,Recreation,Supplies and Services,Other Hired And Contracted Services,265,22-May-2015,1505-00332,0.00,347.62,R,Aim Education Leeds Limited,No
Http://opendatacommunities.org/id/metropolitan-district-council/leeds,Leeds City Council,31/05/2015,Strategic Accounts,Miscellaneous,Transfer Payments,Land Drainage Levies,665,01-May-2015,1505-00333,0.00,3596.81,R,Ainsty (2008) Internal Drainage Board,No
Http://opendatacommunities.org/id/metropolitan-district-council/leeds,Leeds City Council,31/05/2015,Central & Corporate,Support And Facilities General Fund  ,Supplies and Services,Operational Materials,205,13-Apr-2015,1505-00334,0.00,1768.86,R,Air Force Pneumati,Yes
Http://opendatacommunities.org/id/metropolitan-district-council/leeds,Leeds City Council,31/05/2015,Central & Corporate,Support And Facilities General Fund  ,Supplies and Services,Operational Materials,205,23-Apr-2015,1505-00335,0.00,159.28,R,Air Force Pneumati,Yes
Http://opendatacommunities.org/id/metropolitan-district-council/leeds,Leeds City Council,31/05/2015,Central & Corporate,Commercial Services Trading Services,Supplies and Services,Operational Materials,205,15-May-2015,1505-00336,0.00,212.80,R,Air Liquide Uk,No
Http://opendatacommunities.org/id/metropolitan-district-council/leeds,Leeds City Council,31/05/2015,Environment & Housing,Environmental Health,Supplies and Services,Operational Furniture And Equipment,203,20-May-2015,1505-00337,0.00,13.23,R,Air Liquide Uk,No
Http://opendatacommunities.org/id/metropolitan-district-council/leeds,Leeds City Council,31/05/2015,Environment & Housing,Environmental Health,Supplies and Services,Operational Furniture And Equipment,203,20-May-2015,1505-00338,0.00,13.23,R,Air Liquide Uk,No
Http://opendatacommunities.org/id/metropolitan-district-council/leeds,Leeds City Council,31/05/2015,Adult Social Care,Services For Adults Under 65 Mental/Dis,Third Party Payments,Residential,580,06-May-2015,1505-00339,0.00,6027.80,R,Aire House,No
Http://opendatacommunities.org/id/metropolitan-district-council/leeds,Leeds City Council as Accountable Body,31/05/2015,Social Services Pooled Budgets,Jcs For People With Learning Disabilitie,Third Party Payments,Residential,580,06-May-2015,1505-00340,0.00,3057.00,R,Aire House,No
Http://opendatacommunities.org/id/metropolitan-district-council/leeds,Leeds City Council,31/05/2015,Environment & Housing,Parks & Countryside,Supplies and Services,Other Hired And Contracted Services,265,29-May-2015,1505-00341,0.00,4660.00,R,Aire Valley Tree Services Ltd,No
Http://opendatacommunities.org/id/metropolitan-district-council/leeds,Leeds City Council,31/05/2015,Environment & Housing,Parks & Countryside,Supplies and Services,Other Hired And Contracted Services,265,29-May-2015,1505-00342,0.00,3520.00,R,Aire Valley Tree Services Ltd,No
Http://opendatacommunities.org/id/metropolitan-district-council/leeds,Leeds City Council,31/05/2015,Adult Social Care,Services For Older People - 65 And Over,Third Party Payments,Residential Care Dementia,571,06-May-2015,1505-00343,0.00,29499.93,R,Aire View Residential Home,No
Http://opendatacommunities.org/id/metropolitan-district-council/leeds,Leeds City Council,31/05/2015,Adult Social Care,Services For Older People - 65 And Over,Third Party Payments,Residential,580,06-May-2015,1505-00344,0.00,7464.63,R,Aire View Residential Home,No
Http://opendatacommunities.org/id/metropolitan-district-council/leeds,Leeds City Council,31/05/2015,Childrens Services,Safeguarding Targeted & Specialist,Third Party Payments,Services Rendered By Voluntary Sector,505,08-May-2015,1505-00345,0.00,20813.00,R,Aireborough Supported Activities Scheme,No
Http://opendatacommunities.org/id/metropolitan-district-council/leeds,Leeds City Council,31/05/2015,Adult Social Care,Services For Adults Under 65 Mental/Dis,Third Party Payments,Residential,580,06-May-2015,1505-00346,0.00,1856.56,R,Airedale (Goldsborough),No
Http://opendatacommunities.org/id/metropolitan-district-council/leeds,Leeds City Council,31/05/2015,Adult Social Care,Services For Older People - 65 And Over,Third Party Payments,Residential,580,06-May-2015,1505-00347,0.00,31164.38,R,Airedale (Goldsborough),No
Http://opendatacommunities.org/id/metropolitan-district-council/leeds,Leeds City Council,31/05/2015,Adult Social Care,Services For Older People - 65 And Over,Third Party Payments,Residential Care Dementia,571,06-May-2015,1505-00348,0.00,1249.96,R,Airedale (Goldsborough),No
Http://opendatacommunities.org/id/metropolitan-district-council/leeds,Leeds City Council,31/05/2015,Central & Corporate,Commercial Services Trading Services,Supplies and Services,Other Hired And Contracted Services,265,20-May-2015,1505-00349,0.00,100.00,R,Airedale Springs Ltd,No
Http://opendatacommunities.org/id/metropolitan-district-council/leeds,Leeds City Council,31/05/2015,Central & Corporate,Commercial Services Trading Services,Supplies and Services,Other Hired And Contracted Services,265,29-May-2015,1505-00350,0.00,157.50,R,Air-Weigh Europe Limited,No
Http://opendatacommunities.org/id/metropolitan-district-council/leeds,Leeds City Council,31/05/2015,Central & Corporate,Commercial Services Trading Services,Supplies and Services,Other Hired And Contracted Services,265,29-May-2015,1505-00351,0.00,180.00,R,Air-Weigh Europe Limited,No
Http://opendatacommunities.org/id/metropolitan-district-council/leeds,Leeds City Council,31/05/2015,Central & Corporate,Commercial Services Trading Services,Supplies and Services,Other Hired And Contracted Services,265,29-May-2015,1505-00352,0.00,45.00,R,Air-Weigh Europe Limited,No
Http://opendatacommunities.org/id/metropolitan-district-council/leeds,Leeds City Council,31/05/2015,Central & Corporate,Commercial Services Trading Services,Supplies and Services,Other Hired And Contracted Services,265,29-May-2015,1505-00353,0.00,180.00,R,Air-Weigh Europe Limited,No
Http://opendatacommunities.org/id/metropolitan-district-council/leeds,Leeds City Council,31/05/2015,Central & Corporate,Commercial Services Trading Services,Supplies and Services,Other Hired And Contracted Services,265,22-May-2015,1505-00354,0.00,180.00,R,Air-Weigh Europe Limited,No
Http://opendatacommunities.org/id/metropolitan-district-council/leeds,Leeds City Council,31/05/2015,Adult Social Care,Services For Adults Under 65 Mental/Dis,Third Party Payments,Services Provided By Other NHS Bodies,522,22-May-2015,1505-00355,0.00,175.00,R,Ait Mitra Limited,No
Http://opendatacommunities.org/id/metropolitan-district-council/leeds,Leeds City Council,31/05/2015,Adult Social Care,Services For Adults Under 65 Mental/Dis,Third Party Payments,Services Provided By Other NHS Bodies,522,22-May-2015,1505-00356,0.00,175.00,R,Ait Mitra Limited,No
Http://opendatacommunities.org/id/metropolitan-district-council/leeds,Leeds City Council,31/05/2015,Adult Social Care,Services For Adults Under 65 Mental/Dis,Third Party Payments,Services Provided By Other NHS Bodies,522,22-May-2015,1505-00357,0.00,175.00,R,Ait Mitra Limited,No
Http://opendatacommunities.org/id/metropolitan-district-council/leeds,Leeds City Council,31/05/2015,Adult Social Care,Services For Adults Under 65 Mental/Dis,Third Party Payments,Services Provided By Other NHS Bodies,522,22-May-2015,1505-00358,0.00,175.00,R,Ait Mitra Limited,No
Http://opendatacommunities.org/id/metropolitan-district-council/leeds,Leeds City Council,31/05/2015,Adult Social Care,Services For Adults Under 65 Mental/Dis,Third Party Payments,Services Provided By Other NHS Bodies,522,22-May-2015,1505-00359,0.00,220.00,R,Ait Mitra Limited,No
Http://opendatacommunities.org/id/metropolitan-district-council/leeds,Leeds City Council,31/05/2015,Adult Social Care,Services For Adults Under 65 Mental/Dis,Third Party Payments,Services Provided By Other NHS Bodies,522,29-May-2015,1505-00360,0.00,175.00,R,Ait Mitra Limited,No
Http://opendatacommunities.org/id/metropolitan-district-council/leeds,Leeds City Council as Accountable Body,31/05/2015,Social Services Pooled Budgets,Jcs For People With Learning Disabilitie,Third Party Payments,Residential,580,06-May-2015,1505-00361,0.00,6170.84,R,Aitch Care Homes,No
Http://opendatacommunities.org/id/metropolitan-district-council/leeds,Leeds City Council,31/05/2015,City Development,Recreation,Supplies and Services,Operational Materials,205,08-May-2015,1505-00362,0.00,1394.70,R,Aitkens Sportsturf Ltd,No
Http://opendatacommunities.org/id/metropolitan-district-council/leeds,Leeds City Council,31/05/2015,Environment & Housing,Parks & Countryside,Supplies and Services,Operational Materials,205,29-May-2015,1505-00363,0.00,1929.50,R,Aitkens Sportsturf Ltd,No
Http://opendatacommunities.org/id/metropolitan-district-council/leeds,Leeds City Council,31/05/2015,Adult Social Care,Services For Older People - 65 And Over,Third Party Payments,Home Care,568,29-May-2015,1505-00364,0.00,9425.40,R,Aj Social Care,No
Http://opendatacommunities.org/id/metropolitan-district-council/leeds,Leeds City Council,31/05/2015,Adult Social Care,Services For Older People - 65 And Over,Third Party Payments,Home Care,568,01-May-2015,1505-00365,0.00,7489.79,R,Aj Social Care,No
Http://opendatacommunities.org/id/metropolitan-district-council/leeds,Leeds City Council,31/05/2015,Adult Social Care,Services For Older People - 65 And Over,Third Party Payments,Home Care,568,01-May-2015,1505-00366,0.00,64.00,R,Aj Social Care,No
Http://opendatacommunities.org/id/metropolitan-district-council/leeds,Leeds City Council,31/05/2015,Adult Social Care,Services For Older People Under 65 P/Dis,Third Party Payments,Home Care,568,29-May-2015,1505-00367,0.00,2413.70,R,Aj Social Care,No
Http://opendatacommunities.org/id/metropolitan-district-council/leeds,Leeds City Council,31/05/2015,Adult Social Care,Services For Older People Under 65 P/Dis,Third Party Payments,Home Care,568,01-May-2015,1505-00368,0.00,2432.90,R,Aj Social Care,No
Http://opendatacommunities.org/id/metropolitan-district-council/leeds,Leeds City Council,31/05/2015,Central & Corporate,Commercial Services Trading Services,Supplies and Services,Operational Furniture And Equipment,203,05-May-2015,1505-00369,0.00,439.00,R,Ajm Fixings & Power Tools Ltd,No
Http://opendatacommunities.org/id/metropolitan-district-council/leeds,Leeds City Council,31/05/2015,Central & Corporate,Commercial Services Trading Services,Supplies and Services,Operational Materials,205,01-May-2015,1505-00370,0.00,190.50,R,Ajm Fixings & Power Tools Ltd,No
Http://opendatacommunities.org/id/metropolitan-district-council/leeds,Leeds City Council,31/05/2015,Central & Corporate,Commercial Services Trading Services,Supplies and Services,Stores - Central And Other Depots,005,22-May-2015,1505-00371,0.00,158.40,R,Ajm Fixings & Power Tools Ltd,No
Http://opendatacommunities.org/id/metropolitan-district-council/leeds,Leeds City Council,31/05/2015,Central & Corporate,Commercial Services Trading Services,Supplies and Services,Stores - Central And Other Depots,005,15-May-2015,1505-00372,0.00,389.50,R,Ajm Fixings & Power Tools Ltd,No
Http://opendatacommunities.org/id/metropolitan-district-council/leeds,Leeds City Council,31/05/2015,Central & Corporate,Commercial Services Trading Services,Supplies and Services,Stores - Central And Other Depots,005,15-May-2015,1505-00373,0.00,99.00,R,Ajm Fixings & Power Tools Ltd,No
Http://opendatacommunities.org/id/metropolitan-district-council/leeds,Leeds City Council,31/05/2015,Central & Corporate,Commercial Services Trading Services,Supplies and Services,Stores - Central And Other Depots,005,05-May-2015,1505-00374,0.00,337.00,R,Ajm Fixings & Power Tools Ltd,No
Http://opendatacommunities.org/id/metropolitan-district-council/leeds,Leeds City Council,31/05/2015,Strategic Landlord,Old Costcentres,Supplies and Services,Operational Materials,205,20-May-2015,1505-00375,0.00,41.64,R,Ajm Fixings & Power Tools Ltd,No
Http://opendatacommunities.org/id/metropolitan-district-council/leeds,Leeds City Council,31/05/2015,Strategic Landlord,Old Costcentres,Supplies and Services,Operational Materials,205,20-May-2015,1505-00376,0.00,274.90,R,Ajm Fixings & Power Tools Ltd,No
Http://opendatacommunities.org/id/metropolitan-district-council/leeds,Leeds City Council as Accountable Body,31/05/2015,Social Services Pooled Budgets,Jcs For People With Learning Disabilitie,Transfer Payments,Personal Budgets,627,06-May-2015,1505-00377,0.00,1035.92,R,REDACTED PERSONAL DATA,No
Http://opendatacommunities.org/id/metropolitan-district-council/leeds,Leeds City Council,31/05/2015,Adult Social Care,Services For Older People - 65 And Over,Third Party Payments,Nursing Home,570,06-May-2015,1505-00378,0.00,1269.40,R,Akari Care Ltd,No
Http://opendatacommunities.org/id/metropolitan-district-council/leeds,Leeds City Council as Accountable Body,31/05/2015,Social Services Pooled Budgets,Jcs For People With Learning Disabilitie,Transfer Payments,Personal Budgets,627,06-May-2015,1505-00379,0.00,1371.96,R,REDACTED PERSONAL DATA,No
Http://opendatacommunities.org/id/metropolitan-district-council/leeds,Leeds City Council,31/05/2015,Central & Corporate,Commercial Services Trading Services,Supplies and Services,Operational Materials,205,20-May-2015,1505-00380,0.00,57.52,R,Akw Medicare Ltd,No
Http://opendatacommunities.org/id/metropolitan-district-council/leeds,Leeds City Council,31/05/2015,Strategic Accounts,Miscellaneous,Supplies and Services,Non-Recurring Grants,227,25-May-2015,1505-00381,0.00,500.00,R,Al Khidmat Centre,No
Http://opendatacommunities.org/id/metropolitan-district-council/leeds,Leeds City Council,31/05/2015,Central & Corporate,Support And Facilities General Fund  ,Employees,Miscellaneous Expenditure,208,26-Apr-2015,1505-00382,0.00,55.43,R,Al Murad Diy Ltd,Yes
Http://opendatacommunities.org/id/metropolitan-district-council/leeds,Leeds City Council,31/05/2015,Central & Corporate,Support And Facilities General Fund  ,Premises,Grounds Maintenance Work,111,02-Apr-2015,1505-00383,0.00,40.00,R,Alan Brown Flowers,Yes
Http://opendatacommunities.org/id/metropolitan-district-council/leeds,Leeds City Council,31/05/2015,City Development,Planning & Sustainable Development,Support Services,Legal Disbursements,411,21-May-2015,1505-00384,0.00,2960.00,R,Alan Evans,No
Http://opendatacommunities.org/id/metropolitan-district-council/leeds,Leeds City Council,31/05/2015,Environment & Housing,Community Safety,Supplies and Services,Bought In Professional Services,277,01-May-2015,1505-00385,0.00,2500.00,R,Alan Ridley,No
Http://opendatacommunities.org/id/metropolitan-district-council/leeds,Leeds City Council,31/05/2015,Adult Social Care,Services For Older People Under 65 P/Dis,Transfer Payments,Personalised Budgets,627,06-May-2015,1505-00386,0.00,2050.00,R,REDACTED PERSONAL DATA,No
Http://opendatacommunities.org/id/metropolitan-district-council/leeds,Leeds City Council,31/05/2015,Adult Social Care,Assessment And Care Management,Transfer Payments,Direct Payments,626,06-May-2015,1505-00387,0.00,348.00,R,REDACTED PERSONAL DATA,No
Http://opendatacommunities.org/id/metropolitan-district-council/leeds,Leeds City Council,31/05/2015,Environment & Housing,Streetscene Environmental Services,Transport,External Hire -Occasional,304,22-May-2015,1505-00388,0.00,297.00,R,Alan Thompson Transport,No
Http://opendatacommunities.org/id/metropolitan-district-council/leeds,Leeds City Council,31/05/2015,Environment & Housing,Streetscene Environmental Services,Transport,External Hire -Occasional,304,15-May-2015,1505-00389,0.00,594.00,R,Alan Thompson Transport,No
Http://opendatacommunities.org/id/metropolitan-district-council/leeds,Leeds City Council,31/05/2015,Environment & Housing,Streetscene Environmental Services,Transport,External Hire -Occasional,304,08-May-2015,1505-00390,0.00,297.00,R,Alan Thompson Transport,No
Http://opendatacommunities.org/id/metropolitan-district-council/leeds,Leeds City Council as Accountable Body,31/05/2015,Social Services Pooled Budgets,Jcs For People With Learning Disabilitie,Transfer Payments,Personal Budgets,627,06-May-2015,1505-00391,0.00,476.68,R,REDACTED PERSONAL DATA,No
Http://opendatacommunities.org/id/metropolitan-district-council/leeds,Leeds City Council as Accountable Body,31/05/2015,Social Services Pooled Budgets,Jcs For People With Learning Disabilitie,Transfer Payments,Personal Budgets,627,06-May-2015,1505-00392,0.00,4091.92,R,REDACTED PERSONAL DATA,No
Http://opendatacommunities.org/id/metropolitan-district-council/leeds,Leeds City Council,31/05/2015,Central & Corporate,Customer Services,Supplies and Services,Other Hired And Contracted Services,265,07-May-2015,1505-00393,0.00,10.00,R,Alazar Araya,No
Http://opendatacommunities.org/id/metropolitan-district-council/leeds,Leeds City Council,31/05/2015,Adult Social Care,Services For Older People - 65 And Over,Transfer Payments,Personalised Budgets,627,06-May-2015,1505-00394,0.00,263.60,R,REDACTED PERSONAL DATA,No
Http://opendatacommunities.org/id/metropolitan-district-council/leeds,Leeds City Council,31/05/2015,City Development,Libraries  Arts & Heritage,Supplies and Services,Non-Recurring Grants,227,14-May-2015,1505-00395,0.00,2000.00,R,Alchemy Anew,No
Http://opendatacommunities.org/id/metropolitan-district-council/leeds,Leeds City Council,31/05/2015,Central & Corporate,Public Health,Supplies and Services,Other Hired And Contracted Services,265,14-May-2015,1505-00396,0.00,2584.80,R,Alcohol Concern,No
Http://opendatacommunities.org/id/metropolitan-district-council/leeds,Leeds City Council,31/05/2015,Environment & Housing,Waste Management,Supplies and Services,Other Hired And Contracted Services,265,20-May-2015,1505-00397,0.00,100.00,R,Alcontrol Uk Ltd,No
Http://opendatacommunities.org/id/metropolitan-district-council/leeds,Leeds City Council,31/05/2015,Adult Social Care,Services For Adults Under 65 Mental/Dis  ,Premises,Cleaning Maintenance & Toiletries,127,29-Apr-2015,1505-00398,0.00,1.15,R,Aldi,Yes
Http://opendatacommunities.org/id/metropolitan-district-council/leeds,Leeds City Council,31/05/2015,Adult Social Care,Services For Adults Under 65 Mental/Dis  ,Supplies and Services,General Amenity For Clients/Residents,285,29-Apr-2015,1505-00399,0.00,5.77,R,Aldi,Yes
Http://opendatacommunities.org/id/metropolitan-district-council/leeds,Leeds City Council,31/05/2015,Central & Corporate,Support And Facilities General Fund  ,Supplies and Services,Food & Drink,231,14-Apr-2015,1505-00400,0.00,77.58,R,Aldi,Yes
Http://opendatacommunities.org/id/metropolitan-district-council/leeds,Leeds City Council,31/05/2015,Central & Corporate,Support And Facilities General Fund  ,Supplies and Services,Teaching Materials,202,15-Apr-2015,1505-00401,0.00,17.68,R,Aldi,Yes
Http://opendatacommunities.org/id/metropolitan-district-council/leeds,Leeds City Council,31/05/2015,Central & Corporate,Support And Facilities General Fund  ,Supplies and Services,Food & Drink,231,16-Apr-2015,1505-00402,0.00,3.99,R,Aldi,Yes
Http://opendatacommunities.org/id/metropolitan-district-council/leeds,Leeds City Council,31/05/2015,Central & Corporate,Support And Facilities General Fund  ,Supplies and Services,Food & Drink,231,20-Apr-2015,1505-00403,0.00,24.23,R,Aldi,Yes
Http://opendatacommunities.org/id/metropolitan-district-council/leeds,Leeds City Council,31/05/2015,Central & Corporate,Support And Facilities General Fund  ,Supplies and Services,Food & Drink,231,20-Apr-2015,1505-00404,0.00,25.98,R,Aldi,Yes
Http://opendatacommunities.org/id/metropolitan-district-council/leeds,Leeds City Council,31/05/2015,Central & Corporate,Support And Facilities General Fund  ,Employees,Miscellaneous Expenditure,208,20-Apr-2015,1505-00405,0.00,46.90,R,Aldi,Yes
Http://opendatacommunities.org/id/metropolitan-district-council/leeds,Leeds City Council,31/05/2015,Central & Corporate,Support And Facilities General Fund  ,Supplies and Services,Catering Service,233,22-Apr-2015,1505-00406,0.00,11.03,R,Aldi,Yes
Http://opendatacommunities.org/id/metropolitan-district-council/leeds,Leeds City Council,31/05/2015,Central & Corporate,Support And Facilities General Fund  ,Supplies and Services,Teaching Materials,202,24-Apr-2015,1505-00407,0.00,40.17,R,Aldi,Yes
Http://opendatacommunities.org/id/metropolitan-district-council/leeds,Leeds City Council,31/05/2015,Central & Corporate,Support And Facilities General Fund  ,Supplies and Services,Teaching Materials,202,24-Apr-2015,1505-00408,0.00,14.94,R,Aldi,Yes
Http://opendatacommunities.org/id/metropolitan-district-council/leeds,Leeds City Council,31/05/2015,Central & Corporate,Support And Facilities General Fund  ,Supplies and Services,Teaching Materials,202,27-Apr-2015,1505-00409,0.00,26.60,R,Aldi,Yes
Http://opendatacommunities.org/id/metropolitan-district-council/leeds,Leeds City Council,31/05/2015,Central & Corporate,Support And Facilities General Fund  ,Supplies and Services,Teaching Materials,202,27-Apr-2015,1505-00410,0.00,3.32,R,Aldi,Yes
Http://opendatacommunities.org/id/metropolitan-district-council/leeds,Leeds City Council,31/05/2015,Childrens Services,Safeguarding Targeted & Specialist  ,Supplies and Services,Food & Drink,231,07-Apr-2015,1505-00411,0.00,95.22,R,Aldi,Yes
Http://opendatacommunities.org/id/metropolitan-district-council/leeds,Leeds City Council as Accountable Body,31/05/2015,Social Services Pooled Budgets,Jcs For People With Learning Disabilitie,Transfer Payments,Direct Payments,626,06-May-2015,1505-00412,0.00,1383.40,R,REDACTED PERSONAL DATA,No
Http://opendatacommunities.org/id/metropolitan-district-council/leeds,Leeds City Council,31/05/2015,Adult Social Care,Services For Older People Under 65 P/Dis,Transfer Payments,Personalised Budgets,627,06-May-2015,1505-00413,0.00,1569.61,R,REDACTED PERSONAL DATA,No
Http://opendatacommunities.org/id/metropolitan-district-council/leeds,Leeds City Council,31/05/2015,Adult Social Care,Services For Older People Under 65 P/Dis,Transfer Payments,Direct Payments,626,06-May-2015,1505-00414,0.00,777.64,R,REDACTED PERSONAL DATA,No
Http://opendatacommunities.org/id/metropolitan-district-council/leeds,Leeds City Council,31/05/2015,Childrens Services,Safeguarding Targeted & Specialist,Support Services,Legal Disbursements,411,25-May-2015,1505-00415,0.00,361.00,R,Alex Taylor,No
Http://opendatacommunities.org/id/metropolitan-district-council/leeds,Leeds City Council as Accountable Body,31/05/2015,Social Services Pooled Budgets,Jcs For People With Learning Disabilitie,Transfer Payments,Personal Budgets,627,06-May-2015,1505-00416,0.00,457.16,R,REDACTED PERSONAL DATA,No
Http://opendatacommunities.org/id/metropolitan-district-council/leeds,Leeds City Council,31/05/2015,Adult Social Care,Services For Adults Under 65 Mental/Dis,Transfer Payments,Personalised Budgets,627,06-May-2015,1505-00417,0.00,640.00,R,REDACTED PERSONAL DATA,No
Http://opendatacommunities.org/id/metropolitan-district-council/leeds,Leeds City Council,31/05/2015,Adult Social Care,Services For Adults Under 65 Mental/Dis,Third Party Payments,Residential,580,06-May-2015,1505-00418,0.00,1896.00,R,Alexander Residential Home,No
Http://opendatacommunities.org/id/metropolitan-district-council/leeds,Leeds City Council,31/05/2015,Adult Social Care,Services For Older People - 65 And Over,Third Party Payments,Residential Care Dementia,571,06-May-2015,1505-00419,0.00,12449.40,R,Alexander Residential Home,No
Http://opendatacommunities.org/id/metropolitan-district-council/leeds,Leeds City Council,31/05/2015,Adult Social Care,Services For Older People - 65 And Over,Third Party Payments,Residential,580,06-May-2015,1505-00420,0.00,10264.88,R,Alexander Residential Home,No
Http://opendatacommunities.org/id/metropolitan-district-council/leeds,Leeds City Council as Accountable Body,31/05/2015,Social Services Pooled Budgets,Jcs For People With Learning Disabilitie,Third Party Payments,Residential,580,06-May-2015,1505-00421,0.00,-2208.34,R,Alexander Residential Home,No
Http://opendatacommunities.org/id/metropolitan-district-council/leeds,Leeds City Council as Accountable Body,31/05/2015,Social Services Pooled Budgets,Jcs For People With Learning Disabilitie,Transfer Payments,Personal Budgets,627,06-May-2015,1505-00422,0.00,583.32,R,REDACTED PERSONAL DATA,No
Http://opendatacommunities.org/id/metropolitan-district-council/leeds,Leeds City Council as Accountable Body,31/05/2015,Social Services Pooled Budgets,Jcs For People With Learning Disabilitie,Transfer Payments,Direct Payments,626,06-May-2015,1505-00423,0.00,266.72,R,REDACTED PERSONAL DATA,No
Http://opendatacommunities.org/id/metropolitan-district-council/leeds,Leeds City Council,31/05/2015,Central & Corporate,Customer Services,Supplies and Services,Other Hired And Contracted Services,265,07-May-2015,1505-00424,0.00,93.50,R,Alexandra Costenco,No
Http://opendatacommunities.org/id/metropolitan-district-council/leeds,Leeds City Council,31/05/2015,Adult Social Care,Services For Older People - 65 And Over,Third Party Payments,Residential Care Dementia,571,06-May-2015,1505-00425,0.00,1296.56,R,Alexandra Court,No
Http://opendatacommunities.org/id/metropolitan-district-council/leeds,Leeds City Council,31/05/2015,Adult Social Care,Services For Older People - 65 And Over,Third Party Payments,Residential,580,06-May-2015,1505-00426,0.00,14410.14,R,Alexandra Court,No
Http://opendatacommunities.org/id/metropolitan-district-council/leeds,Leeds City Council,31/05/2015,Central & Corporate,Customer Services,Supplies and Services,Other Hired And Contracted Services,265,07-May-2015,1505-00427,0.00,120.25,R,Alexandra Hirst,No
Http://opendatacommunities.org/id/metropolitan-district-council/leeds,Leeds City Council,31/05/2015,Central & Corporate,Customer Services,Supplies and Services,Other Hired And Contracted Services,265,07-May-2015,1505-00428,0.00,322.25,R,Alexandra Hirst,No
Http://opendatacommunities.org/id/metropolitan-district-council/leeds,Leeds City Council,31/05/2015,Central & Corporate,Commercial Services Trading Services,Supplies and Services,Other Hired And Contracted Services,265,01-May-2015,1505-00429,0.00,102.00,R,Alfa Tail Lifts Limited,No
Http://opendatacommunities.org/id/metropolitan-district-council/leeds,Leeds City Council,31/05/2015,Environment & Housing,Streetscene Environmental Services,Income,Penalties  Fines & Car Parking Charges,934,28-May-2015,1505-00430,0.00,30.00,R,REDACTED PERSONAL DATA,No
Http://opendatacommunities.org/id/metropolitan-district-council/leeds,Leeds City Council,31/05/2015,Central & Corporate,Commercial Services Trading Services,Premises,Maintenance Of Buildings,101,15-May-2015,1505-00431,0.00,2093.75,R,Alfred Bagnall & Sons (Leeds) Ltd,No
Http://opendatacommunities.org/id/metropolitan-district-council/leeds,Leeds City Council,31/05/2015,City Development,Libraries  Arts & Heritage,Premises,Maintenance Of Buildings,101,29-May-2015,1505-00432,0.00,5950.00,R,Alfred Bagnall & Sons (Leeds) Ltd,No
Http://opendatacommunities.org/id/metropolitan-district-council/leeds,Leeds City Council,31/05/2015,Adult Social Care,Services For Older People Under 65 P/Dis,Transfer Payments,Personalised Budgets,627,06-May-2015,1505-00433,0.00,525.36,R,REDACTED PERSONAL DATA,No
Http://opendatacommunities.org/id/metropolitan-district-council/leeds,Leeds City Council as Accountable Body,31/05/2015,Social Services Pooled Budgets,Jcs For People With Learning Disabilitie,Transfer Payments,Personal Budgets,627,06-May-2015,1505-00434,0.00,1026.96,R,REDACTED PERSONAL DATA,No
Http://opendatacommunities.org/id/metropolitan-district-council/leeds,Leeds City Council,31/05/2015,Central & Corporate,Corporate Governance,Income,Admissions  Booking Fees & Ticket Sales,933,14-May-2015,1505-00435,0.00,5.00,R,Align Property,No
Http://opendatacommunities.org/id/metropolitan-district-council/leeds,Leeds City Council,31/05/2015,City Development,Recreation,Income,Sporting & Other Recreational Fees,928,14-May-2015,1505-00436,0.00,8.33,R,REDACTED PERSONAL DATA,No
Http://opendatacommunities.org/id/metropolitan-district-council/leeds,Leeds City Council,31/05/2015,Central & Corporate,Support And Facilities General Fund,Premises,Rents,141,26-May-2015,1505-00437,0.00,20.00,R,REDACTED PERSONAL DATA,No
Http://opendatacommunities.org/id/metropolitan-district-council/leeds,Leeds City Council,31/05/2015,Adult Social Care,Services For Older People Under 65 P/Dis,Transfer Payments,Personalised Budgets,627,06-May-2015,1505-00438,0.00,200.00,R,REDACTED PERSONAL DATA,No
Http://opendatacommunities.org/id/metropolitan-district-council/leeds,Leeds City Council,31/05/2015,Adult Social Care,Services For Older People Under 65 P/Dis,Transfer Payments,Personalised Budgets,627,06-May-2015,1505-00439,0.00,1394.00,R,REDACTED PERSONAL DATA,No
Http://opendatacommunities.org/id/metropolitan-district-council/leeds,Leeds City Council,31/05/2015,Childrens Services,Safeguarding Targeted & Specialist,Supplies and Services,General Amenity For Clients/Residents,285,21-May-2015,1505-00440,0.00,540.00,R,All Star Youth Entertainment,No
Http://opendatacommunities.org/id/metropolitan-district-council/leeds,Leeds City Council,31/05/2015,Childrens Services,Safeguarding Targeted & Specialist,Supplies and Services,General Amenity For Clients/Residents,285,21-May-2015,1505-00441,0.00,540.00,R,All Star Youth Entertainment,No
Http://opendatacommunities.org/id/metropolitan-district-council/leeds,Leeds City Council,31/05/2015,Childrens Services,Learning Skills & Universal,Third Party Payments,Services Rendered By Other Organisations,511,28-May-2015,1505-00442,0.00,297.12,R,All Stars Childcare,No
Http://opendatacommunities.org/id/metropolitan-district-council/leeds,Leeds City Council,31/05/2015,Childrens Services,Learning Skills & Universal,Third Party Payments,Services Rendered By Other Organisations,511,28-May-2015,1505-00443,0.00,103.35,R,All Stars Childcare,No
Http://opendatacommunities.org/id/metropolitan-district-council/leeds,Leeds City Council,31/05/2015,Central & Corporate,Support And Facilities General Fund  ,Employees,Miscellaneous Expenditure,208,21-Apr-2015,1505-00444,0.00,91.42,R,Allanda Ltd,Yes
Http://opendatacommunities.org/id/metropolitan-district-council/leeds,Leeds City Council,31/05/2015,Childrens Services,Safeguarding Targeted & Specialist,Third Party Payments,Section 17,551,01-May-2015,1505-00445,0.00,25.00,R,REDACTED PERSONAL DATA,No
Http://opendatacommunities.org/id/metropolitan-district-council/leeds,Leeds City Council,31/05/2015,Childrens Services,Safeguarding Targeted & Specialist,Third Party Payments,Section 17,551,07-May-2015,1505-00446,0.00,25.00,R,REDACTED PERSONAL DATA,No
Http://opendatacommunities.org/id/metropolitan-district-council/leeds,Leeds City Council,31/05/2015,Childrens Services,Safeguarding Targeted & Specialist,Third Party Payments,Section 17,551,13-May-2015,1505-00447,0.00,25.00,R,REDACTED PERSONAL DATA,No
Http://opendatacommunities.org/id/metropolitan-district-council/leeds,Leeds City Council,31/05/2015,Childrens Services,Safeguarding Targeted & Specialist,Third Party Payments,Section 17,551,20-May-2015,1505-00448,0.00,25.00,R,REDACTED PERSONAL DATA,No
Http://opendatacommunities.org/id/metropolitan-district-council/leeds,Leeds City Council,31/05/2015,Childrens Services,Safeguarding Targeted & Specialist,Third Party Payments,Section 17,551,29-May-2015,1505-00449,0.00,25.00,R,REDACTED PERSONAL DATA,No
Http://opendatacommunities.org/id/metropolitan-district-council/leeds,Leeds City Council as Accountable Body,31/05/2015,Social Services Pooled Budgets,Jcs For People With Learning Disabilitie,Third Party Payments,Sheltered Accommodation,569,06-May-2015,1505-00450,0.00,16596.04,R,Allerton Avenue,No
Http://opendatacommunities.org/id/metropolitan-district-council/leeds,Leeds City Council,31/05/2015,Central & Corporate,Benefits,Supplies and Services,Bank Charges,263,07-May-2015,1505-00451,0.00,4.51,R,Alliance & Leicester Commercial Bank,No
Http://opendatacommunities.org/id/metropolitan-district-council/leeds,Leeds City Council,31/05/2015,Central & Corporate,Benefits,Supplies and Services,Bank Charges,263,07-May-2015,1505-00452,0.00,328.60,R,Alliance & Leicester Commercial Bank,No
Http://opendatacommunities.org/id/metropolitan-district-council/leeds,Leeds City Council,31/05/2015,Central & Corporate,Benefits,Supplies and Services,Bank Charges,263,07-May-2015,1505-00453,0.00,764.40,R,Alliance & Leicester Commercial Bank,No
Http://opendatacommunities.org/id/metropolitan-district-council/leeds,Leeds City Council,31/05/2015,Central & Corporate,Benefits,Supplies and Services,Bank Charges,263,07-May-2015,1505-00454,0.00,100.14,R,Alliance & Leicester Commercial Bank,No
Http://opendatacommunities.org/id/metropolitan-district-council/leeds,Leeds City Council,31/05/2015,Central & Corporate,Benefits,Supplies and Services,Bank Charges,263,01-May-2015,1505-00455,0.00,-116.80,R,Alliance & Leicester Commercial Bank,No
Http://opendatacommunities.org/id/metropolitan-district-council/leeds,Leeds City Council,31/05/2015,Strategic Landlord,Housing Management,Supplies and Services,Other Hired And Contracted Services,265,07-May-2015,1505-00456,0.00,296.50,R,Alliance & Leicester Commercial Bank,No
Http://opendatacommunities.org/id/metropolitan-district-council/leeds,Leeds City Council,31/05/2015,Adult Social Care,Services For Adults Under 65 Mental/Dis,Third Party Payments,Home Care,568,08-May-2015,1505-00457,0.00,151.17,R,Allied Healthcare,No
Http://opendatacommunities.org/id/metropolitan-district-council/leeds,Leeds City Council,31/05/2015,Adult Social Care,Services For Adults Under 65 Mental/Dis,Third Party Payments,Home Care,568,08-May-2015,1505-00458,0.00,1197.32,R,Allied Healthcare,No
Http://opendatacommunities.org/id/metropolitan-district-council/leeds,Leeds City Council,31/05/2015,Adult Social Care,Services For Adults Under 65 Mental/Dis,Third Party Payments,Home Care,568,08-May-2015,1505-00459,0.00,283.83,R,Allied Healthcare,No
Http://opendatacommunities.org/id/metropolitan-district-council/leeds,Leeds City Council,31/05/2015,Adult Social Care,Services For Older People - 65 And Over,Third Party Payments,Home Care,568,29-May-2015,1505-00460,0.00,1286.22,R,Allied Healthcare,No
Http://opendatacommunities.org/id/metropolitan-district-council/leeds,Leeds City Council,31/05/2015,Adult Social Care,Services For Older People - 65 And Over,Third Party Payments,Home Care,568,29-May-2015,1505-00461,0.00,432.14,R,Allied Healthcare,No
Http://opendatacommunities.org/id/metropolitan-district-council/leeds,Leeds City Council,31/05/2015,Adult Social Care,Services For Older People - 65 And Over,Third Party Payments,Home Care,568,12-May-2015,1505-00462,0.00,70.11,R,Allied Healthcare,No
Http://opendatacommunities.org/id/metropolitan-district-council/leeds,Leeds City Council,31/05/2015,Adult Social Care,Services For Older People - 65 And Over,Third Party Payments,Home Care,568,12-May-2015,1505-00463,0.00,3990.18,R,Allied Healthcare,No
Http://opendatacommunities.org/id/metropolitan-district-council/leeds,Leeds City Council,31/05/2015,Adult Social Care,Services For Older People - 65 And Over,Third Party Payments,Home Care,568,12-May-2015,1505-00464,0.00,466.57,R,Allied Healthcare,No
Http://opendatacommunities.org/id/metropolitan-district-council/leeds,Leeds City Council,31/05/2015,Adult Social Care,Services For Older People - 65 And Over,Third Party Payments,Home Care,568,12-May-2015,1505-00465,0.00,69.36,R,Allied Healthcare,No
Http://opendatacommunities.org/id/metropolitan-district-council/leeds,Leeds City Council,31/05/2015,Adult Social Care,Services For Older People - 65 And Over,Third Party Payments,Home Care,568,12-May-2015,1505-00466,0.00,1326.08,R,Allied Healthcare,No
Http://opendatacommunities.org/id/metropolitan-district-council/leeds,Leeds City Council,31/05/2015,Adult Social Care,Services For Older People - 65 And Over,Third Party Payments,Home Care,568,12-May-2015,1505-00467,0.00,448.04,R,Allied Healthcare,No
Http://opendatacommunities.org/id/metropolitan-district-council/leeds,Leeds City Council,31/05/2015,Adult Social Care,Services For Older People - 65 And Over,Third Party Payments,Home Care,568,08-May-2015,1505-00468,0.00,329.58,R,Allied Healthcare,No
Http://opendatacommunities.org/id/metropolitan-district-council/leeds,Leeds City Council,31/05/2015,Adult Social Care,Services For Older People - 65 And Over,Third Party Payments,Home Care,568,08-May-2015,1505-00469,0.00,3082.03,R,Allied Healthcare,No
Http://opendatacommunities.org/id/metropolitan-district-council/leeds,Leeds City Council,31/05/2015,Adult Social Care,Services For Older People - 65 And Over,Third Party Payments,Home Care,568,08-May-2015,1505-00470,0.00,1505.72,R,Allied Healthcare,No
Http://opendatacommunities.org/id/metropolitan-district-council/leeds,Leeds City Council,31/05/2015,Adult Social Care,Services For Older People - 65 And Over,Third Party Payments,Home Care,568,29-May-2015,1505-00471,0.00,5599.35,R,Allied Healthcare,No
Http://opendatacommunities.org/id/metropolitan-district-council/leeds,Leeds City Council,31/05/2015,Adult Social Care,Services For Older People - 65 And Over,Third Party Payments,Home Care,568,29-May-2015,1505-00472,0.00,14311.07,R,Allied Healthcare,No
Http://opendatacommunities.org/id/metropolitan-district-council/leeds,Leeds City Council,31/05/2015,Adult Social Care,Services For Older People - 65 And Over,Third Party Payments,Home Care,568,29-May-2015,1505-00473,0.00,11320.22,R,Allied Healthcare,No
Http://opendatacommunities.org/id/metropolitan-district-council/leeds,Leeds City Council,31/05/2015,Adult Social Care,Services For Older People - 65 And Over,Third Party Payments,Home Care,568,29-May-2015,1505-00474,0.00,334.60,R,Allied Healthcare,No
Http://opendatacommunities.org/id/metropolitan-district-council/leeds,Leeds City Council,31/05/2015,Adult Social Care,Services For Older People - 65 And Over,Third Party Payments,Home Care,568,29-May-2015,1505-00475,0.00,2968.50,R,Allied Healthcare,No
Http://opendatacommunities.org/id/metropolitan-district-council/leeds,Leeds City Council,31/05/2015,Adult Social Care,Services For Older People - 65 And Over,Third Party Payments,Home Care,568,29-May-2015,1505-00476,0.00,1505.71,R,Allied Healthcare,No
Http://opendatacommunities.org/id/metropolitan-district-council/leeds,Leeds City Council,31/05/2015,Adult Social Care,Services For Older People - 65 And Over,Third Party Payments,Home Care,568,29-May-2015,1505-00477,0.00,83.65,R,Allied Healthcare,No
Http://opendatacommunities.org/id/metropolitan-district-council/leeds,Leeds City Council,31/05/2015,Adult Social Care,Services For Older People - 65 And Over,Third Party Payments,Home Care,568,29-May-2015,1505-00478,0.00,4239.26,R,Allied Healthcare,No
Http://opendatacommunities.org/id/metropolitan-district-council/leeds,Leeds City Council,31/05/2015,Adult Social Care,Services For Older People - 65 And Over,Third Party Payments,Home Care,568,29-May-2015,1505-00479,0.00,67.97,R,Allied Healthcare,No
Http://opendatacommunities.org/id/metropolitan-district-council/leeds,Leeds City Council,31/05/2015,Adult Social Care,Services For Older People - 65 And Over,Third Party Payments,Home Care,568,29-May-2015,1505-00480,0.00,3418.44,R,Allied Healthcare,No
Http://opendatacommunities.org/id/metropolitan-district-council/leeds,Leeds City Council,31/05/2015,Adult Social Care,Services For Older People - 65 And Over,Third Party Payments,Home Care,568,29-May-2015,1505-00481,0.00,465.56,R,Allied Healthcare,No
Http://opendatacommunities.org/id/metropolitan-district-council/leeds,Leeds City Council,31/05/2015,Adult Social Care,Services For Older People - 65 And Over,Third Party Payments,Home Care,568,12-May-2015,1505-00482,0.00,601.80,R,Allied Healthcare,No
Http://opendatacommunities.org/id/metropolitan-district-council/leeds,Leeds City Council,31/05/2015,Adult Social Care,Services For Older People - 65 And Over,Third Party Payments,Home Care,568,08-May-2015,1505-00483,0.00,14743.24,R,Allied Healthcare,No
Http://opendatacommunities.org/id/metropolitan-district-council/leeds,Leeds City Council,31/05/2015,Adult Social Care,Services For Older People - 65 And Over,Third Party Payments,Home Care,568,08-May-2015,1505-00484,0.00,6128.06,R,Allied Healthcare,No
Http://opendatacommunities.org/id/metropolitan-district-council/leeds,Leeds City Council,31/05/2015,Adult Social Care,Services For Older People - 65 And Over,Third Party Payments,Home Care,568,08-May-2015,1505-00485,0.00,11185.61,R,Allied Healthcare,No
Http://opendatacommunities.org/id/metropolitan-district-council/leeds,Leeds City Council,31/05/2015,Adult Social Care,Services For Older People - 65 And Over,Third Party Payments,Home Care,568,29-May-2015,1505-00486,0.00,663.80,R,Allied Healthcare,No
Http://opendatacommunities.org/id/metropolitan-district-council/leeds,Leeds City Council,31/05/2015,Adult Social Care,Services For Older People - 65 And Over,Third Party Payments,Home Care,568,29-May-2015,1505-00487,0.00,404.26,R,Allied Healthcare,No
Http://opendatacommunities.org/id/metropolitan-district-council/leeds,Leeds City Council,31/05/2015,Adult Social Care,Services For Older People - 65 And Over,Third Party Payments,Home Care,568,14-May-2015,1505-00488,0.00,387.60,R,Allied Healthcare,No
Http://opendatacommunities.org/id/metropolitan-district-council/leeds,Leeds City Council,31/05/2015,Adult Social Care,Services For Older People - 65 And Over,Third Party Payments,Home Care,568,13-May-2015,1505-00489,0.00,612.00,R,Allied Healthcare,No
Http://opendatacommunities.org/id/metropolitan-district-council/leeds,Leeds City Council,31/05/2015,Adult Social Care,Services For Older People - 65 And Over,Third Party Payments,Home Care,568,14-May-2015,1505-00490,0.00,153.00,R,Allied Healthcare,No
Http://opendatacommunities.org/id/metropolitan-district-council/leeds,Leeds City Council,31/05/2015,Adult Social Care,Services For Older People - 65 And Over,Third Party Payments,Home Care,568,14-May-2015,1505-00491,0.00,388.44,R,Allied Healthcare,No
Http://opendatacommunities.org/id/metropolitan-district-council/leeds,Leeds City Council,31/05/2015,Adult Social Care,Services For Older People - 65 And Over,Third Party Payments,Home Care,568,14-May-2015,1505-00492,0.00,632.40,R,Allied Healthcare,No
Http://opendatacommunities.org/id/metropolitan-district-council/leeds,Leeds City Council,31/05/2015,Adult Social Care,Services For Older People - 65 And Over,Third Party Payments,Home Care,568,08-May-2015,1505-00493,0.00,83.65,R,Allied Healthcare,No
Http://opendatacommunities.org/id/metropolitan-district-council/leeds,Leeds City Council,31/05/2015,Adult Social Care,Services For Older People - 65 And Over,Third Party Payments,Home Care,568,08-May-2015,1505-00494,0.00,4750.25,R,Allied Healthcare,No
Http://opendatacommunities.org/id/metropolitan-district-council/leeds,Leeds City Council,31/05/2015,Adult Social Care,Services For Older People - 65 And Over,Third Party Payments,Home Care,568,26-May-2015,1505-00495,0.00,336.60,R,Allied Healthcare,No
Http://opendatacommunities.org/id/metropolitan-district-council/leeds,Leeds City Council,31/05/2015,Adult Social Care,Services For Older People - 65 And Over,Third Party Payments,Home Care,568,26-May-2015,1505-00496,0.00,153.00,R,Allied Healthcare,No
Http://opendatacommunities.org/id/metropolitan-district-council/leeds,Leeds City Council,31/05/2015,Adult Social Care,Services For Older People - 65 And Over,Third Party Payments,Home Care,568,26-May-2015,1505-00497,0.00,632.40,R,Allied Healthcare,No
Http://opendatacommunities.org/id/metropolitan-district-council/leeds,Leeds City Council,31/05/2015,Adult Social Care,Services For Older People - 65 And Over,Third Party Payments,Home Care,568,29-May-2015,1505-00498,0.00,33.14,R,Allied Healthcare,No
Http://opendatacommunities.org/id/metropolitan-district-council/leeds,Leeds City Council,31/05/2015,Adult Social Care,Services For Older People - 65 And Over,Third Party Payments,Home Care,568,29-May-2015,1505-00499,0.00,405.33,R,Allied Healthcare,No
Http://opendatacommunities.org/id/metropolitan-district-council/leeds,Leeds City Council,31/05/2015,Adult Social Care,Services For Older People - 65 And Over,Third Party Payments,Home Care,568,12-May-2015,1505-00500,0.00,387.60,R,Allied Healthcare,No
Http://opendatacommunities.org/id/metropolitan-district-council/leeds,Leeds City Council,31/05/2015,Adult Social Care,Services For Older People - 65 And Over,Third Party Payments,Home Care,568,12-May-2015,1505-00501,0.00,153.00,R,Allied Healthcare,No
Http://opendatacommunities.org/id/metropolitan-district-council/leeds,Leeds City Council,31/05/2015,Adult Social Care,Services For Older People - 65 And Over,Third Party Payments,Home Care,568,12-May-2015,1505-00502,0.00,383.34,R,Allied Healthcare,No
Http://opendatacommunities.org/id/metropolitan-district-council/leeds,Leeds City Council,31/05/2015,Adult Social Care,Services For Older People Under 65 P/Dis,Third Party Payments,Home Care,568,29-May-2015,1505-00503,0.00,239.83,R,Allied Healthcare,No
Http://opendatacommunities.org/id/metropolitan-district-council/leeds,Leeds City Council,31/05/2015,Adult Social Care,Services For Older People Under 65 P/Dis,Third Party Payments,Home Care,568,29-May-2015,1505-00504,0.00,353.08,R,Allied Healthcare,No
Http://opendatacommunities.org/id/metropolitan-district-council/leeds,Leeds City Council,31/05/2015,Adult Social Care,Services For Older People Under 65 P/Dis,Third Party Payments,Home Care,568,12-May-2015,1505-00505,0.00,256.36,R,Allied Healthcare,No
Http://opendatacommunities.org/id/metropolitan-district-council/leeds,Leeds City Council,31/05/2015,Adult Social Care,Services For Older People Under 65 P/Dis,Third Party Payments,Home Care,568,12-May-2015,1505-00506,0.00,232.57,R,Allied Healthcare,No
Http://opendatacommunities.org/id/metropolitan-district-council/leeds,Leeds City Council,31/05/2015,Adult Social Care,Services For Older People Under 65 P/Dis,Third Party Payments,Home Care,568,12-May-2015,1505-00507,0.00,353.08,R,Allied Healthcare,No
Http://opendatacommunities.org/id/metropolitan-district-council/leeds,Leeds City Council,31/05/2015,Adult Social Care,Services For Older People Under 65 P/Dis,Third Party Payments,Home Care,568,08-May-2015,1505-00508,0.00,233.03,R,Allied Healthcare,No
Http://opendatacommunities.org/id/metropolitan-district-council/leeds,Leeds City Council,31/05/2015,Adult Social Care,Services For Older People Under 65 P/Dis,Third Party Payments,Home Care,568,29-May-2015,1505-00509,0.00,1034.27,R,Allied Healthcare,No
Http://opendatacommunities.org/id/metropolitan-district-council/leeds,Leeds City Council,31/05/2015,Adult Social Care,Services For Older People Under 65 P/Dis,Third Party Payments,Home Care,568,29-May-2015,1505-00510,0.00,1178.08,R,Allied Healthcare,No
Http://opendatacommunities.org/id/metropolitan-district-council/leeds,Leeds City Council,31/05/2015,Adult Social Care,Services For Older People Under 65 P/Dis,Third Party Payments,Home Care,568,29-May-2015,1505-00511,0.00,203.23,R,Allied Healthcare,No
Http://opendatacommunities.org/id/metropolitan-district-council/leeds,Leeds City Council,31/05/2015,Adult Social Care,Services For Older People Under 65 P/Dis,Third Party Payments,Home Care,568,29-May-2015,1505-00512,0.00,250.95,R,Allied Healthcare,No
Http://opendatacommunities.org/id/metropolitan-district-council/leeds,Leeds City Council,31/05/2015,Adult Social Care,Services For Older People Under 65 P/Dis,Third Party Payments,Home Care,568,29-May-2015,1505-00513,0.00,249.99,R,Allied Healthcare,No
Http://opendatacommunities.org/id/metropolitan-district-council/leeds,Leeds City Council,31/05/2015,Adult Social Care,Services For Older People Under 65 P/Dis,Third Party Payments,Home Care,568,29-May-2015,1505-00514,0.00,1163.22,R,Allied Healthcare,No
Http://opendatacommunities.org/id/metropolitan-district-council/leeds,Leeds City Council,31/05/2015,Adult Social Care,Services For Older People Under 65 P/Dis,Third Party Payments,Home Care,568,29-May-2015,1505-00515,0.00,195.46,R,Allied Healthcare,No
Http://opendatacommunities.org/id/metropolitan-district-council/leeds,Leeds City Council,31/05/2015,Adult Social Care,Services For Older People Under 65 P/Dis,Third Party Payments,Home Care,568,08-May-2015,1505-00516,0.00,808.01,R,Allied Healthcare,No
Http://opendatacommunities.org/id/metropolitan-district-council/leeds,Leeds City Council,31/05/2015,Adult Social Care,Services For Older People Under 65 P/Dis,Third Party Payments,Home Care,568,29-May-2015,1505-00517,0.00,86.14,R,Allied Healthcare,No
Http://opendatacommunities.org/id/metropolitan-district-council/leeds,Leeds City Council,31/05/2015,Adult Social Care,Services For Older People Under 65 P/Dis,Third Party Payments,Home Care,568,29-May-2015,1505-00518,0.00,13.26,R,Allied Healthcare,No
Http://opendatacommunities.org/id/metropolitan-district-council/leeds,Leeds City Council,31/05/2015,Adult Social Care,Services For Older People Under 65 P/Dis,Third Party Payments,Home Care,568,14-May-2015,1505-00519,0.00,1030.20,R,Allied Healthcare,No
Http://opendatacommunities.org/id/metropolitan-district-council/leeds,Leeds City Council,31/05/2015,Adult Social Care,Services For Older People Under 65 P/Dis,Third Party Payments,Home Care,568,08-May-2015,1505-00520,0.00,249.76,R,Allied Healthcare,No
Http://opendatacommunities.org/id/metropolitan-district-council/leeds,Leeds City Council,31/05/2015,Adult Social Care,Services For Older People Under 65 P/Dis,Third Party Payments,Home Care,568,08-May-2015,1505-00521,0.00,1171.10,R,Allied Healthcare,No
Http://opendatacommunities.org/id/metropolitan-district-council/leeds,Leeds City Council,31/05/2015,Adult Social Care,Services For Older People Under 65 P/Dis,Third Party Payments,Home Care,568,26-May-2015,1505-00522,0.00,6212.97,R,Allied Healthcare,No
Http://opendatacommunities.org/id/metropolitan-district-council/leeds,Leeds City Council,31/05/2015,Adult Social Care,Services For Older People Under 65 P/Dis,Third Party Payments,Home Care,568,26-May-2015,1505-00523,0.00,550.80,R,Allied Healthcare,No
Http://opendatacommunities.org/id/metropolitan-district-council/leeds,Leeds City Council,31/05/2015,Adult Social Care,Services For Older People Under 65 P/Dis,Third Party Payments,Home Care,568,22-May-2015,1505-00524,0.00,326.40,R,Allied Healthcare,No
Http://opendatacommunities.org/id/metropolitan-district-council/leeds,Leeds City Council,31/05/2015,Adult Social Care,Services For Older People Under 65 P/Dis,Third Party Payments,Home Care,568,12-May-2015,1505-00525,0.00,1040.40,R,Allied Healthcare,No
Http://opendatacommunities.org/id/metropolitan-district-council/leeds,Leeds City Council,31/05/2015,Adult Social Care,Services For Older People Under 65 P/Dis,Third Party Payments,Home Care,568,12-May-2015,1505-00526,0.00,6049.77,R,Allied Healthcare,No
Http://opendatacommunities.org/id/metropolitan-district-council/leeds,Leeds City Council,31/05/2015,Adult Social Care,Services For Older People Under 65 P/Dis,Third Party Payments,Home Care,568,12-May-2015,1505-00527,0.00,550.80,R,Allied Healthcare,No
Http://opendatacommunities.org/id/metropolitan-district-council/leeds,Leeds City Council,31/05/2015,Central & Corporate,Commercial Services General Fund,Employees,Agency Staff,8,12-May-2015,1505-00528,0.00,173.31,R,Allied Healthcare,No
Http://opendatacommunities.org/id/metropolitan-district-council/leeds,Leeds City Council,31/05/2015,Central & Corporate,Commercial Services General Fund,Employees,Agency Staff,8,08-May-2015,1505-00529,0.00,152.01,R,Allied Healthcare,No
Http://opendatacommunities.org/id/metropolitan-district-council/leeds,Leeds City Council,31/05/2015,Central & Corporate,Commercial Services General Fund,Employees,Agency Staff,8,08-May-2015,1505-00530,0.00,172.17,R,Allied Healthcare,No
Http://opendatacommunities.org/id/metropolitan-district-council/leeds,Leeds City Council,31/05/2015,Childrens Services,Safeguarding Targeted & Specialist,Third Party Payments,Services Rendered By Voluntary Sector,505,29-May-2015,1505-00531,0.00,89.52,R,Allied Healthcare,No
Http://opendatacommunities.org/id/metropolitan-district-council/leeds,Leeds City Council,31/05/2015,Childrens Services,Safeguarding Targeted & Specialist,Third Party Payments,Services Rendered By Voluntary Sector,505,26-May-2015,1505-00532,0.00,1468.07,R,Allied Healthcare,No
Http://opendatacommunities.org/id/metropolitan-district-council/leeds,Leeds City Council,31/05/2015,Childrens Services,Safeguarding Targeted & Specialist,Third Party Payments,Services Rendered By Voluntary Sector,505,21-May-2015,1505-00533,0.00,91.85,R,Allied Healthcare,No
Http://opendatacommunities.org/id/metropolitan-district-council/leeds,Leeds City Council,31/05/2015,Childrens Services,Safeguarding Targeted & Specialist,Third Party Payments,Services Rendered By Voluntary Sector,505,22-May-2015,1505-00534,0.00,1593.30,R,Allied Healthcare,No
Http://opendatacommunities.org/id/metropolitan-district-council/leeds,Leeds City Council,31/05/2015,Childrens Services,Safeguarding Targeted & Specialist,Third Party Payments,Services Rendered By Voluntary Sector,505,14-May-2015,1505-00535,0.00,1546.10,R,Allied Healthcare,No
Http://opendatacommunities.org/id/metropolitan-district-council/leeds,Leeds City Council as Accountable Body,31/05/2015,Social Services Pooled Budgets,Jcs For People With Learning Disabilitie,Third Party Payments,Home Care,568,28-May-2015,1505-00536,0.00,564.75,R,Allied Healthcare,No
Http://opendatacommunities.org/id/metropolitan-district-council/leeds,Leeds City Council as Accountable Body,31/05/2015,Social Services Pooled Budgets,Jcs For People With Learning Disabilitie,Third Party Payments,Home Care,568,14-May-2015,1505-00537,0.00,3361.93,R,Allied Healthcare,No
Http://opendatacommunities.org/id/metropolitan-district-council/leeds,Leeds City Council as Accountable Body,31/05/2015,Social Services Pooled Budgets,Jcs For People With Learning Disabilitie,Third Party Payments,Home Care,568,14-May-2015,1505-00538,0.00,104.00,R,Allied Healthcare,No
Http://opendatacommunities.org/id/metropolitan-district-council/leeds,Leeds City Council as Accountable Body,31/05/2015,Social Services Pooled Budgets,Jcs For People With Learning Disabilitie,Third Party Payments,Home Care,568,14-May-2015,1505-00539,0.00,3817.06,R,Allied Healthcare,No
Http://opendatacommunities.org/id/metropolitan-district-council/leeds,Leeds City Council as Accountable Body,31/05/2015,Social Services Pooled Budgets,Jcs For People With Learning Disabilitie,Third Party Payments,Home Care,568,28-May-2015,1505-00540,0.00,552.20,R,Allied Healthcare,No
Http://opendatacommunities.org/id/metropolitan-district-council/leeds,Leeds City Council as Accountable Body,31/05/2015,Social Services Pooled Budgets,Jcs For People With Learning Disabilitie,Third Party Payments,Home Care,568,14-May-2015,1505-00541,0.00,3297.25,R,Allied Healthcare,No
Http://opendatacommunities.org/id/metropolitan-district-council/leeds,Leeds City Council as Accountable Body,31/05/2015,Social Services Pooled Budgets,Jcs For People With Learning Disabilitie,Third Party Payments,Home Care,568,14-May-2015,1505-00542,0.00,3784.62,R,Allied Healthcare,No
Http://opendatacommunities.org/id/metropolitan-district-council/leeds,Leeds City Council as Accountable Body,31/05/2015,Social Services Pooled Budgets,Jcs For People With Learning Disabilitie,Third Party Payments,Home Care,568,28-May-2015,1505-00543,0.00,564.75,R,Allied Healthcare,No
Http://opendatacommunities.org/id/metropolitan-district-council/leeds,Leeds City Council as Accountable Body,31/05/2015,Social Services Pooled Budgets,Jcs For People With Learning Disabilitie,Third Party Payments,Home Care,568,14-May-2015,1505-00544,0.00,3132.84,R,Allied Healthcare,No
Http://opendatacommunities.org/id/metropolitan-district-council/leeds,Leeds City Council as Accountable Body,31/05/2015,Social Services Pooled Budgets,Jcs For People With Learning Disabilitie,Third Party Payments,Home Care,568,14-May-2015,1505-00545,0.00,3780.02,R,Allied Healthcare,No
Http://opendatacommunities.org/id/metropolitan-district-council/leeds,Leeds City Council as Accountable Body,31/05/2015,Social Services Pooled Budgets,Jcs For People With Learning Disabilitie,Third Party Payments,Home Care,568,14-May-2015,1505-00546,0.00,3350.72,R,Allied Healthcare,No
Http://opendatacommunities.org/id/metropolitan-district-council/leeds,Leeds City Council as Accountable Body,31/05/2015,Social Services Pooled Budgets,Jcs For People With Learning Disabilitie,Third Party Payments,Home Care,568,28-May-2015,1505-00547,0.00,631.00,R,Allied Healthcare,No
Http://opendatacommunities.org/id/metropolitan-district-council/leeds,Leeds City Council as Accountable Body,31/05/2015,Social Services Pooled Budgets,Jcs For People With Learning Disabilitie,Third Party Payments,Home Care,568,14-May-2015,1505-00548,0.00,2.55,R,Allied Healthcare,No
Http://opendatacommunities.org/id/metropolitan-district-council/leeds,Leeds City Council as Accountable Body,31/05/2015,Social Services Pooled Budgets,Jcs For People With Learning Disabilitie,Third Party Payments,Home Care,568,14-May-2015,1505-00549,0.00,2.55,R,Allied Healthcare,No
Http://opendatacommunities.org/id/metropolitan-district-council/leeds,Leeds City Council as Accountable Body,31/05/2015,Social Services Pooled Budgets,Jcs For People With Learning Disabilitie,Third Party Payments,Home Care,568,14-May-2015,1505-00550,0.00,46.24,R,Allied Healthcare,No
Http://opendatacommunities.org/id/metropolitan-district-council/leeds,Leeds City Council as Accountable Body,31/05/2015,Social Services Pooled Budgets,Jcs For People With Learning Disabilitie,Third Party Payments,Home Care,568,13-May-2015,1505-00551,0.00,552.20,R,Allied Healthcare,No
Http://opendatacommunities.org/id/metropolitan-district-council/leeds,Leeds City Council as Accountable Body,31/05/2015,Social Services Pooled Budgets,Jcs For People With Learning Disabilitie,Third Party Payments,Home Care,568,12-May-2015,1505-00552,0.00,-1267.67,R,Allied Healthcare,No
Http://opendatacommunities.org/id/metropolitan-district-council/leeds,Leeds City Council as Accountable Body,31/05/2015,Social Services Pooled Budgets,Jcs For People With Learning Disabilitie,Third Party Payments,Home Care,568,08-May-2015,1505-00553,0.00,-5.10,R,Allied Healthcare,No
Http://opendatacommunities.org/id/metropolitan-district-council/leeds,Leeds City Council as Accountable Body,31/05/2015,Social Services Pooled Budgets,Jcs For People With Learning Disabilitie,Third Party Payments,Home Care,568,13-May-2015,1505-00554,0.00,564.75,R,Allied Healthcare,No
Http://opendatacommunities.org/id/metropolitan-district-council/leeds,Leeds City Council as Accountable Body,31/05/2015,Social Services Pooled Budgets,Jcs For People With Learning Disabilitie,Third Party Payments,Home Care,568,13-May-2015,1505-00555,0.00,564.75,R,Allied Healthcare,No
Http://opendatacommunities.org/id/metropolitan-district-council/leeds,Leeds City Council as Accountable Body,31/05/2015,Social Services Pooled Budgets,Jcs For People With Learning Disabilitie,Third Party Payments,Home Care,568,13-May-2015,1505-00556,0.00,602.40,R,Allied Healthcare,No
Http://opendatacommunities.org/id/metropolitan-district-council/leeds,Leeds City Council as Accountable Body,31/05/2015,Social Services Pooled Budgets,Jcs For People With Learning Disabilitie,Third Party Payments,Home Care,568,13-May-2015,1505-00557,0.00,564.75,R,Allied Healthcare,No
Http://opendatacommunities.org/id/metropolitan-district-council/leeds,Leeds City Council as Accountable Body,31/05/2015,Social Services Pooled Budgets,Jcs For People With Learning Disabilitie,Third Party Payments,Home Care,568,13-May-2015,1505-00558,0.00,571.03,R,Allied Healthcare,No
Http://opendatacommunities.org/id/metropolitan-district-council/leeds,Leeds City Council as Accountable Body,31/05/2015,Social Services Pooled Budgets,Jcs For People With Learning Disabilitie,Third Party Payments,Home Care,568,13-May-2015,1505-00559,0.00,552.20,R,Allied Healthcare,No
Http://opendatacommunities.org/id/metropolitan-district-council/leeds,Leeds City Council as Accountable Body,31/05/2015,Social Services Pooled Budgets,Jcs For People With Learning Disabilitie,Third Party Payments,Home Care,568,13-May-2015,1505-00560,0.00,564.75,R,Allied Healthcare,No
Http://opendatacommunities.org/id/metropolitan-district-council/leeds,Leeds City Council as Accountable Body,31/05/2015,Social Services Pooled Budgets,Jcs For People With Learning Disabilitie,Third Party Payments,Home Care,568,13-May-2015,1505-00561,0.00,564.75,R,Allied Healthcare,No
Http://opendatacommunities.org/id/metropolitan-district-council/leeds,Leeds City Council as Accountable Body,31/05/2015,Social Services Pooled Budgets,Jcs For People With Learning Disabilitie,Third Party Payments,Home Care,568,14-May-2015,1505-00562,0.00,3762.82,R,Allied Healthcare,No
Http://opendatacommunities.org/id/metropolitan-district-council/leeds,Leeds City Council as Accountable Body,31/05/2015,Social Services Pooled Budgets,Jcs For People With Learning Disabilitie,Third Party Payments,Home Care,568,13-May-2015,1505-00563,0.00,564.75,R,Allied Healthcare,No
Http://opendatacommunities.org/id/metropolitan-district-council/leeds,Leeds City Council as Accountable Body,31/05/2015,Social Services Pooled Budgets,Jcs For People With Learning Disabilitie,Third Party Payments,Home Care,568,14-May-2015,1505-00564,0.00,3373.41,R,Allied Healthcare,No
Http://opendatacommunities.org/id/metropolitan-district-council/leeds,Leeds City Council as Accountable Body,31/05/2015,Social Services Pooled Budgets,Jcs For People With Learning Disabilitie,Third Party Payments,Home Care,568,14-May-2015,1505-00565,0.00,3797.16,R,Allied Healthcare,No
Http://opendatacommunities.org/id/metropolitan-district-council/leeds,Leeds City Council as Accountable Body,31/05/2015,Social Services Pooled Budgets,Jcs For People With Learning Disabilitie,Third Party Payments,Home Care,568,13-May-2015,1505-00566,0.00,564.75,R,Allied Healthcare,No
Http://opendatacommunities.org/id/metropolitan-district-council/leeds,Leeds City Council as Accountable Body,31/05/2015,Social Services Pooled Budgets,Jcs For People With Learning Disabilitie,Third Party Payments,Home Care,568,14-May-2015,1505-00567,0.00,16.47,R,Allied Healthcare,No
Http://opendatacommunities.org/id/metropolitan-district-council/leeds,Leeds City Council as Accountable Body,31/05/2015,Social Services Pooled Budgets,Jcs For People With Learning Disabilitie,Third Party Payments,Home Care,568,14-May-2015,1505-00568,0.00,3337.37,R,Allied Healthcare,No
Http://opendatacommunities.org/id/metropolitan-district-council/leeds,Leeds City Council as Accountable Body,31/05/2015,Social Services Pooled Budgets,Jcs For People With Learning Disabilitie,Third Party Payments,Home Care,568,14-May-2015,1505-00569,0.00,3801.76,R,Allied Healthcare,No
Http://opendatacommunities.org/id/metropolitan-district-council/leeds,Leeds City Council,31/05/2015,Central & Corporate,Public Health,Third Party Payments,Public Health Commissioned Services,526,28-May-2015,1505-00570,0.00,455.55,R,Allied Pharmacy Ltd,No
Http://opendatacommunities.org/id/metropolitan-district-council/leeds,Leeds City Council,31/05/2015,Central & Corporate,Human Resources,Employees,Occupational Health,85,25-May-2015,1505-00571,0.00,50.00,R,Allman & Partners,No
Http://opendatacommunities.org/id/metropolitan-district-council/leeds,Leeds City Council,31/05/2015,Central & Corporate,Commercial Services Trading Services,Transport,Fuel (Non LCC Supplies),321,13-May-2015,1505-00572,0.00,20.24,R,Allstar Business Solutions Ltd,No
Http://opendatacommunities.org/id/metropolitan-district-council/leeds,Leeds City Council,31/05/2015,Central & Corporate,Commercial Services Trading Services,Transport,Fuel (Non LCC Supplies),321,28-May-2015,1505-00573,0.00,73.19,R,Allstar Business Solutions Ltd,No
Http://opendatacommunities.org/id/metropolitan-district-council/leeds,Leeds City Council,31/05/2015,Central & Corporate,Support And Facilities General Fund,Transport,Fuel (Non LCC Supplies),321,07-May-2015,1505-00574,0.00,117.27,R,Allstar Business Solutions Ltd,No
Http://opendatacommunities.org/id/metropolitan-district-council/leeds,Leeds City Council,31/05/2015,Childrens Services,Learning Skills & Universal,Transport,Fuel (Non LCC Supplies),321,07-May-2015,1505-00575,0.00,1812.94,R,Allstar Business Solutions Ltd,No
Http://opendatacommunities.org/id/metropolitan-district-council/leeds,Leeds City Council,31/05/2015,City Development,Highways,Transport,Fuel (Non LCC Supplies),321,07-May-2015,1505-00576,0.00,366.52,R,Allstar Business Solutions Ltd,No
Http://opendatacommunities.org/id/metropolitan-district-council/leeds,Leeds City Council,31/05/2015,Environment & Housing,Parks & Countryside,Transport,Fuel (Non LCC Supplies),321,07-May-2015,1505-00577,0.00,84.95,R,Allstar Business Solutions Ltd,No
Http://opendatacommunities.org/id/metropolitan-district-council/leeds,Leeds City Council,31/05/2015,Environment & Housing,Waste Management,Transport,Fuel (Non LCC Supplies),321,07-May-2015,1505-00578,0.00,1.00,R,Allstar Business Solutions Ltd,No
Http://opendatacommunities.org/id/metropolitan-district-council/leeds,Leeds City Council,31/05/2015,Strategic Landlord,Housing Management,Premises,General Maintenance,104,15-May-2015,1505-00579,0.00,133.33,R,Al-Murad Diy Ltd,No
Http://opendatacommunities.org/id/metropolitan-district-council/leeds,Leeds City Council,31/05/2015,Strategic Landlord,Property and Contracts,Premises,General Maintenance,104,15-May-2015,1505-00580,0.00,150.00,R,Al-Murad Diy Ltd,No
Http://opendatacommunities.org/id/metropolitan-district-council/leeds,Leeds City Council,31/05/2015,Strategic Landlord,Property and Contracts,Premises,General Maintenance,104,15-May-2015,1505-00581,0.00,166.67,R,Al-Murad Diy Ltd,No
Http://opendatacommunities.org/id/metropolitan-district-council/leeds,Leeds City Council,31/05/2015,Strategic Landlord,Property and Contracts,Premises,General Maintenance,104,15-May-2015,1505-00582,0.00,41.67,R,Al-Murad Diy Ltd,No
Http://opendatacommunities.org/id/metropolitan-district-council/leeds,Leeds City Council,31/05/2015,Strategic Landlord,Property and Contracts,Premises,General Maintenance,104,15-May-2015,1505-00583,0.00,25.00,R,Al-Murad Diy Ltd,No
Http://opendatacommunities.org/id/metropolitan-district-council/leeds,Leeds City Council,31/05/2015,Strategic Landlord,Property and Contracts,Premises,General Maintenance,104,15-May-2015,1505-00584,0.00,83.34,R,Al-Murad Diy Ltd,No
Http://opendatacommunities.org/id/metropolitan-district-council/leeds,Leeds City Council,31/05/2015,Strategic Landlord,Property and Contracts,Premises,General Maintenance,104,15-May-2015,1505-00585,0.00,41.67,R,Al-Murad Diy Ltd,No
Http://opendatacommunities.org/id/metropolitan-district-council/leeds,Leeds City Council,31/05/2015,Strategic Landlord,Property and Contracts,Premises,General Maintenance,104,15-May-2015,1505-00586,0.00,166.67,R,Al-Murad Diy Ltd,No
Http://opendatacommunities.org/id/metropolitan-district-council/leeds,Leeds City Council,31/05/2015,Strategic Landlord,Property and Contracts,Premises,General Maintenance,104,15-May-2015,1505-00587,0.00,166.67,R,Al-Murad Diy Ltd,No
Http://opendatacommunities.org/id/metropolitan-district-council/leeds,Leeds City Council,31/05/2015,Strategic Landlord,Property and Contracts,Premises,General Maintenance,104,15-May-2015,1505-00588,0.00,33.34,R,Al-Murad Diy Ltd,No
Http://opendatacommunities.org/id/metropolitan-district-council/leeds,Leeds City Council,31/05/2015,Strategic Landlord,Property and Contracts,Premises,General Maintenance,104,15-May-2015,1505-00589,0.00,8.34,R,Al-Murad Diy Ltd,No
Http://opendatacommunities.org/id/metropolitan-district-council/leeds,Leeds City Council,31/05/2015,Strategic Landlord,Property and Contracts,Premises,General Maintenance,104,15-May-2015,1505-00590,0.00,183.33,R,Al-Murad Diy Ltd,No
Http://opendatacommunities.org/id/metropolitan-district-council/leeds,Leeds City Council,31/05/2015,Strategic Landlord,Property and Contracts,Premises,General Maintenance,104,15-May-2015,1505-00591,0.00,216.67,R,Al-Murad Diy Ltd,No
Http://opendatacommunities.org/id/metropolitan-district-council/leeds,Leeds City Council,31/05/2015,Strategic Landlord,Property and Contracts,Premises,General Maintenance,104,15-May-2015,1505-00592,0.00,291.67,R,Al-Murad Diy Ltd,No
Http://opendatacommunities.org/id/metropolitan-district-council/leeds,Leeds City Council,31/05/2015,Strategic Landlord,Property and Contracts,Premises,General Maintenance,104,15-May-2015,1505-00593,0.00,166.67,R,Al-Murad Diy Ltd,No
Http://opendatacommunities.org/id/metropolitan-district-council/leeds,Leeds City Council,31/05/2015,Strategic Landlord,Property and Contracts,Premises,General Maintenance,104,15-May-2015,1505-00594,0.00,208.33,R,Al-Murad Diy Ltd,No
Http://opendatacommunities.org/id/metropolitan-district-council/leeds,Leeds City Council,31/05/2015,Strategic Landlord,Property and Contracts,Premises,General Maintenance,104,15-May-2015,1505-00595,0.00,83.33,R,Al-Murad Diy Ltd,No
Http://opendatacommunities.org/id/metropolitan-district-council/leeds,Leeds City Council,31/05/2015,Strategic Landlord,Property and Contracts,Premises,General Maintenance,104,15-May-2015,1505-00596,0.00,83.33,R,Al-Murad Diy Ltd,No
Http://opendatacommunities.org/id/metropolitan-district-council/leeds,Leeds City Council,31/05/2015,Strategic Landlord,Property and Contracts,Premises,General Maintenance,104,15-May-2015,1505-00597,0.00,66.66,R,Al-Murad Diy Ltd,No
Http://opendatacommunities.org/id/metropolitan-district-council/leeds,Leeds City Council,31/05/2015,Strategic Landlord,Property and Contracts,Premises,General Maintenance,104,15-May-2015,1505-00598,0.00,41.66,R,Al-Murad Diy Ltd,No
Http://opendatacommunities.org/id/metropolitan-district-council/leeds,Leeds City Council,31/05/2015,Strategic Landlord,Property and Contracts,Support Services,Exchequer Services Charges,404,15-May-2015,1505-00599,0.00,83.34,R,Al-Murad Diy Ltd,No
Http://opendatacommunities.org/id/metropolitan-district-council/leeds,Leeds City Council,31/05/2015,Strategic Landlord,Property and Contracts,Premises,General Maintenance,104,15-May-2015,1505-00600,0.00,83.34,R,Al-Murad Diy Ltd,No
Http://opendatacommunities.org/id/metropolitan-district-council/leeds,Leeds City Council,31/05/2015,Strategic Landlord,Property and Contracts,Premises,General Maintenance,104,15-May-2015,1505-00601,0.00,66.67,R,Al-Murad Diy Ltd,No
Http://opendatacommunities.org/id/metropolitan-district-council/leeds,Leeds City Council,31/05/2015,Strategic Landlord,Property and Contracts,Premises,General Maintenance,104,15-May-2015,1505-00602,0.00,16.67,R,Al-Murad Diy Ltd,No
Http://opendatacommunities.org/id/metropolitan-district-council/leeds,Leeds City Council,31/05/2015,Strategic Landlord,Property and Contracts,Premises,General Maintenance,104,15-May-2015,1505-00603,0.00,8.34,R,Al-Murad Diy Ltd,No
Http://opendatacommunities.org/id/metropolitan-district-council/leeds,Leeds City Council,31/05/2015,Strategic Landlord,Property and Contracts,Premises,General Maintenance,104,15-May-2015,1505-00604,0.00,41.67,R,Al-Murad Diy Ltd,No
Http://opendatacommunities.org/id/metropolitan-district-council/leeds,Leeds City Council,31/05/2015,Strategic Landlord,Property and Contracts,Premises,General Maintenance,104,15-May-2015,1505-00605,0.00,41.67,R,Al-Murad Diy Ltd,No
Http://opendatacommunities.org/id/metropolitan-district-council/leeds,Leeds City Council,31/05/2015,Strategic Landlord,Property and Contracts,Premises,General Maintenance,104,15-May-2015,1505-00606,0.00,8.34,R,Al-Murad Diy Ltd,No
Http://opendatacommunities.org/id/metropolitan-district-council/leeds,Leeds City Council,31/05/2015,Strategic Landlord,Property and Contracts,Premises,General Maintenance,104,15-May-2015,1505-00607,0.00,4.17,R,Al-Murad Diy Ltd,No
Http://opendatacommunities.org/id/metropolitan-district-council/leeds,Leeds City Council,31/05/2015,Strategic Landlord,Property and Contracts,Premises,General Maintenance,104,15-May-2015,1505-00608,0.00,83.34,R,Al-Murad Diy Ltd,No
Http://opendatacommunities.org/id/metropolitan-district-council/leeds,Leeds City Council,31/05/2015,Strategic Landlord,Property and Contracts,Premises,General Maintenance,104,15-May-2015,1505-00609,0.00,41.67,R,Al-Murad Diy Ltd,No
Http://opendatacommunities.org/id/metropolitan-district-council/leeds,Leeds City Council,31/05/2015,Strategic Landlord,Property and Contracts,Premises,General Maintenance,104,15-May-2015,1505-00610,0.00,66.67,R,Al-Murad Diy Ltd,No
Http://opendatacommunities.org/id/metropolitan-district-council/leeds,Leeds City Council,31/05/2015,Strategic Landlord,Property and Contracts,Premises,General Maintenance,104,15-May-2015,1505-00611,0.00,125.00,R,Al-Murad Diy Ltd,No
Http://opendatacommunities.org/id/metropolitan-district-council/leeds,Leeds City Council,31/05/2015,Strategic Landlord,Property and Contracts,Premises,General Maintenance,104,15-May-2015,1505-00612,0.00,41.67,R,Al-Murad Diy Ltd,No
Http://opendatacommunities.org/id/metropolitan-district-council/leeds,Leeds City Council,31/05/2015,Strategic Landlord,Property and Contracts,Premises,General Maintenance,104,15-May-2015,1505-00613,0.00,75.00,R,Al-Murad Diy Ltd,No
Http://opendatacommunities.org/id/metropolitan-district-council/leeds,Leeds City Council,31/05/2015,Strategic Landlord,Property and Contracts,Premises,General Maintenance,104,15-May-2015,1505-00614,0.00,125.00,R,Al-Murad Diy Ltd,No
Http://opendatacommunities.org/id/metropolitan-district-council/leeds,Leeds City Council,31/05/2015,Strategic Landlord,Property and Contracts,Premises,General Maintenance,104,15-May-2015,1505-00615,0.00,41.67,R,Al-Murad Diy Ltd,No
Http://opendatacommunities.org/id/metropolitan-district-council/leeds,Leeds City Council,31/05/2015,Strategic Landlord,Property and Contracts,Premises,General Maintenance,104,15-May-2015,1505-00616,0.00,166.67,R,Al-Murad Diy Ltd,No
Http://opendatacommunities.org/id/metropolitan-district-council/leeds,Leeds City Council,31/05/2015,Strategic Landlord,Property and Contracts,Premises,General Maintenance,104,15-May-2015,1505-00617,0.00,83.34,R,Al-Murad Diy Ltd,No
Http://opendatacommunities.org/id/metropolitan-district-council/leeds,Leeds City Council,31/05/2015,Strategic Landlord,Property and Contracts,Premises,General Maintenance,104,15-May-2015,1505-00618,0.00,41.67,R,Al-Murad Diy Ltd,No
Http://opendatacommunities.org/id/metropolitan-district-council/leeds,Leeds City Council,31/05/2015,Strategic Landlord,Property and Contracts,Premises,General Maintenance,104,15-May-2015,1505-00619,0.00,41.67,R,Al-Murad Diy Ltd,No
Http://opendatacommunities.org/id/metropolitan-district-council/leeds,Leeds City Council,31/05/2015,Strategic Landlord,Property and Contracts,Premises,General Maintenance,104,15-May-2015,1505-00620,0.00,133.34,R,Al-Murad Diy Ltd,No
Http://opendatacommunities.org/id/metropolitan-district-council/leeds,Leeds City Council,31/05/2015,Strategic Landlord,Property and Contracts,Premises,General Maintenance,104,15-May-2015,1505-00621,0.00,141.67,R,Al-Murad Diy Ltd,No
Http://opendatacommunities.org/id/metropolitan-district-council/leeds,Leeds City Council,31/05/2015,Strategic Landlord,Old Costcentres,Supplies and Services,Operational Furniture And Equipment,203,07-May-2015,1505-00622,0.00,38.33,R,Alpha Abc,No
Http://opendatacommunities.org/id/metropolitan-district-council/leeds,Leeds City Council,31/05/2015,Childrens Services,Safeguarding Targeted & Specialist,Support Services,Legal Disbursements,411,29-May-2015,1505-00623,0.00,179.98,R,Alpha Biolaboratories Limited,No
Http://opendatacommunities.org/id/metropolitan-district-council/leeds,Leeds City Council,31/05/2015,Childrens Services,Safeguarding Targeted & Specialist,Support Services,Legal Disbursements,411,14-May-2015,1505-00624,0.00,171.66,R,Alpha Biolaboratories Limited,No
Http://opendatacommunities.org/id/metropolitan-district-council/leeds,Leeds City Council,31/05/2015,Childrens Services,Safeguarding Targeted & Specialist,Support Services,Legal Disbursements,411,29-May-2015,1505-00625,0.00,204.98,R,Alpha Biolaboratories Limited,No
Http://opendatacommunities.org/id/metropolitan-district-council/leeds,Leeds City Council,31/05/2015,Childrens Services,Safeguarding Targeted & Specialist,Third Party Payments,Placement Support,550,29-May-2015,1505-00626,0.00,140.83,R,Alpha Biolaboratories Limited,No
Http://opendatacommunities.org/id/metropolitan-district-council/leeds,Leeds City Council,31/05/2015,Central & Corporate,Support And Facilities General Fund  ,Supplies and Services,Teaching Materials,202,13-Apr-2015,1505-00627,0.00,2385.26,R,Alphagraphics,Yes
Http://opendatacommunities.org/id/metropolitan-district-council/leeds,Leeds City Council,31/05/2015,Central & Corporate,Commercial Services Trading Services,Supplies and Services,Operational Materials,205,05-May-2015,1505-00628,0.00,29.84,R,Alternative Windows (Leeds) Ltd,No
Http://opendatacommunities.org/id/metropolitan-district-council/leeds,Leeds City Council,31/05/2015,Central & Corporate,Commercial Services Trading Services,Supplies and Services,Operational Materials,205,05-May-2015,1505-00629,0.00,48.88,R,Alternative Windows (Leeds) Ltd,No
Http://opendatacommunities.org/id/metropolitan-district-council/leeds,Leeds City Council,31/05/2015,City Development,Libraries  Arts & Heritage,Supplies and Services,Other Hired And Contracted Services,265,20-May-2015,1505-00630,0.00,100.00,R,Altitude Film Distribution Limited,No
Http://opendatacommunities.org/id/metropolitan-district-council/leeds,Leeds City Council,31/05/2015,Childrens Services,Learning Skills & Universal  ,Supplies and Services,Admission Charges To Schools,283,01-Apr-2015,1505-00631,0.00,966.67,R,Alton Towers Park,Yes
Http://opendatacommunities.org/id/metropolitan-district-council/leeds,Leeds City Council,31/05/2015,Central & Corporate,Support And Facilities General Fund,Premises,Rents,141,19-May-2015,1505-00632,0.00,250.00,R,Alwoodley Community Association,No
Http://opendatacommunities.org/id/metropolitan-district-council/leeds,Leeds City Council,31/05/2015,Adult Social Care,Services For Older People - 65 And Over,Third Party Payments,Nursing Home,570,06-May-2015,1505-00633,0.00,2763.24,R,Alwoodley Nursing Home,No
Http://opendatacommunities.org/id/metropolitan-district-council/leeds,Leeds City Council,31/05/2015,Adult Social Care,Services For Older People Under 65 P/Dis,Transfer Payments,Personalised Budgets,627,06-May-2015,1505-00634,0.00,1588.40,R,REDACTED PERSONAL DATA,No
Http://opendatacommunities.org/id/metropolitan-district-council/leeds,Leeds City Council,31/05/2015,Childrens Services,Safeguarding Targeted & Specialist,Third Party Payments,Section 17,551,08-May-2015,1505-00635,0.00,504.00,R,REDACTED PERSONAL DATA,No
Http://opendatacommunities.org/id/metropolitan-district-council/leeds,Leeds City Council as Accountable Body,31/05/2015,Social Services Pooled Budgets,Jcs For People With Learning Disabilitie,Transfer Payments,Personal Budgets,627,06-May-2015,1505-00636,0.00,1083.12,R,REDACTED PERSONAL DATA,No
Http://opendatacommunities.org/id/metropolitan-district-council/leeds,Leeds City Council,31/05/2015,Adult Social Care,Services For Adults Under 65 Mental/Dis,Transfer Payments,Personalised Budgets,627,06-May-2015,1505-00637,0.00,2166.16,R,REDACTED PERSONAL DATA,No
Http://opendatacommunities.org/id/metropolitan-district-council/leeds,Leeds City Council,31/05/2015,City Development,Libraries  Arts & Heritage,Supplies and Services,Art Galleries Total Stores,003,15-May-2015,1505-00638,0.00,554.40,R,Amanda Ross,No
Http://opendatacommunities.org/id/metropolitan-district-council/leeds,Leeds City Council,31/05/2015,Childrens Services,Learning Skills & Universal,Third Party Payments,Services Rendered By Other Organisations,511,14-May-2015,1505-00639,0.00,3.00,R,REDACTED PERSONAL DATA,No
Http://opendatacommunities.org/id/metropolitan-district-council/leeds,Leeds City Council,31/05/2015,Childrens Services,Learning Skills & Universal,Third Party Payments,Services Rendered By Other Organisations,511,28-May-2015,1505-00640,0.00,103.35,R,Amanda Wharton,No
Http://opendatacommunities.org/id/metropolitan-district-council/leeds,Leeds City Council,31/05/2015,Childrens Services,Learning Skills & Universal,Third Party Payments,Services Rendered By Other Organisations,511,28-May-2015,1505-00641,0.00,131.85,R,Amanda Wharton,No
Http://opendatacommunities.org/id/metropolitan-district-council/leeds,Leeds City Council,31/05/2015,Adult Social Care,Services For Older People Under 65 P/Dis,Transfer Payments,Direct Payments,626,06-May-2015,1505-00642,0.00,761.44,R,REDACTED PERSONAL DATA,No
Http://opendatacommunities.org/id/metropolitan-district-council/leeds,Leeds City Council,31/05/2015,Environment & Housing,Statutory Housing,Supplies and Services,Other Hired And Contracted Services,265,08-May-2015,1505-00643,0.00,800.00,R,Amar Mehboob,No
Http://opendatacommunities.org/id/metropolitan-district-council/leeds,Leeds City Council,31/05/2015,Central & Corporate,Support And Facilities General Fund,Supplies and Services,Operational Materials,205,22-May-2015,1505-00644,0.00,40.00,R,Amari Plastics Plc,No
Http://opendatacommunities.org/id/metropolitan-district-council/leeds,Leeds City Council,31/05/2015,Central & Corporate,Support And Facilities General Fund,Supplies and Services,Operational Materials,205,22-May-2015,1505-00645,0.00,114.34,R,Amari Plastics Plc,No
Http://opendatacommunities.org/id/metropolitan-district-council/leeds,Leeds City Council,31/05/2015,City Development,Recreation,Supplies and Services,Other Hired And Contracted Services,265,22-May-2015,1505-00646,0.00,300.00,R,Amateur Swimming Association,No
Http://opendatacommunities.org/id/metropolitan-district-council/leeds,Leeds City Council,31/05/2015,Childrens Services,Learning Skills & Universal,Third Party Payments,Services Rendered By Other Organisations,511,28-May-2015,1505-00647,0.00,1924.07,R,Amazing Grace Early Years Childcare,No
Http://opendatacommunities.org/id/metropolitan-district-council/leeds,Leeds City Council,31/05/2015,Childrens Services,Learning Skills & Universal,Third Party Payments,Services Rendered By Other Organisations,511,28-May-2015,1505-00648,0.00,310.05,R,Amazing Grace Early Years Childcare,No
Http://opendatacommunities.org/id/metropolitan-district-council/leeds,Leeds City Council,31/05/2015,City Development,Recreation,Supplies and Services,Operational Furniture And Equipment,203,21-May-2015,1505-00649,0.00,-105.00,R,Amazon Leisure Uk Ltd,No
Http://opendatacommunities.org/id/metropolitan-district-council/leeds,Leeds City Council,31/05/2015,City Development,Recreation,Supplies and Services,Operational Furniture And Equipment,203,29-May-2015,1505-00650,0.00,145.37,R,Amazon Leisure Uk Ltd,No
Http://opendatacommunities.org/id/metropolitan-district-council/leeds,Leeds City Council,31/05/2015,City Development,Recreation,Supplies and Services,Operational Furniture And Equipment,203,28-May-2015,1505-00651,0.00,391.33,R,Amazon Leisure Uk Ltd,No
Http://opendatacommunities.org/id/metropolitan-district-council/leeds,Leeds City Council,31/05/2015,City Development,Recreation,Supplies and Services,Operational Furniture And Equipment,203,21-May-2015,1505-00652,0.00,1449.07,R,Amazon Leisure Uk Ltd,No
Http://opendatacommunities.org/id/metropolitan-district-council/leeds,Leeds City Council,31/05/2015,City Development,Recreation,Supplies and Services,Operational Furniture And Equipment,203,20-May-2015,1505-00653,0.00,170.37,R,Amazon Leisure Uk Ltd,No
Http://opendatacommunities.org/id/metropolitan-district-council/leeds,Leeds City Council,31/05/2015,City Development,Recreation,Supplies and Services,Operational Furniture And Equipment,203,22-May-2015,1505-00654,0.00,332.33,R,Amazon Leisure Uk Ltd,No
Http://opendatacommunities.org/id/metropolitan-district-council/leeds,Leeds City Council,31/05/2015,City Development,Recreation,Supplies and Services,Operational Furniture And Equipment,203,22-May-2015,1505-00655,0.00,127.50,R,Amazon Leisure Uk Ltd,No
Http://opendatacommunities.org/id/metropolitan-district-council/leeds,Leeds City Council,31/05/2015,City Development,Recreation,Supplies and Services,Operational Furniture And Equipment,203,22-May-2015,1505-00656,0.00,94.12,R,Amazon Leisure Uk Ltd,No
Http://opendatacommunities.org/id/metropolitan-district-council/leeds,Leeds City Council,31/05/2015,City Development,Recreation,Supplies and Services,Operational Furniture And Equipment,203,15-May-2015,1505-00657,0.00,244.20,R,Amazon Leisure Uk Ltd,No
Http://opendatacommunities.org/id/metropolitan-district-council/leeds,Leeds City Council,31/05/2015,City Development,Recreation,Supplies and Services,Operational Furniture And Equipment,203,08-May-2015,1505-00658,0.00,502.90,R,Amazon Leisure Uk Ltd,No
Http://opendatacommunities.org/id/metropolitan-district-council/leeds,Leeds City Council,31/05/2015,City Development,Recreation,Supplies and Services,Operational Furniture And Equipment,203,20-May-2015,1505-00659,0.00,210.00,R,Amazon Leisure Uk Ltd,No
Http://opendatacommunities.org/id/metropolitan-district-council/leeds,Leeds City Council,31/05/2015,City Development,Recreation,Supplies and Services,Operational Furniture And Equipment,203,01-May-2015,1505-00660,0.00,952.01,R,Amazon Leisure Uk Ltd,No
Http://opendatacommunities.org/id/metropolitan-district-council/leeds,Leeds City Council,31/05/2015,City Development,Recreation,Supplies and Services,Operational Furniture And Equipment,203,07-May-2015,1505-00661,0.00,551.18,R,Amazon Leisure Uk Ltd,No
Http://opendatacommunities.org/id/metropolitan-district-council/leeds,Leeds City Council,31/05/2015,City Development,Recreation,Supplies and Services,Operational Furniture And Equipment,203,07-May-2015,1505-00662,0.00,285.00,R,Amazon Leisure Uk Ltd,No
Http://opendatacommunities.org/id/metropolitan-district-council/leeds,Leeds City Council,31/05/2015,City Development,Recreation,Supplies and Services,Operational Furniture And Equipment,203,01-May-2015,1505-00663,0.00,105.00,R,Amazon Leisure Uk Ltd,No
Http://opendatacommunities.org/id/metropolitan-district-council/leeds,Leeds City Council,31/05/2015,Central & Corporate,Support And Facilities General Fund  ,Supplies and Services,Teaching Materials,202,26-Apr-2015,1505-00664,0.00,79.00,R,Amazon Prime,Yes
Http://opendatacommunities.org/id/metropolitan-district-council/leeds,Leeds City Council,31/05/2015,Central & Corporate,Commercial Services Trading Services  ,Supplies and Services,Operational Materials,205,03-Apr-2015,1505-00665,0.00,36.90,R,Amazon Svcs Europe sar,Yes
Http://opendatacommunities.org/id/metropolitan-district-council/leeds,Leeds City Council,31/05/2015,Central & Corporate,Commercial Services Trading Services  ,Supplies and Services,Operational Materials,205,29-Apr-2015,1505-00666,0.00,1.20,R,Amazon Svcs Europe sar,Yes
Http://opendatacommunities.org/id/metropolitan-district-council/leeds,Leeds City Council,31/05/2015,Central & Corporate,Corporate Governance  ,Supplies and Services,Books & Audio-Visual Materials,206,01-Apr-2015,1505-00667,0.00,87.39,R,Amazon Svcs Europe sar,Yes
Http://opendatacommunities.org/id/metropolitan-district-council/leeds,Leeds City Council,31/05/2015,Central & Corporate,Corporate Services Support Services  ,Supplies and Services,Operational Materials,205,08-Apr-2015,1505-00668,0.00,5.47,R,Amazon Svcs Europe sar,Yes
Http://opendatacommunities.org/id/metropolitan-district-council/leeds,Leeds City Council,31/05/2015,Central & Corporate,Support And Facilities General Fund  ,Supplies and Services,Telephones,213,08-Apr-2015,1505-00669,0.00,6.38,R,Amazon Svcs Europe sar,Yes
Http://opendatacommunities.org/id/metropolitan-district-council/leeds,Leeds City Council,31/05/2015,Central & Corporate,Support And Facilities General Fund  ,Supplies and Services,Operational Furniture And Equipment,203,08-Apr-2015,1505-00670,0.00,30.82,R,Amazon Svcs Europe sar,Yes
Http://opendatacommunities.org/id/metropolitan-district-council/leeds,Leeds City Council,31/05/2015,Central & Corporate,Support And Facilities General Fund  ,Supplies and Services,Operational Materials,205,08-Apr-2015,1505-00671,0.00,68.97,R,Amazon Svcs Europe sar,Yes
Http://opendatacommunities.org/id/metropolitan-district-council/leeds,Leeds City Council,31/05/2015,Central & Corporate,Support And Facilities General Fund  ,Premises,Maintenance Of Buildings,101,08-Apr-2015,1505-00672,0.00,4.98,R,Amazon Svcs Europe sar,Yes
Http://opendatacommunities.org/id/metropolitan-district-council/leeds,Leeds City Council,31/05/2015,Central & Corporate,Support And Facilities General Fund  ,Supplies and Services,Operational Furniture And Equipment,203,08-Apr-2015,1505-00673,0.00,66.00,R,Amazon Svcs Europe sar,Yes
Http://opendatacommunities.org/id/metropolitan-district-council/leeds,Leeds City Council,31/05/2015,Central & Corporate,Support And Facilities General Fund  ,Supplies and Services,Operational Furniture And Equipment,203,09-Apr-2015,1505-00674,0.00,33.98,R,Amazon Svcs Europe sar,Yes
Http://opendatacommunities.org/id/metropolitan-district-council/leeds,Leeds City Council,31/05/2015,Central & Corporate,Support And Facilities General Fund  ,Supplies and Services,Books & Audio-Visual Materials,206,09-Apr-2015,1505-00675,0.00,157.00,R,Amazon Svcs Europe sar,Yes
Http://opendatacommunities.org/id/metropolitan-district-council/leeds,Leeds City Council,31/05/2015,Central & Corporate,Support And Facilities General Fund  ,Supplies and Services,Office Furniture & Equipment,201,09-Apr-2015,1505-00676,0.00,19.95,R,Amazon Svcs Europe sar,Yes
Http://opendatacommunities.org/id/metropolitan-district-council/leeds,Leeds City Council,31/05/2015,Central & Corporate,Support And Facilities General Fund  ,Supplies and Services,Computer Software & Equipment,214,09-Apr-2015,1505-00677,0.00,40.49,R,Amazon Svcs Europe sar,Yes
Http://opendatacommunities.org/id/metropolitan-district-council/leeds,Leeds City Council,31/05/2015,Central & Corporate,Support And Facilities General Fund  ,Supplies and Services,General Amenity For Clients/Residents,285,09-Apr-2015,1505-00678,0.00,34.96,R,Amazon Svcs Europe sar,Yes
Http://opendatacommunities.org/id/metropolitan-district-council/leeds,Leeds City Council,31/05/2015,Central & Corporate,Support And Facilities General Fund  ,Supplies and Services,Operational Materials,205,09-Apr-2015,1505-00679,0.00,16.90,R,Amazon Svcs Europe sar,Yes
Http://opendatacommunities.org/id/metropolitan-district-council/leeds,Leeds City Council,31/05/2015,Central & Corporate,Support And Facilities General Fund  ,Supplies and Services,Books & Audio-Visual Materials,206,09-Apr-2015,1505-00680,0.00,64.80,R,Amazon Svcs Europe sar,Yes
Http://opendatacommunities.org/id/metropolitan-district-council/leeds,Leeds City Council,31/05/2015,Central & Corporate,Support And Facilities General Fund  ,Supplies and Services,Telephones,213,09-Apr-2015,1505-00681,0.00,5.96,R,Amazon Svcs Europe sar,Yes
Http://opendatacommunities.org/id/metropolitan-district-council/leeds,Leeds City Council,31/05/2015,Central & Corporate,Support And Facilities General Fund  ,Supplies and Services,Telephones,213,09-Apr-2015,1505-00682,0.00,18.90,R,Amazon Svcs Europe sar,Yes
Http://opendatacommunities.org/id/metropolitan-district-council/leeds,Leeds City Council,31/05/2015,Central & Corporate,Support And Facilities General Fund  ,Supplies and Services,Operational Materials,205,09-Apr-2015,1505-00683,0.00,2.48,R,Amazon Svcs Europe sar,Yes
Http://opendatacommunities.org/id/metropolitan-district-council/leeds,Leeds City Council,31/05/2015,Central & Corporate,Support And Facilities General Fund  ,Supplies and Services,Books & Audio-Visual Materials,206,09-Apr-2015,1505-00684,0.00,72.21,R,Amazon Svcs Europe sar,Yes
Http://opendatacommunities.org/id/metropolitan-district-council/leeds,Leeds City Council,31/05/2015,Central & Corporate,Support And Facilities General Fund  ,Supplies and Services,Office Consumables,210,09-Apr-2015,1505-00685,0.00,2.30,R,Amazon Svcs Europe sar,Yes
Http://opendatacommunities.org/id/metropolitan-district-council/leeds,Leeds City Council,31/05/2015,Central & Corporate,Support And Facilities General Fund  ,Supplies and Services,Operational Materials,205,09-Apr-2015,1505-00686,0.00,32.76,R,Amazon Svcs Europe sar,Yes
Http://opendatacommunities.org/id/metropolitan-district-council/leeds,Leeds City Council,31/05/2015,Central & Corporate,Support And Facilities General Fund  ,Supplies and Services,Computer Software & Equipment,214,09-Apr-2015,1505-00687,0.00,12.99,R,Amazon Svcs Europe sar,Yes
Http://opendatacommunities.org/id/metropolitan-district-council/leeds,Leeds City Council,31/05/2015,Central & Corporate,Support And Facilities General Fund  ,Supplies and Services,Office Furniture & Equipment,201,10-Apr-2015,1505-00688,0.00,111.18,R,Amazon Svcs Europe sar,Yes
Http://opendatacommunities.org/id/metropolitan-district-council/leeds,Leeds City Council,31/05/2015,Central & Corporate,Support And Facilities General Fund  ,Supplies and Services,Operational Furniture And Equipment,203,10-Apr-2015,1505-00689,0.00,75.92,R,Amazon Svcs Europe sar,Yes
Http://opendatacommunities.org/id/metropolitan-district-council/leeds,Leeds City Council,31/05/2015,Central & Corporate,Support And Facilities General Fund  ,Supplies and Services,General Amenity For Clients/Residents,285,10-Apr-2015,1505-00690,0.00,12.99,R,Amazon Svcs Europe sar,Yes
Http://opendatacommunities.org/id/metropolitan-district-council/leeds,Leeds City Council,31/05/2015,Central & Corporate,Support And Facilities General Fund  ,Supplies and Services,Teaching Materials,202,10-Apr-2015,1505-00691,0.00,30.95,R,Amazon Svcs Europe sar,Yes
Http://opendatacommunities.org/id/metropolitan-district-council/leeds,Leeds City Council,31/05/2015,Central & Corporate,Support And Facilities General Fund  ,Supplies and Services,General Amenity For Clients/Residents,285,10-Apr-2015,1505-00692,0.00,22.85,R,Amazon Svcs Europe sar,Yes
Http://opendatacommunities.org/id/metropolitan-district-council/leeds,Leeds City Council,31/05/2015,Central & Corporate,Support And Facilities General Fund  ,Supplies and Services,Office Furniture & Equipment,201,10-Apr-2015,1505-00693,0.00,19.95,R,Amazon Svcs Europe sar,Yes
Http://opendatacommunities.org/id/metropolitan-district-council/leeds,Leeds City Council,31/05/2015,Central & Corporate,Support And Facilities General Fund  ,Supplies and Services,Books & Audio-Visual Materials,206,10-Apr-2015,1505-00694,0.00,29.98,R,Amazon Svcs Europe sar,Yes
Http://opendatacommunities.org/id/metropolitan-district-council/leeds,Leeds City Council,31/05/2015,Central & Corporate,Support And Facilities General Fund  ,Supplies and Services,Office Consumables,210,10-Apr-2015,1505-00695,0.00,3.98,R,Amazon Svcs Europe sar,Yes
Http://opendatacommunities.org/id/metropolitan-district-council/leeds,Leeds City Council,31/05/2015,Central & Corporate,Support And Facilities General Fund  ,Supplies and Services,Operational Furniture And Equipment,203,10-Apr-2015,1505-00696,0.00,24.99,R,Amazon Svcs Europe sar,Yes
Http://opendatacommunities.org/id/metropolitan-district-council/leeds,Leeds City Council,31/05/2015,Central & Corporate,Support And Facilities General Fund  ,Supplies and Services,Operational Materials,205,10-Apr-2015,1505-00697,0.00,13.98,R,Amazon Svcs Europe sar,Yes
Http://opendatacommunities.org/id/metropolitan-district-council/leeds,Leeds City Council,31/05/2015,Central & Corporate,Support And Facilities General Fund  ,Supplies and Services,Computer Software & Equipment,214,11-Apr-2015,1505-00698,0.00,20.98,R,Amazon Svcs Europe sar,Yes
Http://opendatacommunities.org/id/metropolitan-district-council/leeds,Leeds City Council,31/05/2015,Central & Corporate,Support And Facilities General Fund  ,Third Party Payments,Placement Support,550,11-Apr-2015,1505-00699,0.00,12.25,R,Amazon Svcs Europe sar,Yes
Http://opendatacommunities.org/id/metropolitan-district-council/leeds,Leeds City Council,31/05/2015,Central & Corporate,Support And Facilities General Fund  ,Supplies and Services,Books & Audio-Visual Materials,206,11-Apr-2015,1505-00700,0.00,19.30,R,Amazon Svcs Europe sar,Yes
Http://opendatacommunities.org/id/metropolitan-district-council/leeds,Leeds City Council,31/05/2015,Central & Corporate,Support And Facilities General Fund  ,Supplies and Services,Books & Audio-Visual Materials,206,12-Apr-2015,1505-00701,0.00,19.99,R,Amazon Svcs Europe sar,Yes
Http://opendatacommunities.org/id/metropolitan-district-council/leeds,Leeds City Council,31/05/2015,Central & Corporate,Support And Facilities General Fund  ,Supplies and Services,Books & Audio-Visual Materials,206,13-Apr-2015,1505-00702,0.00,34.95,R,Amazon Svcs Europe sar,Yes
Http://opendatacommunities.org/id/metropolitan-district-council/leeds,Leeds City Council,31/05/2015,Central & Corporate,Support And Facilities General Fund  ,Premises,Grounds Maintenance Work,111,13-Apr-2015,1505-00703,0.00,31.50,R,Amazon Svcs Europe sar,Yes
Http://opendatacommunities.org/id/metropolitan-district-council/leeds,Leeds City Council,31/05/2015,Central & Corporate,Support And Facilities General Fund  ,Supplies and Services,Books & Audio-Visual Materials,206,13-Apr-2015,1505-00704,0.00,7.67,R,Amazon Svcs Europe sar,Yes
Http://opendatacommunities.org/id/metropolitan-district-council/leeds,Leeds City Council,31/05/2015,Central & Corporate,Support And Facilities General Fund  ,Supplies and Services,Books & Audio-Visual Materials,206,13-Apr-2015,1505-00705,0.00,14.95,R,Amazon Svcs Europe sar,Yes
Http://opendatacommunities.org/id/metropolitan-district-council/leeds,Leeds City Council,31/05/2015,Central & Corporate,Support And Facilities General Fund  ,Supplies and Services,Computer Software & Equipment,214,13-Apr-2015,1505-00706,0.00,21.98,R,Amazon Svcs Europe sar,Yes
Http://opendatacommunities.org/id/metropolitan-district-council/leeds,Leeds City Council,31/05/2015,Central & Corporate,Support And Facilities General Fund  ,Supplies and Services,Books & Audio-Visual Materials,206,14-Apr-2015,1505-00707,0.00,12.34,R,Amazon Svcs Europe sar,Yes
Http://opendatacommunities.org/id/metropolitan-district-council/leeds,Leeds City Council,31/05/2015,Central & Corporate,Support And Facilities General Fund  ,Supplies and Services,Books & Audio-Visual Materials,206,14-Apr-2015,1505-00708,0.00,10.98,R,Amazon Svcs Europe sar,Yes
Http://opendatacommunities.org/id/metropolitan-district-council/leeds,Leeds City Council,31/05/2015,Central & Corporate,Support And Facilities General Fund  ,Supplies and Services,Books & Audio-Visual Materials,206,14-Apr-2015,1505-00709,0.00,7.92,R,Amazon Svcs Europe sar,Yes
Http://opendatacommunities.org/id/metropolitan-district-council/leeds,Leeds City Council,31/05/2015,Central & Corporate,Support And Facilities General Fund  ,Supplies and Services,Books & Audio-Visual Materials,206,14-Apr-2015,1505-00710,0.00,29.35,R,Amazon Svcs Europe sar,Yes
Http://opendatacommunities.org/id/metropolitan-district-council/leeds,Leeds City Council,31/05/2015,Central & Corporate,Support And Facilities General Fund  ,Premises,Maintenance Of Buildings,101,14-Apr-2015,1505-00711,0.00,3.67,R,Amazon Svcs Europe sar,Yes
Http://opendatacommunities.org/id/metropolitan-district-council/leeds,Leeds City Council,31/05/2015,Central & Corporate,Support And Facilities General Fund  ,Premises,Maintenance Of Buildings,101,14-Apr-2015,1505-00712,0.00,2.88,R,Amazon Svcs Europe sar,Yes
Http://opendatacommunities.org/id/metropolitan-district-council/leeds,Leeds City Council,31/05/2015,Central & Corporate,Support And Facilities General Fund  ,Supplies and Services,Teaching Materials,202,14-Apr-2015,1505-00713,0.00,13.72,R,Amazon Svcs Europe sar,Yes
Http://opendatacommunities.org/id/metropolitan-district-council/leeds,Leeds City Council,31/05/2015,Central & Corporate,Support And Facilities General Fund  ,Supplies and Services,Books & Audio-Visual Materials,206,14-Apr-2015,1505-00714,0.00,18.02,R,Amazon Svcs Europe sar,Yes
Http://opendatacommunities.org/id/metropolitan-district-council/leeds,Leeds City Council,31/05/2015,Central & Corporate,Support And Facilities General Fund  ,Supplies and Services,Teaching Materials,202,15-Apr-2015,1505-00715,0.00,24.22,R,Amazon Svcs Europe sar,Yes
Http://opendatacommunities.org/id/metropolitan-district-council/leeds,Leeds City Council,31/05/2015,Central & Corporate,Support And Facilities General Fund  ,Supplies and Services,Books & Audio-Visual Materials,206,15-Apr-2015,1505-00716,0.00,148.13,R,Amazon Svcs Europe sar,Yes
Http://opendatacommunities.org/id/metropolitan-district-council/leeds,Leeds City Council,31/05/2015,Central & Corporate,Support And Facilities General Fund  ,Supplies and Services,Teaching Materials,202,15-Apr-2015,1505-00717,0.00,2.47,R,Amazon Svcs Europe sar,Yes
Http://opendatacommunities.org/id/metropolitan-district-council/leeds,Leeds City Council,31/05/2015,Central & Corporate,Support And Facilities General Fund  ,Supplies and Services,Books & Audio-Visual Materials,206,15-Apr-2015,1505-00718,0.00,47.03,R,Amazon Svcs Europe sar,Yes
Http://opendatacommunities.org/id/metropolitan-district-council/leeds,Leeds City Council,31/05/2015,Central & Corporate,Support And Facilities General Fund  ,Supplies and Services,Books & Audio-Visual Materials,206,15-Apr-2015,1505-00719,0.00,6.59,R,Amazon Svcs Europe sar,Yes
Http://opendatacommunities.org/id/metropolitan-district-council/leeds,Leeds City Council,31/05/2015,Central & Corporate,Support And Facilities General Fund  ,Supplies and Services,Books & Audio-Visual Materials,206,15-Apr-2015,1505-00720,0.00,5.17,R,Amazon Svcs Europe sar,Yes
Http://opendatacommunities.org/id/metropolitan-district-council/leeds,Leeds City Council,31/05/2015,Central & Corporate,Support And Facilities General Fund  ,Supplies and Services,Operational Materials,205,15-Apr-2015,1505-00721,0.00,20.21,R,Amazon Svcs Europe sar,Yes
Http://opendatacommunities.org/id/metropolitan-district-council/leeds,Leeds City Council,31/05/2015,Central & Corporate,Support And Facilities General Fund  ,Supplies and Services,Books & Audio-Visual Materials,206,15-Apr-2015,1505-00722,0.00,88.37,R,Amazon Svcs Europe sar,Yes
Http://opendatacommunities.org/id/metropolitan-district-council/leeds,Leeds City Council,31/05/2015,Central & Corporate,Support And Facilities General Fund  ,Supplies and Services,Books & Audio-Visual Materials,206,16-Apr-2015,1505-00723,0.00,12.80,R,Amazon Svcs Europe sar,Yes
Http://opendatacommunities.org/id/metropolitan-district-council/leeds,Leeds City Council,31/05/2015,Central & Corporate,Support And Facilities General Fund  ,Supplies and Services,Teaching Materials,202,16-Apr-2015,1505-00724,0.00,10.47,R,Amazon Svcs Europe sar,Yes
Http://opendatacommunities.org/id/metropolitan-district-council/leeds,Leeds City Council,31/05/2015,Central & Corporate,Support And Facilities General Fund  ,Supplies and Services,Operational Furniture And Equipment,203,16-Apr-2015,1505-00725,0.00,7.47,R,Amazon Svcs Europe sar,Yes
Http://opendatacommunities.org/id/metropolitan-district-council/leeds,Leeds City Council,31/05/2015,Central & Corporate,Support And Facilities General Fund  ,Supplies and Services,Books & Audio-Visual Materials,206,16-Apr-2015,1505-00726,0.00,322.41,R,Amazon Svcs Europe sar,Yes
Http://opendatacommunities.org/id/metropolitan-district-council/leeds,Leeds City Council,31/05/2015,Central & Corporate,Support And Facilities General Fund  ,Supplies and Services,Teaching Furniture & Equipment,207,16-Apr-2015,1505-00727,0.00,149.98,R,Amazon Svcs Europe sar,Yes
Http://opendatacommunities.org/id/metropolitan-district-council/leeds,Leeds City Council,31/05/2015,Central & Corporate,Support And Facilities General Fund  ,Supplies and Services,Books & Audio-Visual Materials,206,16-Apr-2015,1505-00728,0.00,7.93,R,Amazon Svcs Europe sar,Yes
Http://opendatacommunities.org/id/metropolitan-district-council/leeds,Leeds City Council,31/05/2015,Central & Corporate,Support And Facilities General Fund  ,Supplies and Services,Catering Service,233,16-Apr-2015,1505-00729,0.00,49.82,R,Amazon Svcs Europe sar,Yes
Http://opendatacommunities.org/id/metropolitan-district-council/leeds,Leeds City Council,31/05/2015,Central & Corporate,Support And Facilities General Fund  ,Supplies and Services,Books & Audio-Visual Materials,206,16-Apr-2015,1505-00730,0.00,12.79,R,Amazon Svcs Europe sar,Yes
Http://opendatacommunities.org/id/metropolitan-district-council/leeds,Leeds City Council,31/05/2015,Central & Corporate,Support And Facilities General Fund  ,Supplies and Services,Operational Furniture And Equipment,203,16-Apr-2015,1505-00731,0.00,22.79,R,Amazon Svcs Europe sar,Yes
Http://opendatacommunities.org/id/metropolitan-district-council/leeds,Leeds City Council,31/05/2015,Central & Corporate,Support And Facilities General Fund  ,Supplies and Services,Operational Furniture And Equipment,203,17-Apr-2015,1505-00732,0.00,104.99,R,Amazon Svcs Europe sar,Yes
Http://opendatacommunities.org/id/metropolitan-district-council/leeds,Leeds City Council,31/05/2015,Central & Corporate,Support And Facilities General Fund  ,Supplies and Services,Teaching Materials,202,17-Apr-2015,1505-00733,0.00,20.49,R,Amazon Svcs Europe sar,Yes
Http://opendatacommunities.org/id/metropolitan-district-council/leeds,Leeds City Council,31/05/2015,Central & Corporate,Support And Facilities General Fund  ,Supplies and Services,Operational Furniture And Equipment,203,17-Apr-2015,1505-00734,0.00,342.87,R,Amazon Svcs Europe sar,Yes
Http://opendatacommunities.org/id/metropolitan-district-council/leeds,Leeds City Council,31/05/2015,Central & Corporate,Support And Facilities General Fund  ,Supplies and Services,Teaching Materials,202,17-Apr-2015,1505-00735,0.00,11.62,R,Amazon Svcs Europe sar,Yes
Http://opendatacommunities.org/id/metropolitan-district-council/leeds,Leeds City Council,31/05/2015,Central & Corporate,Support And Facilities General Fund  ,Supplies and Services,Books & Audio-Visual Materials,206,17-Apr-2015,1505-00736,0.00,8.99,R,Amazon Svcs Europe sar,Yes
Http://opendatacommunities.org/id/metropolitan-district-council/leeds,Leeds City Council,31/05/2015,Central & Corporate,Support And Facilities General Fund  ,Supplies and Services,Operational Furniture And Equipment,203,17-Apr-2015,1505-00737,0.00,6.22,R,Amazon Svcs Europe sar,Yes
Http://opendatacommunities.org/id/metropolitan-district-council/leeds,Leeds City Council,31/05/2015,Central & Corporate,Support And Facilities General Fund  ,Supplies and Services,Teaching Materials,202,17-Apr-2015,1505-00738,0.00,35.00,R,Amazon Svcs Europe sar,Yes
Http://opendatacommunities.org/id/metropolitan-district-council/leeds,Leeds City Council,31/05/2015,Central & Corporate,Support And Facilities General Fund  ,Supplies and Services,Books & Audio-Visual Materials,206,18-Apr-2015,1505-00739,0.00,5.85,R,Amazon Svcs Europe sar,Yes
Http://opendatacommunities.org/id/metropolitan-district-council/leeds,Leeds City Council,31/05/2015,Central & Corporate,Support And Facilities General Fund  ,Supplies and Services,Computer Software & Equipment,214,18-Apr-2015,1505-00740,0.00,83.86,R,Amazon Svcs Europe sar,Yes
Http://opendatacommunities.org/id/metropolitan-district-council/leeds,Leeds City Council,31/05/2015,Central & Corporate,Support And Facilities General Fund  ,Supplies and Services,Books & Audio-Visual Materials,206,20-Apr-2015,1505-00741,0.00,30.82,R,Amazon Svcs Europe sar,Yes
Http://opendatacommunities.org/id/metropolitan-district-council/leeds,Leeds City Council,31/05/2015,Central & Corporate,Support And Facilities General Fund  ,Supplies and Services,Books & Audio-Visual Materials,206,20-Apr-2015,1505-00742,0.00,188.55,R,Amazon Svcs Europe sar,Yes
Http://opendatacommunities.org/id/metropolitan-district-council/leeds,Leeds City Council,31/05/2015,Central & Corporate,Support And Facilities General Fund  ,Supplies and Services,Books & Audio-Visual Materials,206,20-Apr-2015,1505-00743,0.00,10.00,R,Amazon Svcs Europe sar,Yes
Http://opendatacommunities.org/id/metropolitan-district-council/leeds,Leeds City Council,31/05/2015,Central & Corporate,Support And Facilities General Fund  ,Supplies and Services,Office Furniture & Equipment,201,20-Apr-2015,1505-00744,0.00,58.97,R,Amazon Svcs Europe sar,Yes
Http://opendatacommunities.org/id/metropolitan-district-council/leeds,Leeds City Council,31/05/2015,Central & Corporate,Support And Facilities General Fund  ,Supplies and Services,Teaching Materials,202,20-Apr-2015,1505-00745,0.00,9.98,R,Amazon Svcs Europe sar,Yes
Http://opendatacommunities.org/id/metropolitan-district-council/leeds,Leeds City Council,31/05/2015,Central & Corporate,Support And Facilities General Fund  ,Supplies and Services,Office Consumables,210,20-Apr-2015,1505-00746,0.00,5.98,R,Amazon Svcs Europe sar,Yes
Http://opendatacommunities.org/id/metropolitan-district-council/leeds,Leeds City Council,31/05/2015,Central & Corporate,Support And Facilities General Fund  ,Supplies and Services,Teaching Materials,202,21-Apr-2015,1505-00747,0.00,2.99,R,Amazon Svcs Europe sar,Yes
Http://opendatacommunities.org/id/metropolitan-district-council/leeds,Leeds City Council,31/05/2015,Central & Corporate,Support And Facilities General Fund  ,Supplies and Services,Books & Audio-Visual Materials,206,21-Apr-2015,1505-00748,0.00,14.48,R,Amazon Svcs Europe sar,Yes
Http://opendatacommunities.org/id/metropolitan-district-council/leeds,Leeds City Council,31/05/2015,Central & Corporate,Support And Facilities General Fund  ,Supplies and Services,Teaching Materials,202,21-Apr-2015,1505-00749,0.00,69.99,R,Amazon Svcs Europe sar,Yes
Http://opendatacommunities.org/id/metropolitan-district-council/leeds,Leeds City Council,31/05/2015,Central & Corporate,Support And Facilities General Fund  ,Premises,Cleaning Maintenance & Toiletries,127,21-Apr-2015,1505-00750,0.00,8.00,R,Amazon Svcs Europe sar,Yes
Http://opendatacommunities.org/id/metropolitan-district-council/leeds,Leeds City Council,31/05/2015,Central & Corporate,Support And Facilities General Fund  ,Supplies and Services,Teaching Materials,202,21-Apr-2015,1505-00751,0.00,1.86,R,Amazon Svcs Europe sar,Yes
Http://opendatacommunities.org/id/metropolitan-district-council/leeds,Leeds City Council,31/05/2015,Central & Corporate,Support And Facilities General Fund  ,Supplies and Services,Teaching Materials,202,21-Apr-2015,1505-00752,0.00,1.78,R,Amazon Svcs Europe sar,Yes
Http://opendatacommunities.org/id/metropolitan-district-council/leeds,Leeds City Council,31/05/2015,Central & Corporate,Support And Facilities General Fund  ,Supplies and Services,Teaching Materials,202,21-Apr-2015,1505-00753,0.00,27.60,R,Amazon Svcs Europe sar,Yes
